{"text_format":"1","workbook":"xlsx","n_sheets":2,"sheets":["CONTRATACON FEBRERO 2020","PIC  -FEBRERO 2020"],"not_rendered":{"charts":0,"images":0,"macros":1,"external_links":3,"defined_names":2,"comments":2,"pivot_tables":0},"unopened":[],"bounds":{"document_bytes":16777216,"sheet_cells":100000,"rows_first":2000,"rows_last":500,"rows_between":2000,"halvings":0,"cell_chars":16384,"cell_head_chars":4096},"cells_cut":0,"cells_raw":0,"read":"whole","date_system":"1900"}

{"sheet":"CONTRATACON FEBRERO 2020","index":0,"n_rows":429,"n_cols":16,"rows_kept":429,"cut":false,"hidden":false,"merged":[[0,1,0,4]]}
[null,"LISTADO CONTRATACION  OPS MES DE FEBRERO 2020"]
[" ","CEDULA","NOMBRES APELLIDOS CONTRATISTA","#OPS","OBJETO DEL CONTRATO","FECHA INICIO","FECHA TERMINACION ","VALOR MENSUAL","VALOR TOTAL ","SUPERVISOR ","CARGO","CENTRO DE SALUD","CDP","RP","FECHA SECOP LINK SECOP ","LINK SECOOP"]
[1,7455342,"ADOLFO MARIO DE LA HOZ BERNAL","0454-2020","MEDICO DE URGENCIA","03 FEBRERO DE 2020","29 FEBRERO DE 2020",2560000,{"$f":"H3*1","v":2560000},"BETTY PERTUZ ","SUBGERENTE CIENTIFICO","CIUDADELA METROPOLITANA",550,1181,"20/02/2020","https://www.contratos.gov.co/consultas/detalleProceso.do?numConstancia=20-4-10498388"]
[{"$f":"+A3+1","v":2},55309225,"ADRIANA BALLESTAS MARTINEZ","0455-2020","MEDICO DE URGENCIA","03 FEBRERO DE 2020","29 FEBRERO DE 2020",2560000,2560000,"BETTY PERTUZ ","SUBGERENTE CIENTIFICO","CENTRO DE 13 DE JUNIO ",551,1182,"20/02/2020","https://www.contratos.gov.co/consultas/detalleProceso.do?numConstancia=20-4-10498421"]
[{"$f":"+A4+1","v":3},1103109488,"ADRIANA MARCELA CASTAÑO RODELO","0456-2020","MEDICO CARDIOVASCULAR","03 FEBRERO DE 2020","29 FEBRERO DE 2020",4420000,4420000,"DIANA MARTINEZ PACHECO","COORD CENTRO DE SALUD","CENTRO SALAMANCA",552,1183,"20/02/2020","https://www.contratos.gov.co/consultas/detalleProceso.do?numConstancia=20-4-10498435"]
[4,22465848,"ADRIANA OROZCO CANTILLO","0457-2020","AUXILIAR SERVICIOS GENERALES","03 FEBRERO DE 2020","29 FEBRERO DE 2020",1215000,1215000,"LUIS CARLOS DE LEON BERNIER","COORD CENTRO SALUD","CENTRO MACLOVIA",553,1184,"20/02/2020","https://www.contratos.gov.co/consultas/detalleProceso.do?numConstancia=20-4-10498467"]
[5,1140895535,"ADRIANA PAOLA GONZALEZ ROMERO ","0458-2020","ENFERMERA JEFE","03 FEBRERO DE 2020","29 FEBRERO DE 2020",2120000,2120000,"VICTOR MIRANDA","SUBGERENTE CIENTIFICO","LA ESPERANZA",554,1185,"20/02/2020","https://www.contratos.gov.co/consultas/detalleProceso.do?numConstancia=20-4-10498489"]
[6,36555688,"ALBA SOLANO COCA","0460-2020","ODONTOLOGO","03 FEBRERO DE 2020","29 FEBRERO DE 2020",1900000,1900000,"CARLOS VISBAL JIMENEZ","COORD CENTRO SALUD","CENTRO COSTA HERMOSA ",556,1187,"20/02/2020","https://www.contratos.gov.co/consultas/detalleProceso.do?numConstancia=20-4-10498539"]
[7,1140874429,"ALBERTO DE LA OSSA DE AVILA","0461-2020","PROFESIONAL DE PRESUPUESTO ","03 FEBRERO DE 2020","29 FEBRERO DE 2020",3000000,3000000,"NICOLAS OQUENDO","DIRECTOR FINANCIERO","ADMON COSTA HERMOSA",557,1188,"20/02/2020","https://www.contratos.gov.co/consultas/detalleProceso.do?numConstancia=20-4-10498561"]
[8,8505956,"ALBERTO NAVARRO MORALES","0462-2020","AUXILIAR DE FACTURACION URGENCIA","03 FEBRERO DE 2020","29 FEBRERO DE 2020",1400000,1400000,"SANDRA SANMARTIN","SUB GERENTE ADMINISTRATIVO","CENTRO COSTA HERMOSA ",558,1189,"20/02/2020","https://www.contratos.gov.co/consultas/detalleProceso.do?numConstancia=20-4-10498615"]
[9,37577926,"ALCIRA CAMPO ALCOZER","0463-2020","AUXILIAR SERVICIOS GENERALES","03 FEBRERO DE 2020","29 FEBRERO DE 2020",1215000,1215000,"SANDRA SANMARTIN","SUB GERENTE ADMINISTRATIVO","CENTRO COSTA HERMOSA ",559,1190,"20/02/2020","https://www.contratos.gov.co/consultas/detalleProceso.do?numConstancia=20-4-10498633"]
[10,64543985,"ALCIRA GOMEZ ARRIETA ","0464-2020","ENFERMERA JEFE COORDINADORA PAI ","03 FEBRERO DE 2020","29 FEBRERO DE 2020",4000000,4000000,"NILSA ARIZA MARQUEZ","COORDINADOR P Y P","CENTRO MANUELA BELTRAN",560,1191,"20/02/2020","https://www.contratos.gov.co/consultas/detalleProceso.do?numConstancia=20-4-10498661"]
[11,22615419,"ALCIRA ROCIO RIVERA DONADO","0465-2020","AUXILIAR DE ARCHIVO","03 FEBRERO DE 2020","29 FEBRERO DE 2020",1500000,1500000,"SANDRA SANMARTIN","SUB GERENTE ADMINISTRATIVO","CENTRO COSTA HERMOSA ",561,1192,"20/02/2020","https://www.contratos.gov.co/consultas/detalleProceso.do?numConstancia=20-4-10498703"]
[12,1045676663,"ALEXANDER MENDOZA DUARTE","0466-2020","INGENIERO DE HARDWARE Y REDES","03 FEBRERO DE 2020","29 FEBRERO DE 2020",3000000,3000000,"ZULI ROMERO","COORDINADOR TIC","ADMON COSTA HERMOSA",562,1193,"20/02/2020","https://www.contratos.gov.co/consultas/detalleProceso.do?numConstancia=20-4-10498748"]
[13,8777621,"ALEXANDER MIGUEL SALAZAR CABALLERO","0467-2020","AUXILIAR DE FACTURACION URGENCIA","03 FEBRERO DE 2020","29 FEBRERO DE 2020",1400000,1400000,"SANDRA SANMARTIN","SUB GERENTE ADMINISTRATIVO","CENTRO  DE SALUD EL PARQUE",563,1194,"20/02/2020","https://www.contratos.gov.co/consultas/detalleProceso.do?numConstancia=20-4-10498766"]
[14,22523223,"ALEXANDRA ESTHER MOLINA PEREZ","0468-2020","AUXILIAR SERVICIOS GENERALES URGENCIA","03 FEBRERO DE 2020","29 FEBRERO DE 2020",1378000,1378000,"SERGIO BOVEA MARIN","COORD CENTRO SALUD","CENTRO DE 13 DE JUNIO ",564,1195,"20/02/2020","https://www.contratos.gov.co/consultas/detalleProceso.do?numConstancia=20-4-10498787"]
[15,1140881787,"ALEXANDRA GUZMAN QUINTERO","0469-2020","ASISTENTE OFICINA JURIDICA ","03 FEBRERO DE 2020","29 FEBRERO DE 2020",3000000,3000000,"ORNELLA FIORENTINO ","JEFE OFICINA JURIDICA","CENTRO COSTA HERMOSA ",565,1196,"20/02/2020","https://www.contratos.gov.co/consultas/detalleProceso.do?numConstancia=20-4-10498815"]
[16,1045716759,"ALFREDO ANGULO JULIAO","0470-2020","AUXILIAR DE FACTURACION URGENCIA","03 FEBRERO DE 2020","29 FEBRERO DE 2020",1400000,1400000,"SANDRA SANMARTIN","SUB GERENTE ADMINISTRATIVO","CENTRO COSTA HERMOSA ",566,1197,"20/02/2020","https://www.contratos.gov.co/consultas/detalleProceso.do?numConstancia=20-4-10498828"]
[17,8721508,"ALONSO JOSÉ RIQUETT DE LA HOZ","0471-2020","MEDICO P Y P ","03 FEBRERO DE 2020","29 FEBRERO DE 2020",2120000,2120000,"CARLOS VISBAL JIMENEZ","COORD CENTRO SALUD","CENTRO COSTA HERMOSA ",567,1198,"20/02/2020","https://www.contratos.gov.co/consultas/detalleProceso.do?numConstancia=20-4-10498889"]
[18,8697543,"ALVARO ARENAS GONZALEZ","0472-2020","MEDICO DE MATERNIDAD ","03 FEBRERO DE 2020","29 FEBRERO DE 2020",4240000,4240000,"SERGIO BOVEA MARIN","COORD CENTRO SALUD","CENTRO DE 13 DE JUNIO ",568,1199,"20/02/2020","https://www.contratos.gov.co/consultas/detalleProceso.do?numConstancia=20-4-10498932"]
[19,7407679,"AMEFI PACHECO CERA","0473-2020","ORIENTADOR","03 FEBRERO DE 2020","29 FEBRERO DE 2020",1270000,1270000,"VICTOR MIRANDA","SUB GERENTE ADMINISTRATIVO","LA ESPERANZA",569,1200,"20/02/2020","https://www.contratos.gov.co/consultas/detalleProceso.do?numConstancia=20-4-10498946"]
[20,1047338042,"AMINTA PARDO GUZMAN","0474-2020","AUXILIAR DE ENFERMERIA CONSULTA EXTERNA ","03 FEBRERO DE 2020","29 FEBRERO DE 2020",1166000,1166000,"DIANA MARTINEZ PACHECO","COORD CENTRO DE SALUD","CENTRO SALAMANCA",570,1201,"20/02/2020","https://www.contratos.gov.co/consultas/detalleProceso.do?numConstancia=20-4-10498964"]
[21,1045688469,"AMY MOVILLA COMAS","0475-2020","ENFERMERA JEFE CONSULTA EXTERNA ","03 FEBRERO DE 2020","29 FEBRERO DE 2020",2300000,2300000,"DIANA MARTINEZ PACHECO","COORD CENTRO DE SALUD","CENTRO SALAMANCA",571,1202,"20/02/2020","https://www.contratos.gov.co/consultas/detalleProceso.do?numConstancia=20-4-10499087"]
[22,32813366,"ANA GONZALEZ ZAMBRANO","0476-2020","AUXILIAR DE ARCHIVO ","03 FEBRERO DE 2020","29 FEBRERO DE 2020",1500000,1500000,"SANDRA SANMARTIN","SUB GERENTE ADMINISTRATIVO","ARCHIVO CENTRAL ",572,1203,"20/02/2020","https://www.contratos.gov.co/consultas/detalleProceso.do?numConstancia=20-4-10499185"]
[23,1045704276,"ANA MILENA HERRERA ALVIS ","0477-2020","ENFERMERA JEFE ","03 FEBRERO DE 2020","29 FEBRERO DE 2020",2300000,2300000,"NILSA ARIZA MARQUEZ","COORDINADOR P Y P","CENTRO COSTA HERMOSA ",573,1204,"20/02/2020","https://www.contratos.gov.co/consultas/detalleProceso.do?numConstancia=20-4-10499354"]
[24,22739459,"ANA MILENA L´HOESTE ROA","0478-2020","COORDINADORA CONSULTA EXTERNA","03 FEBRERO DE 2020","29 FEBRERO DE 2020",3000000,3000000,"BETTY PERTUZ ","SUBGERENTE CIENTIFICO","CENTRO COSTA HERMOSA ",574,1205,"20/02/2020","https://www.contratos.gov.co/consultas/detalleProceso.do?numConstancia=20-4-10499390"]
[25,32825462,"ANAIS DE JESUS RODRIGUEZ DE DE LAS AGUAS","0479-2020","AUXILIAR SERVICIOS GENERALES","03 FEBRERO DE 2020","29 FEBRERO DE 2020",1215000,1215000,"AIX PALACIO","COORD CENTRO DE SALUD","CENTRO SALAMANCA",575,1206,"20/02/2020","https://www.contratos.gov.co/consultas/detalleProceso.do?numConstancia=20-4-10499469"]
[26,1045706259,"ANDREA CAROLINA HERRERA ORTEGA","0480-2020","MEDICO CONSULTA EXTERNA","03 FEBRERO DE 2020","29 FEBRERO DE 2020",2120000,2120000,"LUIS GRANADOS GOMEZ","COORD CENTRO SALUD","CENTRO MANUELA BELTRAN",576,1207,"20/02/2020","https://www.contratos.gov.co/consultas/detalleProceso.do?numConstancia=20-4-10499545"]
[27,1042443216,"ANDRES ALBERTO GARCIA OSPINO","0481-2020","AUXILIAR DE FACTURACION URGENCIA","03 FEBRERO DE 2020","29 FEBRERO DE 2020",1500000,1500000,"SANDRA SANMARTIN","SUB GERENTE ADMINISTRATIVO","ARCHIVO CENTRAL ",577,1208,"20/02/2020","https://www.contratos.gov.co/consultas/detalleProceso.do?numConstancia=20-4-10499616"]
[28,1047337496,"ANTHONY MIGUEL ORELLANO JIMENEZ","0482-2020","AUXILIAR DE FACTURACION URGENCIA","03 FEBRERO DE 2020","29 FEBRERO DE 2020",1400000,1400000,"SANDRA SANMARTIN","SUB GERENTE ADMINISTRATIVO","CENTRO COSTA HERMOSA ",578,1209,"20/02/2020","https://www.contratos.gov.co/consultas/detalleProceso.do?numConstancia=20-4-10499677"]
[29,22736159,"ARACELLY HERNANDEZ GARCIA ","0483-2020","DIGITADOR","03 FEBRERO DE 2020","29 FEBRERO DE 2020",2500000,2500000,"NILSA ARIZA MARQUEZ","COORDINADOR P Y P","CENTRO COSTA HERMOSA ",579,1210,"20/02/2020","https://www.contratos.gov.co/consultas/detalleProceso.do?numConstancia=20-4-10499737"]
[30,32869290,"ARGENEDITH YEPEZ ESCALANTE ","0484-2020","MEDICO P Y P","03 FEBRERO DE 2020","29 FEBRERO DE 2020",2120000,2120000,"LUIS GRANADOS GOMEZ","COORD CENTRO SALUD","CENTRO MANUELA BELTRAN",580,1211,"20/02/2020","https://www.contratos.gov.co/consultas/detalleProceso.do?numConstancia=20-4-10499783"]
[31,1140850083,"ARLINY YANNINY RAMIREZ FIGUEROA","0485-2020","ASESOR DE PRESUPUESTO","03 FEBRERO DE 2020","29 FEBRERO DE 2020",4000000,4000000,"NICOLAS OQUENDO","DIRECTOR FINANCIERO","ADMON COSTA HERMOSA",581,1212,"20/02/2020","https://www.contratos.gov.co/consultas/detalleProceso.do?numConstancia=20-4-10499810"]
[32,1042444527,"ARNOLD RINCON MARTINEZ","0486-2020","PROFESIONAL PLANEACION ESTRATEGICA","03 FEBRERO DE 2020","29 FEBRERO DE 2020",4000000,{"$f":"H34*1","v":4000000},"SANDRA SANMARTIN","SUB GERENTE ADMINISTRATIVO","CENTRO COSTA HERMOSA ",582,1213,"20/02/2020","https://www.contratos.gov.co/consultas/detalleProceso.do?numConstancia=20-4-10499986"]
[33,32767778,"BEATRIZ ELENA GUTIERREZ AHUMADA","0487-2020","PAI WEB ","03 FEBRERO DE 2020","29 FEBRERO DE 2020",1378000,1378000,"NILSA ARIZA MARQUEZ","COORDINADOR P Y P","CENTRO COSTA HERMOSA ",583,1214,"20/02/2020","https://www.contratos.gov.co/consultas/detalleProceso.do?numConstancia=20-4-10500107"]
[34,45496113,"BEATRIZ HELENA JIMENO CARDENAS","0488-2020","AUXILIAR DE ARCHIVO ","03 FEBRERO DE 2020","29 FEBRERO DE 2020",1500000,1500000,"SANDRA SANMARTIN","SUB GERENTE ADMINISTRATIVO",null,584,1215,"20/02/2020","https://www.contratos.gov.co/consultas/detalleProceso.do?numConstancia=20-4-10500219"]
[35,32780077,"BELKIS  BOSSIO ESCORCIA","0489-2020","MEDICO DE URGENCIA","03 FEBRERO DE 2020","29 FEBRERO DE 2020",2560000,2560000,"BETTY PERTUZ ","SUBGERENTE CIENTIFICO","CIUDADELA METROPOLITANA",585,1216,"20/02/2020","https://www.contratos.gov.co/consultas/detalleProceso.do?numConstancia=20-4-10500260"]
[36,32736237,"BETTY ROMERO RODRIGUEZ ","0490-2020","AUXILIAR SERVICIOS GENERALES URGENCIA","03 FEBRERO DE 2020","29 FEBRERO DE 2020",1378000,1378000,"WILFRAN JIMENEZ DE LA PEÑA","COORD CENTRO SALUD","CIUDADELA METROPOLITANA",586,1217,"20/02/2020","https://www.contratos.gov.co/consultas/detalleProceso.do?numConstancia=20-4-10500345"]
[37,72153271,"BORIS ARROYO ESCOBAR","0491-2020","ORIENTADOR","03 FEBRERO DE 2020","29 FEBRERO DE 2020",1270000,1270000,"LUIS GRANADOS GOMEZ","COORD CENTRO SALUD","CENTRO MANUELA BELTRAN",587,1218,"20/02/2020","https://www.contratos.gov.co/consultas/detalleProceso.do?numConstancia=20-4-10500367"]
[38,7938572,"BRAYNERD ALVAREZ JIMENEZ ","0492-2020","MEDICO CONSULTA EXTERNA  Y CARDIOVASCULAR","03 FEBRERO DE 2020","29 FEBRERO DE 2020",4600000,4600000,"YARELIS GUERRA CORREA","COORD CENTRO SALUD","CENTRO VILLA ESTADIO ",588,1219,"20/02/2020","https://www.contratos.gov.co/consultas/detalleProceso.do?numConstancia=20-4-10500953"]
[39,1042452163,"BRENDA JULIETH GONZALEZ MEJIA","0493-2020","DIGITADOR","03 FEBRERO DE 2020","29 FEBRERO DE 2020",1600000,1600000,"MARIA SANCHEZ AYALA","JEFE ALMACEN","ARCHIVO CENTRAL ",589,1220,"20/02/2020","https://www.contratos.gov.co/consultas/detalleProceso.do?numConstancia=20-4-10500993"]
[40,1001875457,"BRIGGITH CHARRIS ALGARIN ","0494-2020","AUXILIAR DE ODONTOLOGIA","03 FEBRERO DE 2020","29 FEBRERO DE 2020",1166000,1166000,"WILFRAN JIMENEZ DE LA PEÑA","COORD CENTRO SALUD","CIUDADELA METROPOLITANA",590,1221,"20/02/2020","https://www.contratos.gov.co/consultas/detalleProceso.do?numConstancia=20-4-10501051"]
[41,1042446319,"BRUNYS DEL CARMEN RAMIREZ MUÑOZ","0495-2020","AUXILIAR DE ENFERMERIA PROMOTORA EN SALUD","03 FEBRERO DE 2020","29 FEBRERO DE 2020",1215000,1215000,"WILFRAN JIMENEZ DE LA PEÑA","COORD CENTRO SALUD","CIUDADELA METROPOLITANA",591,1222,"20/02/2020","https://www.contratos.gov.co/consultas/detalleProceso.do?numConstancia=20-4-10501120"]
[42,1042449000,"CARLOS ALFREDO MONTERROSA GOMEZ ","0496-2020","PAI WEB ","03 FEBRERO DE 2020","29 FEBRERO DE 2020",1270000,1270000,"NILSA ARIZA MARQUEZ","COORDINADOR P Y P","ARCHIVO CENTRAL ",592,1223,"20/02/2020","https://www.contratos.gov.co/consultas/detalleProceso.do?numConstancia=20-4-10501120"]
[43,72238499,"CARLOS ANTONIO MATTOS MIRANDA","0497-2020","REFERENCIA Y CONTRAREFERENCIA","03 FEBRERO DE 2020","29 FEBRERO DE 2020",1480000,1480000,"WILFRAN JIMENEZ DE LA PEÑA","COORD CENTRO SALUD","CIUDADELA METROPOLITANA",593,1224,"20/02/2020","https://www.contratos.gov.co/consultas/detalleProceso.do?numConstancia=20-4-10501188"]
[44,44158949,"CARMEN PACHECO VARELA","0498-2020","AUXILIAR SERVICIOS GENERALES URGENCIA","03 FEBRERO DE 2020","29 FEBRERO DE 2020",1378000,1378000,"SERGIO BOVEA MARIN","COORD CENTRO SALUD","CENTRO DE 13 DE JUNIO ",594,1225,"20/02/2020","https://www.contratos.gov.co/consultas/detalleProceso.do?numConstancia=20-4-10501228"]
[45,32618430,"CARMEN ROBLES DE LASCARRO","0499-2020","AUXILIAR SERVICIOS GENERALES URGENCIA","03 FEBRERO DE 2020","29 FEBRERO DE 2020",1378000,1378000,"WILFRAN JIMENEZ DE LA PEÑA","COORD CENTRO SALUD","CIUDADELA METROPOLITANA",595,1226,"20/02/2020","https://www.contratos.gov.co/consultas/detalleProceso.do?numConstancia=20-4-10501348"]
[46,1069489915,"CAROLINA RICARDO ALBA","0500-2020","AUXILIAR ADMINISTRATIVO -  SUBGERENCIA ADMINISTRATIVA","03 FEBRERO DE 2020","29 FEBRERO DE 2020",1900000,1900000,"SANDRA SANMARTIN","SUB GERENTE ADMINISTRATIVO","COSTA HERMOSA",596,1227,"20/02/2020","https://www.contratos.gov.co/consultas/detalleProceso.do?numConstancia=20-4-10501395"]
[47,32712485,"CASILDA LARA SOLANO ","0501-2020","MEDICO MATERNIDAD SEGURA","03 FEBRERO DE 2020","29 FEBRERO DE 2020",2120000,2120000,"SERGIO BOVEA MARIN","COORD CENTRO SALUD","CENTRO DE 13 DE JUNIO ",597,1228,"20/02/2020","https://www.contratos.gov.co/consultas/detalleProceso.do?numConstancia=20-4-10501495"]
[48,32861785,"CATALINA MERCADO MARTINEZ","0502-2020","AUXILIAR DE FACTURACION","03 FEBRERO DE 2020","29 FEBRERO DE 2020",1300000,1300000,"SANDRA SANMARTIN","SUB GERENTE ADMINISTRATIVO","CENTRO SALAMANCA",598,1229,"20/02/2020","https://www.contratos.gov.co/consultas/detalleProceso.do?numConstancia=20-4-10501520"]
[49,1143138226,"CATTERINNE ESTEFANY ESTRADA CARDENAS","0503-2020","AUXILIAR DE FACTURACION URGENCIA","03 FEBRERO DE 2020","29 FEBRERO DE 2020",1400000,1400000,"SANDRA SANMARTIN","SUB GERENTE ADMINISTRATIVO","CENTRO COSTA HERMOSA ",599,1230,"20/02/2020","https://www.contratos.gov.co/consultas/detalleProceso.do?numConstancia=20-4-10501553"]
[50,8762035,"CESAR AUGUSTO MERIÑO ESCORCIA ","0504-2020","ORIENTADOR","03 FEBRERO DE 2020","29 FEBRERO DE 2020",1270000,1270000,"SANDRA SANMARTIN","SUB GERENTE ADMINISTRATIVO","CENTRO COSTA HERMOSA ",600,1231,"20/02/2020","https://www.contratos.gov.co/consultas/detalleProceso.do?numConstancia=20-4-10501595"]
[51,1001798325,"CINDY MILENA SARMIENTO MERIÑO","0505-2020","PROFESIONA RELACIONES INETRNACIONALES","03 FEBRERO DE 2020","29 FEBRERO DE 2020",4000000,4000000,"FABIAN COLPAS","JEFE RECUSOS HUMANOS","ADMON COSTA HERMOSA",601,1232,"20/02/2020","https://www.contratos.gov.co/consultas/detalleProceso.do?numConstancia=20-4-10501645"]
[52,1001875491,"CINDY MILENA VARELA ARIAS ","0506-2020","AUXILIAR SERVICIOS GENERALES","03 FEBRERO DE 2020","29 FEBRERO DE 2020",1215000,1215000,"LUIS GRANADOS GOMEZ","COORD CENTRO SALUD","CENTRO MANUELA BELTRAN",602,1233,"20/02/2020","https://www.contratos.gov.co/consultas/detalleProceso.do?numConstancia=20-4-10501711"]
[53,1143116013,"CLARA MENDOZA BETTER","0507-2020","PSICOLOGO EN PROMOCION Y PREVENCION","03 FEBRERO DE 2020","29 FEBRERO DE 2020",2800000,2800000,"DIANA MARTINEZ PACHECO","COORD CENTRO DE SALUD","CENTRO SALAMANCA",603,1234,"20/02/2020","https://www.contratos.gov.co/consultas/detalleProceso.do?numConstancia=20-4-10501740"]
[54,1042418998,"CLAUDIA AREVALO CERVANTES","0508-2020","ENFERMERA JEFE P Y P","03 FEBRERO DE 2020","29 FEBRERO DE 2020",2300000,2300000,"NILSA ARIZA MARQUEZ","COORDINADOR P Y P","CIUDADELA METROPOLITANA",604,1235,"20/02/2020","https://www.contratos.gov.co/consultas/detalleProceso.do?numConstancia=20-4-10501772"]
[55,32866058,"CLAUDIA CABARCAS ARROYO","0509-2020","TRABAJADORA SOCIAL","03 FEBRERO DE 2020","29 FEBRERO DE 2020",2200000,2200000,"DIANA MARTINEZ PACHECO","COORD CENTRO DE SALUD","CENTRO SALAMANCA",605,1236,"20/02/2020","https://www.contratos.gov.co/consultas/detalleProceso.do?numConstancia=20-4-10501786"]
[56,32749353,"CLAUDIA VALENCIA AGUDELO ","0510-2020","AUXILIAR DE ENFERMERIA MATERNIDAD SEGURA ","03 FEBRERO DE 2020","29 FEBRERO DE 2020",1166000,1166000,"WILFRAN JIMENEZ DE LA PEÑA","COORD CENTRO SALUD","CIUDADELA METROPOLITANA",606,1237,"20/02/2020","https://www.contratos.gov.co/consultas/detalleProceso.do?numConstancia=20-4-10501824"]
[57,32818534,"CONSUELO MENDOZA CASTRO ","0511-2020","AUXILIAR DE ENFERMERIA MATERNIDAD SEGURA ","03 FEBRERO DE 2020","29 FEBRERO DE 2020",1166000,1166000,"WILFRAN JIMENEZ DE LA PEÑA","COORD CENTRO SALUD","CIUDADELA METROPOLITANA",607,1238,"20/02/2020","https://www.contratos.gov.co/consultas/detalleProceso.do?numConstancia=20-4-10501844"]
[58,72193875,"CRISTIAN DE JESUS BARRAZA VILLALBA","0512-2020","CONDUCTOR DE AMBULANCIA","03 FEBRERO DE 2020","29 FEBRERO DE 2020",1800000,1800000,"BETTY PERTUZ ","SUBGERENTE CIENTIFICO","CIUDADELA METROPOLITANA",608,1239,"20/02/2020","https://www.contratos.gov.co/consultas/detalleProceso.do?numConstancia=20-4-10501866"]
[59,72436677,"DANILO ENRIQUE GRAVINI DE LA HOZ","0513-2020","AUXILIAR DE ENFERMERIA URGENCIAS","03 FEBRERO DE 2020","29 FEBRERO DE 2020",1378000,1378000,"WILFRAN JIMENEZ DE LA PEÑA","COORD CENTRO SALUD","CIUDADELA METROPOLITANA",609,1240,"20/02/2020","https://www.contratos.gov.co/consultas/detalleProceso.do?numConstancia=20-4-10504504"]
[60,1042442558,"DANISA PAOLA BARRIOS DE ALBA","0514-2020","NUTRICIONISTA","03 FEBRERO DE 2020","29 FEBRERO DE 2020",2300000,2300000,"DIANA MARTINEZ PACHECO","COORD CENTRO DE SALUD","CENTRO SALAMANCA",610,1241,"20/02/2020","https://www.contratos.gov.co/consultas/detalleProceso.do?numConstancia=20-4-10504547"]
[61,1045234352,"DARIANA MARCELA ROMERO CASTELLANOS","0515-2020","MEDICO MATERNIDAD SEGURA","03 FEBRERO DE 2020","29 FEBRERO DE 2020",2120000,2120000,"WILFRAN JIMENEZ DE LA PEÑA","COORD CENTRO SALUD","CIUDADELA METROPOLITANA",611,1242,"20/02/2020","https://www.contratos.gov.co/consultas/detalleProceso.do?numConstancia=20-4-10504587"]
[62,1143439595,"DAYANA PAOLA OTALORA AMAYA","0516-2020","PAI WEB ","03 FEBRERO DE 2020","29 FEBRERO DE 2020",1400000,1400000,"NILSA ARIZA MARQUEZ","COORDINADOR P Y P","ARCHIVO CENTRAL ",612,1243,"20/02/2020","https://www.contratos.gov.co/consultas/detalleProceso.do?numConstancia=20-4-10504608"]
[63,1042436934,"DAYANA PAOLA TORRES SOLANO","0517-2020","MEDICO DE URGENCIA","03 FEBRERO DE 2020","29 FEBRERO DE 2020",{"$f":"2560000+2120000/2","v":3620000},3620000,"BETTY PERTUZ ","SUBGERENTE CIENTIFICO","CIUDADELA METROPOLITANA",613,1244,"20/02/2020","https://www.contratos.gov.co/consultas/detalleProceso.do?numConstancia=20-4-10504636"]
[64,1047434688,"DAYRA ALEJANDRA COLON BLANCO ","0518-2020","MEDICO DE URGENCIA","03 FEBRERO DE 2020","29 FEBRERO DE 2020",2560000,{"$f":"H66*1","v":2560000},"BETTY PERTUZ ","SUBGERENTE CIENTIFICO","CENTRO DE 13 DE JUNIO ",614,1245,"20/02/2020","https://www.contratos.gov.co/consultas/detalleProceso.do?numConstancia=20-4-10504656"]
[65,1042436213,"DESIRET PAOLA PINTO NARVAEZ","0519-2020","ENFERMERA JEFE URGENCIAS ","03 FEBRERO DE 2020","29 FEBRERO DE 2020",1900000,1900000,"BETTY PERTUZ ","SUBGERENTE CIENTIFICO","CIUDADELA METROPOLITANA",615,1246,"20/02/2020","https://www.contratos.gov.co/consultas/detalleProceso.do?numConstancia=20-4-10504668"]
[66,1082405551,"DESIRETH ESTRADA FERNANDEZ","0520-2020","ENFERMERA JEFE P Y P ","03 FEBRERO DE 2020","29 FEBRERO DE 2020",2300000,2300000,"NILSA ARIZA MARQUEZ","COORDINADOR P Y P","CENTRO DE 13 DE JUNIO ",616,1247,"20/02/2020","https://www.contratos.gov.co/consultas/detalleProceso.do?numConstancia=20-4-10504689"]
[{"$f":"+A68+1","v":67},22524112,"DIANA SANDOVAL MANGA","0521-2020","ENFERMERA JEFE PROGRAMAS ESPECIALES","03 FEBRERO DE 2020","29 FEBRERO DE 2020",1900000,1900000,"LUIS CARLOS DE LEON BERNIER","COORD CENTRO SALUD","CENTRO MACLOVIA",617,1248,"20/02/2020","https://www.contratos.gov.co/consultas/detalleProceso.do?numConstancia=20-4-10505064"]
[68,1052949649,"DILIANA GARCIA JIMENEZ","0522-2020","ENFERMERA JEFE URGENCIAS ","03 FEBRERO DE 2020","29 FEBRERO DE 2020",1900000,1900000,"WILFRAN JIMENEZ DE LA PEÑA","COORD CENTRO SALUD","CIUDADELA METROPOLITANA",618,1249,"20/02/2020","https://www.contratos.gov.co/consultas/detalleProceso.do?numConstancia=20-4-10505074"]
[69,32818082,"DIVINA LUZ NIETO ZAMBRANO","0523-2020","AUXILIAR SERVICIOS GENERALES URGENCIA","03 FEBRERO DE 2020","29 FEBRERO DE 2020",1378000,1378000,"SERGIO BOVEA MARIN","COORD CENTRO SALUD","CENTRO DE 13 DE JUNIO ",619,1250,"20/02/2020","https://www.contratos.gov.co/consultas/detalleProceso.do?numConstancia=20-4-10505084"]
[70,32819600,"DOLIS PEDROZO TORRES","0524-2020","AUXILIAR SERVICIOS GENERALES","03 FEBRERO DE 2020","29 FEBRERO DE 2020",1215000,1215000,"LUIS GRANADOS GOMEZ","COORD CENTRO SALUD","CENTRO MANUELA BELTRAN",620,1251,"20/02/2020","https://www.contratos.gov.co/consultas/detalleProceso.do?numConstancia=20-4-10505107"]
[71,1043142073,"DORALIZ ECHEVERRI PEREZ","0525-2020","GESTION DOCUMENTAL","03 FEBRERO DE 2020","29 FEBRERO DE 2020",1500000,1500000,"FABIAN COLPAS","JEFE TALENTO HUMANO","ADMON COSTA HERMOSA",621,1252,"20/02/2020","https://www.contratos.gov.co/consultas/detalleProceso.do?numConstancia=20-4-10505147"]
[72,55222167,"DREY FLOREZ TORRES","0526-2020","PAI WEB ","03 FEBRERO DE 2020","29 FEBRERO DE 2020",1500000,1500000,"NILSA ARIZA MARQUEZ","COORDINADOR P Y P","ARCHIVO CENTRAL ",622,1253,"20/02/2020","https://www.contratos.gov.co/consultas/detalleProceso.do?numConstancia=20-4-10505156"]
[73,8735248,"EDGAR CERVANTES MELGAREJO","0527-2020","MEDICO P Y P ","03 FEBRERO DE 2020","29 FEBRERO DE 2020",2120000,2120000,"WILFRAN JIMENEZ DE LA PEÑA","COORD CENTRO SALUD","CIUDADELA METROPOLITANA",623,1254,"20/02/2020","https://www.contratos.gov.co/consultas/detalleProceso.do?numConstancia=20-4-10505171"]
[74,78302933,"EDIE JAIR GIL","0528-2020","TECNOLOGO EN RADIOLOGIA","03 FEBRERO DE 2020","29 FEBRERO DE 2020",1500000,1500000,"WILFRAN JIMENEZ DE LA PEÑA","COORD CENTRO SALUD","CIUDADELA METROPOLITANA",624,1255,"20/02/2020","https://www.contratos.gov.co/consultas/detalleProceso.do?numConstancia=20-4-10505188"]
[75,1045700355,"EDUARDO LUIS PAUTH HERNANDEZ","0529-2020","MEDICO CONSULTA EXTERNA ","03 FEBRERO DE 2020","29 FEBRERO DE 2020",3180000,3180000,"AIX PALACIO","COORD CENTRO DE SALUD","CENTRO  DE SALUD EL PARQUE",625,1256,"20/02/2020","https://www.contratos.gov.co/consultas/detalleProceso.do?numConstancia=20-4-10505217"]
[76,8734956,"EFRAIN CANTILLO GUERRERO","0530-2020","CONDUCTOR DE AMBULANCIA","03 FEBRERO DE 2020","29 FEBRERO DE 2020",1800000,1800000,"BETTY PERTUZ ","SUBGERENTE CIENTIFICO","CENTRO DE 13 DE JUNIO ",626,1257,"20/02/2020","https://www.contratos.gov.co/consultas/detalleProceso.do?numConstancia=20-4-10505227"]
[77,8750161,"EFRAIN DE LA HOZ ROCHEL","0531-2020","MEDICO DE URGENCIA","03 FEBRERO DE 2020","29 FEBRERO DE 2020",2560000,2560000,"BETTY PERTUZ ","SUBGERENTE CIENTIFICO","CENTRO DE 13 DE JUNIO ",627,1258,"20/02/2020","https://www.contratos.gov.co/consultas/detalleProceso.do?numConstancia=20-4-10505241"]
[78,1045675420,"EIBANIA MOLINA VENERA","0532-2020","AUXILIAR DE ENFERMERIA URGENCIAS","03 FEBRERO DE 2020","29 FEBRERO DE 2020",1378000,1378000,"WILFRAN JIMENEZ DE LA PEÑA","COORD CENTRO SALUD","CIUDADELA METROPOLITANA",628,1259,"20/02/2020","https://www.contratos.gov.co/consultas/detalleProceso.do?numConstancia=20-4-10505252"]
[79,32651025,"ELEISE SINING CUJIA","0533-2020","GESTION DOCUMENTAL","03 FEBRERO DE 2020","29 FEBRERO DE 2020",1500000,1500000,"FABIAN COLPAS","JEFE TALENTO HUMANO","ADMON COSTA HERMOSA",629,1260,"20/02/2020","https://www.contratos.gov.co/consultas/detalleProceso.do?numConstancia=20-4-10505292"]
[80,22570149,"ELENA BAENA PEÑA","0534-2020","AUXILIAR DE FACTURACION URGENCIA","03 FEBRERO DE 2020","29 FEBRERO DE 2020",1400000,1400000,"SANDRA SANMARTIN","SUB GERENTE ADMINISTRATIVO","CENTRO COSTA HERMOSA ",630,1261,"20/02/2020","https://www.contratos.gov.co/consultas/detalleProceso.do?numConstancia=20-4-10505301"]
[81,32772038,"ELIANA BEATRIZ ABRIL DE LA ROSA ","0535-2020","AUXILIAR ADMINISTRATIVO - RECURSOS HUMANOS  ","03 FEBRERO DE 2020","29 FEBRERO DE 2020",1900000,1900000,"FABIAN COLPAS","JEFE TALENTO HUMANO","ADMON COSTA HERMOSA",631,1262,"20/02/2020","https://www.contratos.gov.co/consultas/detalleProceso.do?numConstancia=20-4-10505320"]
[82,32787164,"ELIANA CONSTANZA ARTETA HOYOS","0536-2020","CONTADOR","03 FEBRERO DE 2020","29 FEBRERO DE 2020",3000000,3000000,"SANDRA SANMARTIN","SUB GERENTE ADMINISTRATIVO","CENTRO COSTA HERMOSA ",632,1263,"20/02/2020","https://www.contratos.gov.co/consultas/detalleProceso.do?numConstancia=20-4-10505330"]
[83,8762665,"ELIECER DE JESUS CALLE QUINTERO","0537-2020","TECNICO ALMACEN ","03 FEBRERO DE 2020","29 FEBRERO DE 2020",1900000,1900000,"MARIA SANCHEZ AYALA","JEFE ALMACEN","ARCHIVO CENTRAL ",633,1264,"20/02/2020","https://www.contratos.gov.co/consultas/detalleProceso.do?numConstancia=20-4-10505344"]
[84,8633055,"ELIECER POLO CASTRO ","0538-2020","ABOGADO EXTERNO","03 FEBRERO DE 2020","29 FEBRERO DE 2020",5800000,5800000,"ORNELLA FIORENTINO ","JEFE OFICINA JURIDICA","CENTRO COSTA HERMOSA ",634,1265,"20/02/2020","https://www.contratos.gov.co/consultas/detalleProceso.do?numConstancia=20-4-10505381"]
[85,1045751778,"SERGIO  ANDRES IFANZON CASTRO ","0539-2020","ASESOR","03 FEBRERO DE 2020","29 FEBRERO DE 2020",5800000,5800000,"ROSA MADERA","GERENTE ","ADMON COSTA HERMOSA",635,1266,"20/02/2020","https://www.contratos.gov.co/consultas/detalleProceso.do?numConstancia=20-4-10505392"]
[86,32871139,"ELLA VIZCAINO SENIOR","0540-2020","ENFERMERA JEFE ","03 FEBRERO DE 2020","29 FEBRERO DE 2020",2300000,2300000,"NILSA ARIZA MARQUEZ","COORDINADOR P Y P","CIUDADELA METROPOLITANA",636,1267,"20/02/2020","https://www.contratos.gov.co/consultas/detalleProceso.do?numConstancia=20-4-10505406"]
[87,32583401,"ELSY LIZETH CHARRIS CONTRERAS","0541-2020","MEDICO CONSULTA EXTERNA","03 FEBRERO DE 2020","29 FEBRERO DE 2020",2120000,2120000,"AIX PALACIO","COORD CENTRO DE SALUD","CENTRO  DE SALUD EL PARQUE",637,1268,"20/02/2020","https://www.contratos.gov.co/consultas/detalleProceso.do?numConstancia=20-4-10505549"]
[88,1042436156,"EMELY ESCORCIA MARTINEZ","0542-2020","ENFERMERA JEFE URGENCIAS ","03 FEBRERO DE 2020","29 FEBRERO DE 2020",1900000,1900000,"SERGIO BOVEA MARIN","COORD CENTRO SALUD","CENTRO DE 13 DE JUNIO ",638,1269,"20/02/2020","https://www.contratos.gov.co/consultas/detalleProceso.do?numConstancia=20-4-10505568"]
[89,22693401,"EMILIA ANTONIA BARCELO DE PARRA","0543-2020","AUXILIAR SERVICIOS GENERALES URGENCIA","03 FEBRERO DE 2020","29 FEBRERO DE 2020",1378000,1378000,"SERGIO BOVEA MARIN","COORD CENTRO SALUD","CENTRO DE 13 DE JUNIO ",639,1270,"20/02/2020","https://www.contratos.gov.co/consultas/detalleProceso.do?numConstancia=20-4-10505610"]
[90,1140831753,"ENNY CAROLINA ROCHA HERNANDEZ","0544-2020","ABOGADO EXTERNO","03 FEBRERO DE 2020","29 FEBRERO DE 2020",5000000,5000000,"ORNELLA FIORENTINO ","JEFE OFICINA JURIDICA","CENTRO COSTA HERMOSA ",640,1271,"20/02/2020","https://www.contratos.gov.co/consultas/detalleProceso.do?numConstancia=20-4-10505721"]
[91,8718276,"ENRIQUE PACHECO PACHECO ","0545-2020","MEDICO DE URGENCIA","03 FEBRERO DE 2020","29 FEBRERO DE 2020",2560000,2560000,"BETTY PERTUZ ","SUBGERENTE CIENTIFICO","CENTRO DE 13 DE JUNIO ",641,1272,"20/02/2020","https://www.contratos.gov.co/consultas/detalleProceso.do?numConstancia=20-4-10505740"]
[92,32866006,"ERIKA ASCENCIO MARQUEZ","0546-2020","AUXILIAR ADMINISTRATIVO ","03 FEBRERO DE 2020","29 FEBRERO DE 2020",3500000,3500000,"ORNELLA FIORENTINO ","JEFE OFICINA JURIDICA","CENTRO COSTA HERMOSA ",642,1273,"20/02/2020","https://www.contratos.gov.co/consultas/detalleProceso.do?numConstancia=20-4-10506074"]
[93,1143147791,"ERNESTO JUNIOR ROJANO MEZA","0547-2020","TECNOLOGO EN RADIOLOGIA","03 FEBRERO DE 2020","29 FEBRERO DE 2020",1500000,1500000,"WILFRAN JIMENEZ DE LA PEÑA","COORD CENTRO SALUD","CIUDADELA METROPOLITANA",643,1274,"20/02/2020","https://www.contratos.gov.co/consultas/detalleProceso.do?numConstancia=20-4-10506206"]
[94,1052970236,"ESKARLY MARIA ACOSTA ALVARADO ","0548-2020","PSICOLOGO  ","03 FEBRERO DE 2020","29 FEBRERO DE 2020",3000000,3000000,"FABIAN COLPAS","JEFE TALENTO HUMANO","ADMON COSTA HERMOSA",644,1275,"20/02/2020","https://www.contratos.gov.co/consultas/detalleProceso.do?numConstancia=20-4-10507215"]
[95,22732766,"ESMIRIS MARIA JIMENEZ GOMEZ","0549-2020","AUXILIAR SERVICIOS GENERALES","03 FEBRERO DE 2020","29 FEBRERO DE 2020",1215000,1215000,"YARELIS GUERRA CORREA","COORD CENTRO SALUD","CENTRO VILLA ESTADIO ",645,1276,"20/02/2020","https://www.contratos.gov.co/consultas/detalleProceso.do?numConstancia=20-4-10507311"]
[96,32821813,"ESPERANZA OROZCO MORENO","0550-2020","AUXILIAR DE ENFERMERIA URGENCIAS","03 FEBRERO DE 2020","29 FEBRERO DE 2020",1378000,{"$f":"H98*1","v":1378000},"SERGIO BOVEA MARIN","COORD CENTRO SALUD","CENTRO DE 13 DE JUNIO ",646,1277,"20/02/2020","https://www.contratos.gov.co/consultas/detalleProceso.do?numConstancia=20-4-10507353"]
[97,44157204,"ESTHER CECILIA SOLANO BARROS","0551-2020","MEDICO DE URGENCIA","03 FEBRERO DE 2020","29 FEBRERO DE 2020",2560000,2560000,"BETTY PERTUZ ","SUBGERENTE CIENTIFICO","CIUDADELA METROPOLITANA",647,1278,"20/02/2020","https://www.contratos.gov.co/consultas/detalleProceso.do?numConstancia=20-4-10507469"]
[98,44150678,"EUCARIS DEL CARMEN RAMBAO NIEBLES","0552-2020","MEDICO CONSULTA EXTERNA ","03 FEBRERO DE 2020","29 FEBRERO DE 2020",2120000,2120000,"AIX PALACIO","COORD CENTRO DE SALUD","CENTRO  DE SALUD EL PARQUE",648,1279,"20/02/2020","https://www.contratos.gov.co/consultas/detalleProceso.do?numConstancia=20-4-10507510"]
[99,60311278,"EVA FLOREZ PARRA ","0553-2020","MÉDICO CONSULTA EXTERNA Y APOYO A LA COORDINACIÓN MÉDICA","03 FEBRERO DE 2020","29 FEBRERO DE 2020",4640000,4640000,"VICTOR MIRANDA","SUBGERENTE CIENTIFICO","LA ESPERANZA",649,1280,"20/02/2020","https://www.contratos.gov.co/consultas/detalleProceso.do?numConstancia=20-4-10507565"]
[100,32583911,"EVA ISABEL ROSALES NAVARRO","0554-2020","ASESOR GERENCIA","03 FEBRERO DE 2020","29 FEBRERO DE 2020",5000000,5000000,"ROSA MADERA","GERENTE ","ADMON COSTA HERMOSA",650,1281,"20/02/2020","https://www.contratos.gov.co/consultas/detalleProceso.do?numConstancia=20-4-10507584"]
[101,1074712390,"EVELIN CRISTINA ZULETA SANCHEZ ","0555-2020","ENFERMERA JEFE P Y P","03 FEBRERO DE 2020","29 FEBRERO DE 2020",2300000,2300000,"NILSA ARIZA MARQUEZ","COORDINADOR P Y P","MANUELA BELTRAN",651,1282,"20/02/2020","https://www.contratos.gov.co/consultas/detalleProceso.do?numConstancia=20-4-10507596"]
[102,32789239,"MARIA DEL CARMEN GUERRERO OJEDA","0556-2020","ORIENTADOR","03 FEBRERO DE 2020","29 FEBRERO DE 2020",1270000,1270000,"SERGIO BOVEA MARIN","COORD CENTRO SALUD","CENTRO DE 13 DE JUNIO ",652,1283,"20/02/2020","https://www.contratos.gov.co/consultas/detalleProceso.do?numConstancia=20-4-10507638"]
[103,72170268,"FABIAN FERNANDO MERCADO","0557-2020","PAI WEB ","03 FEBRERO DE 2020","29 FEBRERO DE 2020",1270000,1270000,"NILSA ARIZA MARQUEZ","COORDINADOR P Y P","ARCHIVO CENTRAL ",653,1284,"20/02/2020","https://www.contratos.gov.co/consultas/detalleProceso.do?numConstancia=20-4-10507655"]
[104,8705578,"FERMIN NAVARRO STEFANELL","0558-2020","GINECOLOGO","03 FEBRERO DE 2020","29 FEBRERO DE 2020",6000000,6000000,"NILSA ARIZA MARQUEZ","COORDINADOR P Y P","CIUDADELA METROPOLITANA",654,1285,"20/02/2020","https://www.contratos.gov.co/consultas/detalleProceso.do?numConstancia=20-4-10507672"]
[105,1129520650,"FERNANDO LUIS CERA DIAZ","0559-2020","MEDICO DE URGENCIA","03 FEBRERO DE 2020","29 FEBRERO DE 2020",2560000,2560000,"WILFRAN JIMENEZ DE LA PEÑA","COORD CENTRO SALUD","CIUDADELA METROPOLITANA",655,1286,"20/02/2020","https://www.contratos.gov.co/consultas/detalleProceso.do?numConstancia=20-4-10507682"]
[106,44159527,"FLORINDA DE LA HOZ PACHECO ","0560-2020","ENFERMERA JEFE P Y P","03 FEBRERO DE 2020","29 FEBRERO DE 2020",2300000,2300000,"NILSA ARIZA MARQUEZ","COORDINADOR P Y P","VILLA ESTADIO",656,1287,"20/02/2020","https://www.contratos.gov.co/consultas/detalleProceso.do?numConstancia=20-4-10507694"]
[107,8507198,"FRANCISCO PEÑALOZA PEREZ","0561-2020","MEDICO CONSULTA EXTERNA ","03 FEBRERO DE 2020","29 FEBRERO DE 2020",2120000,2120000,"AIX PALACIO","COORD CENTRO DE SALUD","CENTRO  DE SALUD EL PARQUE",657,1288,"20/02/2020","https://www.contratos.gov.co/consultas/detalleProceso.do?numConstancia=20-4-10507705"]
[108,8750355,"FREDDY BARCELO DONADO","0562-2020","AUXILIAR DE ARCHIVO","03 FEBRERO DE 2020","29 FEBRERO DE 2020",1500000,1500000,"SANDRA SANMARTIN","SUB GERENTE ADMINISTRATIVO","ADMON COSTA HERMOSA",658,1289,"20/02/2020","https://www.contratos.gov.co/consultas/detalleProceso.do?numConstancia=20-4-10507771"]
[109,9132998,"GABRIEL ARIAS RAMIREZ","0563-2020","QUIMICO FARMACEUTICO","03 FEBRERO DE 2020","29 FEBRERO DE 2020",3000000,3000000,"BETTY PERTUZ ","SUBGERENTE CIENTIFICO","ADMON -FARMACIA",659,1290,"20/02/2020","https://www.contratos.gov.co/consultas/detalleProceso.do?numConstancia=20-4-10507802"]
[110,32756610,"GENNY GUZMAN NAVARRO","0564-2020","MEDICO DE URGENCIA","03 FEBRERO DE 2020","29 FEBRERO DE 2020",2560000,2560000,"BETTY PERTUZ ","SUBGERENTE CIENTIFICO","CIUDADELA METROPOLITANA",660,1291,"20/02/2020","https://www.contratos.gov.co/consultas/detalleProceso.do?numConstancia=20-4-10507840"]
[111,72003862,"GERARDO ARTURO CABALLERO ARIZA","0565-2020","ABOGADO EXTERNO","03 FEBRERO DE 2020","29 FEBRERO DE 2020",5800000,5800000,"ORNELLA FIORENTINO ","JEFE OFICINA JURIDICA","CENTRO COSTA HERMOSA ",661,1292,"20/02/2020","https://www.contratos.gov.co/consultas/detalleProceso.do?numConstancia=20-4-10507867"]
[112,1042448518,"GIANINA ANDREA GRAVINI DE LA HOZ","0566-2020","MEDICO DE URGENCIA","03 FEBRERO DE 2020","29 FEBRERO DE 2020",2560000,2560000,"BETTY PERTUZ ","SUBGERENTE CIENTIFICO","CENTRO DE 13 DE JUNIO ",662,1293,"20/02/2020","https://www.contratos.gov.co/consultas/detalleProceso.do?numConstancia=20-4-10507892"]
[113,1043133060,"GINNA AGUILAR ANDRADE","0567-2020","AUXILIAR DE ENFERMERIA URGENCIAS","03 FEBRERO DE 2020","29 FEBRERO DE 2020",1378000,1378000,"SERGIO BOVEA MARIN","COORD CENTRO SALUD","CENTRO DE 13 DE JUNIO ",663,1294,"20/02/2020","https://www.contratos.gov.co/consultas/detalleProceso.do?numConstancia=20-4-10507906"]
[114,1042448135,"GISELLA CAMILA ACOSTA SEGURA","0568-2020","SERVICIOS AMIGABLES ","03 FEBRERO DE 2020","29 FEBRERO DE 2020",1500000,1500000,"LUIS GRANADOS GOMEZ","COORD CENTRO SALUD","CENTRO MANUELA BELTRAN",664,1295,"20/02/2020","https://www.contratos.gov.co/consultas/detalleProceso.do?numConstancia=20-4-10507924"]
[115,44156926,"GLADYS CECILIA ESCALANTE FERRER","0569-2020","ODONTOLOGO","03 FEBRERO DE 2020","29 FEBRERO DE 2020",1900000,1900000,"DIANA MARTINEZ PACHECO","COORD CENTRO DE SALUD","CENTRO SALAMANCA",665,1296,"20/02/2020","https://www.contratos.gov.co/consultas/detalleProceso.do?numConstancia=20-4-10507965"]
[116,49555306,"GLADYS DIAZ MARIN","0570-2020","AUXILIAR DE FACTURACION URGENCIA","03 FEBRERO DE 2020","29 FEBRERO DE 2020",1400000,1400000,"SANDRA SANMARTIN","SUB GERENTE ADMINISTRATIVO","CENTRO COSTA HERMOSA ",666,1297,"20/02/2020","https://www.contratos.gov.co/consultas/detalleProceso.do?numConstancia=20-4-10508008"]
[117,24341220,"GLADYS OTALVARO BOTERO","0571-2020","AGENTE CALL CENTER","03 FEBRERO DE 2020","29 FEBRERO DE 2020",1378000,1378000,"BETTY PERTUZ ","SUBGERENTE CIENTIFICO","COLL-CENTER- CIUDADELA METROPOLITANA",667,1298,"20/02/2020","https://www.contratos.gov.co/consultas/detalleProceso.do?numConstancia=20-4-10508142"]
[118,22644596,"GRACIELA BUSTOS RIVEROS","0572-2020","AUXILIAR ADMINISTRATIVO DE FACTURACIÒN","03 FEBRERO DE 2020","29 FEBRERO DE 2020",1600000,1600000,"SANDRA SANMARTIN","SUB GERENTE ADMINISTRATIVO","CENTRO COSTA HERMOSA ",668,1299,"20/02/2020","https://www.contratos.gov.co/consultas/detalleProceso.do?numConstancia=20-4-10508153"]
[119,30568187,"HAIDE MEJIA PRADO","0573-2020","AUXILIAR SERVICIOS GENERALES URGENCIA","03 FEBRERO DE 2020","29 FEBRERO DE 2020",1378000,1378000,"WILFRAN JIMENEZ DE LA PEÑA","COORD CENTRO SALUD","CIUDADELA METROPOLITANA",669,1300,"20/02/2020","https://www.contratos.gov.co/consultas/detalleProceso.do?numConstancia=20-4-10508178"]
[120,1143425564,"HECTOR JOSE BARRAZA GUTIERREZ","0574-2020","ASESOR DE PRESUPUESTO","03 FEBRERO DE 2020","29 FEBRERO DE 2020",4500000,4500000,"NICOLAS OQUENDO","DIRECTOR FINANCIERO","ADMON COSTA HERMOSA",670,1301,"20/02/2020","https://www.contratos.gov.co/consultas/detalleProceso.do?numConstancia=20-4-10508457"]
[121,44154490,"HEIDY LUZ CARRILLO DIAZ","0575-2020","AUXILIAR ADMINISTRATIVO DE FACTURACIÒN","03 FEBRERO DE 2020","29 FEBRERO DE 2020",1900000,1900000,"LUIS GRANADOS GOMEZ","COORD CENTRO SALUD","CENTRO MANUELA BELTRAN",671,1302,"20/02/2020","https://www.contratos.gov.co/consultas/detalleProceso.do?numConstancia=20-4-10508516"]
[122,1042440903,"HEIDY MARTINEZ GUTIERREZ","0576-2020","AUXILIAR DE FACTURACION URGENCIA","03 FEBRERO DE 2020","29 FEBRERO DE 2020",1400000,1400000,"SANDRA SANMARTIN","SUB GERENTE ADMINISTRATIVO","CENTRO COSTA HERMOSA ",672,1303,"20/02/2020","https://www.contratos.gov.co/consultas/detalleProceso.do?numConstancia=20-4-10508567"]
[123,8763571,"HENRY ALFREDO PERTUZ GALVAN","0577-2020","ORIENTADOR","03 FEBRERO DE 2020","29 FEBRERO DE 2020",1500000,1500000,"YARELIS GUERRA CORREA","COORD CENTRO SALUD","CENTRO VILLA ESTADIO ",673,1304,"20/02/2020","https://www.contratos.gov.co/consultas/detalleProceso.do?numConstancia=20-4-10510699"]
[124,1143466577,"HOLLMAN DE JESUS ARENAS VERGARA","0578-2020","ORIENTADOR","03 FEBRERO DE 2020","29 FEBRERO DE 2020",1270000,1270000,"SERGIO BOVEA MARIN","COORD CENTRO SALUD","CENTRO DE 13 DE JUNIO ",674,1305,"20/02/2020","https://www.contratos.gov.co/consultas/detalleProceso.do?numConstancia=20-4-10510722"]
[125,72045976,"HUMBERTO ZACARIAS CADAVID ALDANA","0579-2020","ASESOR GERENCIA","03 FEBRERO DE 2020","29 FEBRERO DE 2020",4000000,4000000,"ROSA MADERA","GERENTE ","ADMON COSTA HERMOSA",675,1306,"20/02/2020","https://www.contratos.gov.co/consultas/detalleProceso.do?numConstancia=20-4-10510736"]
[126,33005079,"IDALMIS NAVARRO ARROYO","0580-2020","AUXILIAR SERVICIOS GENERALES URGENCIA","03 FEBRERO DE 2020","29 FEBRERO DE 2020",1378000,1378000,"WILFRAN JIMENEZ DE LA PEÑA","COORD CENTRO SALUD","CIUDADELA METROPOLITANA",676,1307,"20/02/2020","https://www.contratos.gov.co/consultas/detalleProceso.do?numConstancia=20-4-10510758"]
[127,1129571476,"ILIANA MATOS RAMOS","0581-2020","ABOGADO EXTERNO","03 FEBRERO DE 2020","29 FEBRERO DE 2020",4000000,4000000,"ORNELLA FIORENTINO ","JEFE JURIDICA","ADMON COSTA HERMOSA",677,1308,"20/02/2020","https://www.contratos.gov.co/consultas/detalleProceso.do?numConstancia=20-4-10510773"]
[128,32861543,"INGRID NAVARRO CARRILLO","0582-2020","FISIOTERAPEUTA ","03 FEBRERO DE 2020","29 FEBRERO DE 2020",5000000,{"$f":"H130*1","v":5000000},"SERGIO BOVEA MARIN","COORD CENTRO SALUD","CENTRO DE 13 DE JUNIO ",678,1309,"20/02/2020","https://www.contratos.gov.co/consultas/detalleProceso.do?numConstancia=20-4-10510780"]
[129,1003265428,"ISABEL CURIEL CORTINA","0583-2020","GESTION DOCUMENTAL JURIDICA","03 FEBRERO DE 2020","29 FEBRERO DE 2020",1270000,1270000,"ORNELLA FIORENTINO ","JEFE OFICINA JURIDICA","CENTRO COSTA HERMOSA ",679,1310,"20/02/2020","https://www.contratos.gov.co/consultas/detalleProceso.do?numConstancia=20-4-10510799"]
[130,72428579,"IVAN ANDRES DOMINGUEZ SAGBINI","0584-2020","GINECOLOGO ","03 FEBRERO DE 2020","29 FEBRERO DE 2020",6000000,6000000,"NILSA ARIZA MARQUEZ","COORDINADOR P Y P","CIUDADELA METROPOLITANA",680,1311,"20/02/2020","https://www.contratos.gov.co/consultas/detalleProceso.do?numConstancia=20-4-10510824"]
[{"$f":"+A132+1","v":131},1042447104,"IVOR ANDRES SANJUAN PEREZ","0585-2020","AUXILIAR RECURSOS FISICOS ","03 FEBRERO DE 2020","29 FEBRERO DE 2020",1900000,1900000,"SANDRA SANMARTIN","SUB GERENTE ADMINISTRATIVO","CENTRO COSTA HERMOSA ",681,1312,"20/02/2020","https://www.contratos.gov.co/consultas/detalleProceso.do?numConstancia=20-4-10510883"]
[132,72429926,"JAIRO ESCOBAR ROMERO","0586-2020","MEDICO DE URGENCIA","03 FEBRERO DE 2020","29 FEBRERO DE 2020",2560000,2560000,"BETTY PERTUZ ","SUBGERENTE CIENTIFICO","CENTRO DE 13 DE JUNIO ",682,1313,"20/02/2020","https://www.contratos.gov.co/consultas/detalleProceso.do?numConstancia=20-4-10510927"]
[133,32703101,"JANETH DEL CARMEN GUZMAN CANTILLO","0587-2020","COORDINADOR DE FACTURACION","03 FEBRERO DE 2020","29 FEBRERO DE 2020",1600000,1600000,"YARELIS GUERRA CORREA","COORD CENTRO SALUD","CENTRO VILLA ESTADIO ",683,1314,"20/02/2020","https://www.contratos.gov.co/consultas/detalleProceso.do?numConstancia=20-4-10510943"]
[134,26900583,"JANETH JIMENEZ PEÑA","0588-2020","TRABAJADORA SOCIAL ","03 FEBRERO DE 2020","29 FEBRERO DE 2020",2500000,2500000,"CARLOS VISBAL JIMENEZ","COORD CENTRO SALUD","CENTRO COSTA HERMOSA ",684,1315,"20/02/2020","https://www.contratos.gov.co/consultas/detalleProceso.do?numConstancia=20-4-10510957"]
[135,72072808,"JARID BERDUGO COBO ","0589-2020","REFERENCIA Y CONTRAREFERENCIA","03 FEBRERO DE 2020","29 FEBRERO DE 2020",1480000,1480000,"WILFRAN JIMENEZ DE LA PEÑA","COORD CENTRO SALUD","CIUDADELA METROPOLITANA",685,1316,"20/02/2020","https://www.contratos.gov.co/consultas/detalleProceso.do?numConstancia=20-4-10510972"]
[136,8566485,"JAVIER VLADIMIR CASTRO POVEA","0590-2020","ABOGADO - TALENTO HUMANO","03 FEBRERO DE 2020","29 FEBRERO DE 2020",5000000,5000000,"FABIAN COLPAS","JEFE TALENTO HUMANO","ADMON COSTA HERMOSA",686,1317,"20/02/2020","https://www.contratos.gov.co/consultas/detalleProceso.do?num"]
[137,1143453456,"JEAN DAVID MONTALVO ZULETA","0591-2020","AGENTE CALL CENTER","03 FEBRERO DE 2020","29 FEBRERO DE 2020",1378000,1378000,"BETTY PERTUZ ","SUBGERENTE CIENTIFICO","COLL-CENTER- CIUDADELA METROPOLITANA",687,1318,"20/02/2020","https://www.contratos.gov.co/consultas/detalleProceso.do?numConstancia=20-4-10511159"]
[138,32869709,"JENECIS BARRERA MIRANDA","0592-2020","ENFERMERA MATERNIDAD SEGURA ","03 FEBRERO DE 2020","29 FEBRERO DE 2020",2300000,2300000,"NILSA ARIZA MARQUEZ","COORDINADOR P Y P","CENTRO DE 13 DE JUNIO ",688,1319,"20/02/2020","https://www.contratos.gov.co/consultas/detalleProceso.do?numConstancia=20-4-10511180"]
[139,55349541,"JESSICA MARIA ALMARALES RUIZ","0593-2020","MEDICO DE URGENCIA","03 FEBRERO DE 2020","29 FEBRERO DE 2020",2560000,2560000,"WILFRAN JIMENEZ DE LA PEÑA","COORD CENTRO SALUD","CIUDADELA METROPOLITANA",689,1320,"20/02/2020","https://www.contratos.gov.co/consultas/detalleProceso.do?numConstancia=20-4-10511197"]
[140,1042460532,"JESUS  DAVID PEDRAZA TORRES","0594-2020","TECNICO SISTEMAS","03 FEBRERO DE 2020","29 FEBRERO DE 2020",1500000,1500000,"ZULI ROMERO","COORDINADOR TIC","ADMON COSTA HERMOSA",690,1321,"20/02/2020","https://www.contratos.gov.co/consultas/detalleProceso.do?numConstancia=20-4-10511251"]
[141,1042444925,"JESUS MORENO DE ALBA","0595-2020","AUXILIAR DE FACTURACION URGENCIA","03 FEBRERO DE 2020","29 FEBRERO DE 2020",1400000,1400000,"SERGIO BOVEA MARIN","COORD CENTRO SALUD","CENTRO DE 13 DE JUNIO ",691,1322,"20/02/2020","https://www.contratos.gov.co/consultas/detalleProceso.do?numConstancia=20-4-10511277"]
[142,8740611,"JESUS RECUERO LAMADRID","0596-2020","ORIENTADOR","03 FEBRERO DE 2020","29 FEBRERO DE 2020",1270000,1270000,"WILFRAN JIMENEZ DE LA PEÑA","COORD CENTRO SALUD","CIUDADELA METROPOLITANA",692,1323,"20/02/2020","https://www.contratos.gov.co/consultas/detalleProceso.do?numConstancia=20-4-10511337"]
[143,44161544,"JHOANA CATALINA SANDOVAL ESCORCIA","0597-2020","ENFERMERA JEFE URGENCIAS ","03 FEBRERO DE 2020","29 FEBRERO DE 2020",1900000,1900000,"SERGIO BOVEA MARIN","COORD CENTRO SALUD","CENTRO DE 13 DE JUNIO ",693,1324,"20/02/2020","https://www.contratos.gov.co/consultas/detalleProceso.do?numConstancia=20-4-10511405"]
[144,1042444832,"JHONNATAN ALFONSO DE LA HOZ BARRIOS","0598-2020","MEDICO CONSULTA EXTERNA ","03 FEBRERO DE 2020","29 FEBRERO DE 2020",{"$f":"2120000*2","v":4240000},4240000,"AIX PALACIO","COORD CENTRO DE SALUD","CIUDADELA METROPOLITANA",694,1325,"20/02/2020","https://www.contratos.gov.co/consultas/detalleProceso.do?numConstancia=20-4-10511422"]
[145,1045706679,"JONATHAN ACOSTA MORENO","0599-2020","MEDICO DE URGENCIA","03 FEBRERO DE 2020","29 FEBRERO DE 2020",2560000,2560000,"BETTY PERTUZ ","SUBGERENTE CIENTIFICO","CIUDADELA METROPOLITANA",695,1326,"20/02/2020","https://www.contratos.gov.co/consultas/detalleProceso.do?numConstancia=20-4-10511442"]
[146,8754502,"JORGE DE LA HOZ DE LA HOZ","0600-2020","ORIENTADOR","03 FEBRERO DE 2020","29 FEBRERO DE 2020",1270000,1270000,"DIANA MARTINEZ PACHECO","COORD CENTRO DE SALUD","CENTRO SALAMANCA",696,1327,"20/02/2020","https://www.contratos.gov.co/consultas/detalleProceso.do?numConstancia=20-4-10511473"]
[147,8776312,"JORGE RIVERA MEZA","0601-2020","AUXILIAR RECURSOS FISICOS ","03 FEBRERO DE 2020","29 FEBRERO DE 2020",1900000,1900000,"SANDRA SANMARTIN","SUB GERENTE ADMINISTRATIVO","CENTRO COSTA HERMOSA ",697,1328,"20/02/2020","https://www.contratos.gov.co/consultas/detalleProceso.do?numConstancia=20-4-10511488"]
[148,8704073,"JOSE ALFREDO JIMENEZ CASTRO","0602-2020","ORIENTADOR","03 FEBRERO DE 2020","29 FEBRERO DE 2020",1270000,1270000,"AIX PALACIO","COORD CENTRO DE SALUD","CENTRO  DE SALUD EL PARQUE",698,1329,"20/02/2020","https://www.contratos.gov.co/consultas/detalleProceso.do?numConstancia=20-4-10511499"]
[149,1140855812,"JOSE DAVID NOGUERA SOTO","0603-2020","GESTIÓN DOCUMENTAL CONTRATACIÓN","03 FEBRERO DE 2020","29 FEBRERO DE 2020",2300000,2300000,"ORNELLA FIORENTINO","JEFE OFICINA JURIDICA","ADMON COSTA HERMOSA",699,1330,"20/02/2020","https://www.contratos.gov.co/consultas/detalleProceso.do?numConstancia=20-4-10511512"]
[150,1045698343,"JOSE FRANCISCO INFANZON CASTRO","0604-2020","PROFESIONAL DE RECURSOS FISICOS","03 FEBRERO DE 2020","29 FEBRERO DE 2020",5800000,5800000,"ROSA MADERA","GERENTE ","ADMON COSTA HERMOSA",700,1331,"20/02/2020","https://www.contratos.gov.co/consultas/detalleProceso.do?numConstancia=20-4-10511529"]
[151,8532785,"JOSE GUERRERO ORTIZ","0605-2020","AGENTE CALL CENTER","03 FEBRERO DE 2020","29 FEBRERO DE 2020",1378000,1378000,"BETTY PERTUZ ","SUBGERENTE CIENTIFICO","COLL-CENTER- CIUDADELA METROPOLITANA",701,1332,"20/02/2020","https://www.contratos.gov.co/consultas/detalleProceso.do?numConstancia=20-4-10511548"]
[152,72434909,"JOSE IGNACIO DE ALBA MARTINEZ","0606-2020","AUXILIAR DE ARCHIVO-juridico","03 FEBRERO DE 2020","29 FEBRERO DE 2020",1500000,1500000,"ORNELLA FIORENTINO","SUB GERENTE ADMINISTRATIVO","ARCHIVO CENTRAL ",702,1333,"20/02/2020","https://www.contratos.gov.co/consultas/detalleProceso.do?numConstancia=20-4-10511592"]
[153,72271514,"JOSE LUIS FLOREZ DIAZ","0607-2020","AUXILIAR ADMINISTRATIVO VENTANILLA","03 FEBRERO DE 2020","29 FEBRERO DE 2020",1900000,1900000,"SANDRA SANMARTIN","SUB GERENTE ADMINISTRATIVO","COSTA HERMOSA",703,1334,"20/02/2020","https://www.contratos.gov.co/consultas/detalleProceso.do?numConstancia=20-4-10511606"]
[154,9143862,"JOSE LUIS LEAL CORREA","0608-2020","AUXILIAR DE FARMACIA ","03 FEBRERO DE 2020","29 FEBRERO DE 2020",1270000,1270000,"BETTY PERTUZ ","SUBGERENTE CIENTIFICO","FARMACIA COSTA HERMOSA",704,1335,"20/02/2020","https://www.contratos.gov.co/consultas/detalleProceso.do?numConstancia=20-4-10511655"]
[155,72165796,"JOSE SALVADOR FERNANDEZ RODELO","0609-2020","ORIENTADOR","03 FEBRERO DE 2020","29 FEBRERO DE 2020",1270000,1270000,"WILFRAN JIMENEZ DE LA PEÑA","COORD CENTRO SALUD","CIUDADELA METROPOLITANA",705,1336,"20/02/2020","https://www.contratos.gov.co/consultas/detalleProceso.do?numConstancia=20-4-10511669"]
[156,32810582,"JOSEFINA CARO VITOLA","0610-2020","AUXILIAR DE ENFERMERIA URGENCIAS","03 FEBRERO DE 2020","29 FEBRERO DE 2020",1378000,1378000,"SERGIO BOVEA MARIN","COORD CENTRO SALUD","CENTRO DE 13 DE JUNIO ",706,1337,"20/02/2020","https://www.contratos.gov.co/consultas/detalleProceso.do?numConstancia=20-4-10511701"]
[157,1042442139,"JOSHIKY ESTHER AHUMADA PACHECO","0611-2020","ENFERMERA JEFE CONSULTA EXTERNA ","03 FEBRERO DE 2020","29 FEBRERO DE 2020",2300000,2300000,"NILSA ARIZA MARQUEZ","COORDINADOR P Y P","MANUELA BELTRAN",707,1338,"20/02/2020","https://www.contratos.gov.co/consultas/detalleProceso.do?numConstancia=20-4-10511718"]
[158,72242552,"JUAN CAMILO CASTILLO ARIZA","0612-2020","MEDICO CONSULTA EXTERNA ","03 FEBRERO DE 2020","29 FEBRERO DE 2020",3180000,3180000,"CARLOS VISBAL JIMENEZ","COORD CENTRO SALUD","CENTRO COSTA HERMOSA ",708,1339,"20/02/2020","https://www.contratos.gov.co/consultas/detalleProceso.do?numConstancia=20-4-10511745"]
[159,72095954,"JUAN CARLOS BARROS CARO","0613-2020","ASESOR GERENCIA","03 FEBRERO DE 2020","29 FEBRERO DE 2020",4500000,4500000,"ROSA MADERA","GERENTE ","ADMON COSTA HERMOSA",709,1340,"20/02/2020","https://www.contratos.gov.co/consultas/detalleProceso.do?numConstancia=20-4-10511764"]
[160,72278234,"JUAN GABRIEL FRANCO PRENT","0614-2020","COORDINADOR DE FACTURACION","03 FEBRERO DE 2020","29 FEBRERO DE 2020",4375000,{"$f":"H162*1","v":4375000},"SANDRA SANMARTIN","SUB GERENTE ADMINISTRATIVO","CENTRO COSTA HERMOSA ",710,1341,"20/02/2020","https://www.contratos.gov.co/consultas/detalleProceso.do?numConstancia=20-4-10511778"]
[161,8667553,"JUAN SANDOVAL BOLIVAR","0615-2020","ODONTOLOGO","03 FEBRERO DE 2020","29 FEBRERO DE 2020",{"$f":"1900000/2+1900000","v":2850000},2850000,"LUIS GRANADOS GOMEZ","COORD CENTRO SALUD","CENTRO MANUELA BELTRAN",711,1342,"20/02/2020","https://www.contratos.gov.co/consultas/detalleProceso.do?numConstancia=20-4-10511801"]
[162,26853643,"JUDITH CHARRIS MACHADO ","0616-2020","ENFERMERA JEFE URGENCIAS ","03 FEBRERO DE 2020","29 FEBRERO DE 2020",1900000,1900000,"WILFRAN JIMENEZ DE LA PEÑA","COORD CENTRO SALUD","CIUDADELA METROPOLITANA",712,1343,"20/02/2020","https://www.contratos.gov.co/consultas/detalleProceso.do?numConstancia=20-4-10511872"]
[163,32814077,"JUDITH TORRES CASTILLO","0617-2020","COORDINADOR DE FACTURACION","03 FEBRERO DE 2020","29 FEBRERO DE 2020",1600000,1600000,"AIX PALACIO","COORD CENTRO DE SALUD","CENTRO  DE SALUD EL PARQUE",713,1344,"20/02/2020","https://www.contratos.gov.co/consultas/detalleProceso.do?numConstancia=20-4-10511900"]
[164,32712489,"JULIA ESTELLA RIVERA TREJOS","0618-2020","MEDICO DE URGENCIA","03 FEBRERO DE 2020","29 FEBRERO DE 2020",2560000,2560000,"BETTY PERTUZ ","SUBGERENTE CIENTIFICO","CIUDADELA METROPOLITANA",714,1345,"20/02/2020","https://www.contratos.gov.co/consultas/detalleProceso.do?numConstancia=20-4-10511925"]
[165,1042443708,"JULIETH ANDREA CAMACHO CHACON","0619-2020","ENFERMERA JEFE","03 FEBRERO DE 2020","29 FEBRERO DE 2020",2300000,2300000,"NILSA ARIZA MARQUEZ","COORDINADOR P Y P","COSTA HERMOSA",715,1346,"20/02/2020","https://www.contratos.gov.co/consultas/detalleProceso.do?numConstancia=20-4-10511947"]
[166,73140179,"JULIO CESAR LOPEZ ROMERO","0620-2020","PAI WEB ","03 FEBRERO DE 2020","29 FEBRERO DE 2020",1378000,1378000,"NILSA ARIZA MARQUEZ","COORDINADOR PYP","ARCHIVO CENTRAL ",716,1347,"20/02/2020","https://www.contratos.gov.co/consultas/detalleProceso.do?numConstancia=20-4-10511962"]
[167,22468261,"KANYA MALLERLY BERNAL BECERRA ","0621-2020","PAI WEB ","03 FEBRERO DE 2020","29 FEBRERO DE 2020",2200000,2200000,"NILSA ARIZA MARQUEZ",{"$f":"+K168","v":"COORDINADOR PYP"},"ARCHIVO CENTRAL ",717,1348,"20/02/2020","https://www.contratos.gov.co/consultas/detalleProceso.do?numConstancia=20-4-10512000"]
[168,22642500,"KAREN BETZY MORALES CASTILLO ","0622-2020","PROMOTORA EN SALUD-DENGUE","03 FEBRERO DE 2020","29 FEBRERO DE 2020",1400000,1400000,"BETTY PERTUZ ","SUBGERENTE CIENTIFICO",null,718,1349,"20/02/2020","https://www.contratos.gov.co/consultas/detalleProceso.do?numConstancia=20-4-10512018"]
[169,1043841968,"KAREN DAYANA FONSECA MUÑOZ","0623-2020","MEDICO DE URGENCIA","03 FEBRERO DE 2020","29 FEBRERO DE 2020",2560000,2560000,"SERGIO BOVEA MARIN","COORD CENTRO SALUD","CENTRO DE 13 DE JUNIO ",719,1350,"20/02/2020","https://www.contratos.gov.co/consultas/detalleProceso.do?numConstancia=20-4-10512041"]
[170,1129508435,"KAREN MARIA RODRIGUEZ MOVILLA","0624-2020","AUXILIAR DE FARMACIA ","03 FEBRERO DE 2020","29 FEBRERO DE 2020",1270000,1270000,"BETTY PERTUZ ","SUBGERENTE CIENTIFICO","ADMON -FARMACIA",720,1351,"20/02/2020","https://www.contratos.gov.co/consultas/detalleProceso.do?numConstancia=20-4-10512064"]
[171,55313269,"KAREN MARTINEZ BRANGO","0625-2020","AUXILIAR ENFERMERIA URGENCIAS","03 FEBRERO DE 2020","29 FEBRERO DE 2020",1378000,1378000,"SERGIO BOVEA MARIN","COORD CENTRO SALUD","CENTRO DE 13 DE JUNIO ",721,1352,"20/02/2020","https://www.contratos.gov.co/consultas/detalleProceso.do?numConstancia=20-4-10512103"]
[172,1129513283,"KARINE MILENA LEONES MARQUEZ","0626-2020","AUXILIAR DE FARMACIA ","03 FEBRERO DE 2020","29 FEBRERO DE 2020",1905000,1905000,"BETTY PERTUZ ","SUBGERENTE CIENTIFICO","CIUDADELA METROPOLITANA",722,1353,"20/02/2020","https://www.contratos.gov.co/consultas/detalleProceso.do?numConstancia=20-4-10512128"]
[173,1083433669,"KARLA MARIA SUAREZ MUÑOZ","0627-2020","AUXILIAR DE ENFERMERIA URGENCIAS","03 FEBRERO DE 2020","29 FEBRERO DE 2020",1378000,{"$f":"+H175","v":1378000},"WILFRAN JIMENEZ DE LA PEÑA","COORD CENTRO SALUD","CIUDADELA METROPOLITANA",723,1354,"20/02/2020","https://www.contratos.gov.co/consultas/detalleProceso.do?numConstancia=20-4-10512147"]
[174,22534402,"KATERINE RUA SUAREZ","0628-2020","AUXILIAR DE FACTURACION URGENCIA","03 FEBRERO DE 2020","29 FEBRERO DE 2020",1400000,{"$f":"H176*1","v":1400000},"SANDRA SANMARTIN","SUB GERENTE ADMINISTRATIVO","CENTRO COSTA HERMOSA ",724,1355,"20/02/2020","https://www.contratos.gov.co/consultas/detalleProceso.do?numConstancia=20-4-10512184"]
[175,1042429330,"KATHERINE  BALZA SALAS","0629-2020","AUXILIAR DE ARCHIVO","03 FEBRERO DE 2020","29 FEBRERO DE 2020",1500000,1500000,"SANDRA SANMARTIN","SUB GERENTE ADMINISTRATIVO","ARCHIVO CENTRAL ",725,1356,"20/02/2020","https://www.contratos.gov.co/consultas/detalleProceso.do?numConstancia=20-4-10512207"]
[176,22804794,"KATHERINE GUERRERO SEPULVEDA","0630-2020","ABOGADO EXTERNO - CONTRATACION","03 FEBRERO DE 2020","29 FEBRERO DE 2020",5800000,5800000,"ORNELLA FIORENTINO ","JEFE OFICINA JURIDICA","CENTRO COSTA HERMOSA ",726,1357,"20/02/2020","https://www.contratos.gov.co/consultas/detalleProceso.do?numConstancia=20-4-10512222"]
[177,32894662,"KATTY MACIAS PONTON ","0631-2020","MEDICO DE URGENCIA","03 FEBRERO DE 2020","29 FEBRERO DE 2020",2560000,2560000,"WILFRAN JIMENEZ DE LA PEÑA","COORD CENTRO SALUD","CIUDADELA METROPOLITANA",727,1358,"20/02/2020","https://www.contratos.gov.co/consultas/detalleProceso.do?numConstancia=20-4-10512244"]
[178,55301340,"KATYA LILIANA NORIEGA BARRIOS","0632-2020","AUXILIAR DE ENFERMERIA URGENCIAS","03 FEBRERO DE 2020","29 FEBRERO DE 2020",1378000,1378000,"SERGIO BOVEA MARIN","COORD CENTRO SALUD","CENTRO DE 13 DE JUNIO ",728,1359,"20/02/2020","https://www.contratos.gov.co/consultas/detalleProceso.do?numConstancia=20-4-10512265"]
[179,22642874,"KELLYS JOHANA URUETA SUAREZ","0633-2020","AUXILIAR SERVICIOS GENERALES URGENCIA","03 FEBRERO DE 2020","29 FEBRERO DE 2020",1378000,1378000,"WILFRAN JIMENEZ DE LA PEÑA","COORD CENTRO SALUD","CIUDADELA METROPOLITANA",729,1360,"20/02/2020","https://www.contratos.gov.co/consultas/detalleProceso.do?numConstancia=20-4-10512304"]
[180,1129581013,"KERLY JHOVELIS PITRE MORENO","0634-2020","ENFERMERA JEFE P Y P","03 FEBRERO DE 2020","29 FEBRERO DE 2020",2300000,2300000,"NILSA ARIZA MARQUEZ","COORDINADOR P Y P","CIUDADELA METROPOLITANA",730,1361,"20/02/2020","https://www.contratos.gov.co/consultas/detalleProceso.do?numConstancia=20-4-10512331"]
[181,1045697885,"LAURA ALANDETE CASTRO","0635-2020","MEDICO DE URGENCIA","03 FEBRERO DE 2020","29 FEBRERO DE 2020",2560000,2560000,"SERGIO BOVEA MARIN","COORD CENTRO SALUD","CENTRO DE 13 DE JUNIO ",731,1362,"20/02/2020","https://www.contratos.gov.co/consultas/detalleProceso.do?numConstancia=20-4-10512346"]
[182,22739758,"LAURA MELENDEZ SALAZAR","0636-2020","ODONTOLOGO","03 FEBRERO DE 2020","29 FEBRERO DE 2020",1900000,1900000,"YARELIS GUERRA CORREA","COORD CENTRO DE SALUD","CENTRO VILLA ESTADIO ",732,1363,"20/02/2020","https://www.contratos.gov.co/consultas/detalleProceso.do?numConstancia=20-4-10512422"]
[183,1045747916,"LEIDY DIANA PAEZ OROZCO","0637-2020","ENFERMERA JEFE ","03 FEBRERO DE 2020","29 FEBRERO DE 2020",1900000,1900000,"LUIS CARLOS DE LEON BERNIER","COORD CENTTRO SALUD","CENTRO MACLOVIA",733,1364,"20/02/2020","https://www.contratos.gov.co/consultas/detalleProceso.do?numConstancia=20-4-10512492"]
[184,32879736,"LEISYS MARIA CASTRO OLARTE","0638-2020","AUXILIAR DE FACTURACION URGENCIA","03 FEBRERO DE 2020","29 FEBRERO DE 2020",1400000,1400000,"SANDRA SANMARTIN","SUB GERENTE ADMINISTRATIVO","CENTRO COSTA HERMOSA ",734,1365,"20/02/2020","https://www.contratos.gov.co/consultas/detalleProceso.do?numConstancia=20-4-10512530"]
[185,1140846298,"LENIN ALVAREZ PINEDA","0639-2020","INGENIERO DE SOPORTE ","03 FEBRERO DE 2020","29 FEBRERO DE 2020",3000000,3000000,"NILSA ARIZA MARQUEZ","COORDINADOR P Y P","CENTRO COSTA HERMOSA ",735,1366,"20/02/2020","https://www.contratos.gov.co/consultas/detalleProceso.do?numConstancia=20-4-10512555"]
[186,1002157167,"LEODALIZ SALGADO GUERRERO","0640-2020","AGENTE CALL CENTER","03 FEBRERO DE 2020","29 FEBRERO DE 2020",1400000,1400000,"BETTY PERTUZ ","SUB GERENTE ADMINISTRATIVO","CENTRO COSTA HERMOSA ",736,1367,"20/02/2020","https://www.contratos.gov.co/consultas/detalleProceso.do?numConstancia=20-4-10513241"]
[187,1090415871,"LEONARDO BELLO PUENTES","0641-2020","ODONTOLOGO","03 FEBRERO DE 2020","29 FEBRERO DE 2020",1900000,1900000,"WILFRAN JIMENEZ DE LA PEÑA","COORD CENTRO SALUD","CIUDADELA METROPOLITANA",737,1368,"20/02/2020","https://www.contratos.gov.co/consultas/detalleProceso.do?numConstancia=20-4-10513406"]
[188,7469739,"LEOVALDO MENDOZA PAREJO","0642-2020","ORIENTADOR","03 FEBRERO DE 2020","29 FEBRERO DE 2020",1270000,1270000,"WILFRAN JIMENEZ DE LA PEÑA","COORD CENTRO SALUD","CIUDADELA METROPOLITANA",738,1369,"20/02/2020","https://www.contratos.gov.co/consultas/detalleProceso.do?numConstancia=20-4-10513419"]
[189,1045712889,"LEYDILLY ROJANO GOMEZ","0643-2020","ENFERMERA JEFE URGENCIAS ","03 FEBRERO DE 2020","29 FEBRERO DE 2020",1900000,1900000,"SERGIO BOVEA MARIN","COORD CENTRO SALUD","CENTRO DE 13 DE JUNIO ",739,1370,"20/02/2020","https://www.contratos.gov.co/consultas/detalleProceso.do?numConstancia=20-4-10513435"]
[190,42205053,"LIBIA ELENA BELEÑO MENDOZA","0644-2020","TRABAJADORA SOCIAL","03 FEBRERO DE 2020","29 FEBRERO DE 2020",2300000,2300000,"WILFRAN JIMENEZ DE LA PEÑA","COORD CENTRO SALUD","CIUDADELA METROPOLITANA",740,1371,"20/02/2020","https://www.contratos.gov.co/consultas/detalleProceso.do?numConstancia=20-4-10513576"]
[191,40981378,"LIDYS CASTILLO TOVAR","0645-2020","PROFESIONAL OFICINA PAGADURIA  ","03 FEBRERO DE 2020","29 FEBRERO DE 2020",4000000,4000000,"LISGLENIS BUENO BRICEÑO","JEFE TESORERIA","ADMON COSTA HERMOSA",741,1372,"20/02/2020","https://www.contratos.gov.co/consultas/detalleProceso.do?numConstancia=20-4-10513616"]
[192,32772357,"LIDYS ESTHER REALES CASTRO ","0646-2020","AUXILIAR DE ENFERMERIA URGENCIAS","03 FEBRERO DE 2020","29 FEBRERO DE 2020",1378000,1378000,"WILFRAN JIMENEZ DE LA PEÑA","COORD CENTRO SALUD","CIUDADELA METROPOLITANA",742,1373,"20/02/2020","https://www.contratos.gov.co/consultas/detalleProceso.do?numConstancia=20-4-10513638"]
[193,32646304,"LILIAN ESTHER ANTEQUERA MANTILLA","0647-2020","AUXILIAR DE ENFERMERIA","03 FEBRERO DE 2020","29 FEBRERO DE 2020",1166000,1166000,"LUIS GRANADOS GOMEZ","COORD CENTRO SALUD","CENTRO MANUELA BELTRAN",743,1374,"20/02/2020","https://www.contratos.gov.co/consultas/detalleProceso.do?numConstancia=20-4-10513667"]
[194,32796648,"LILIANA OROZCO ROJAS ","0648-2020","ODONTOLOGO","03 FEBRERO DE 2020","29 FEBRERO DE 2020",1900000,1900000,"DIANA MARTINEZ PACHECO","COORD CENTRO DE SALUD","CENTRO SALAMANCA",744,1375,"20/02/2020","https://www.contratos.gov.co/consultas/detalleProceso.do?numConstancia=20-4-10513897"]
[{"$f":"+A196+1","v":195},22533893,"LILIANA VARGAS MONTERO","0649-2020","ENFERMERA JEFE P Y P","03 FEBRERO DE 2020","29 FEBRERO DE 2020",2300000,2300000,"NILSA ARIZA MARQUEZ","COORDINADOR P Y P","CENTRO DE 13 DE JUNIO ",745,1376,"20/02/2020","https://www.contratos.gov.co/consultas/detalleProceso.do?numConstancia=20-4-10513960"]
[196,22738424,"LINA MARGARITA TORO GARCIA","0650-2020","MEDICO PROGRAMA CARDIOVASCULAR","03 FEBRERO DE 2020","29 FEBRERO DE 2020",4600000,4600000,"DIANA MARTINEZ PACHECO","COORD CENTRO DE SALUD","CENTRO SALAMANCA",746,1377,"20/02/2020","https://www.contratos.gov.co/consultas/detalleProceso.do?numConstancia=20-4-10513995"]
[197,1042426533,"LIZ CATERINE ARROYO ROMERO","0651-2020","AUXILIAR DE FARMACIA ","03 FEBRERO DE 2020","29 FEBRERO DE 2020",1270000,1270000,"BETTY PERTUZ ","SUBGERENTE CIENTIFICO","CIUDADELA METROPOLITANA",747,1378,"20/02/2020","https://www.contratos.gov.co/consultas/detalleProceso.do?numConstancia=20-4-10514066"]
[198,32716780,"LORAINE PASION ARDILA ","0652-2020","TRABAJADORA SOCIAL","03 FEBRERO DE 2020","29 FEBRERO DE 2020",2300000,2300000,"SERGIO BOVEA MARIN","COORD CENTRO SALUD","CENTRO DE 13 DE JUNIO ",748,1379,"20/02/2020","https://www.contratos.gov.co/consultas/detalleProceso.do?numConstancia=20-4-10514140"]
[199,32761353,"LORENZA BARRIOS ESTRADA","0653-2020","AUXILIAR DE ENFERMERIA URGENCIAS","03 FEBRERO DE 2020","29 FEBRERO DE 2020",1378000,1378000,"WILFRAN JIMENEZ DE LA PEÑA","COORD CENTRO SALUD","CIUDADELA METROPOLITANA",749,1380,"20/02/2020","https://www.contratos.gov.co/consultas/detalleProceso.do?numConstancia=20-4-10514260"]
[200,32666054,"LUCY CHING ANAYA ","0654-2020","MEDICO CONSULTA EXTERNA ","03 FEBRERO DE 2020","29 FEBRERO DE 2020",2120000,2120000,"DIANA MARTINEZ PACHECO","COORD CENTRO DE SALUD","CENTRO SALAMANCA",750,1381,"20/02/2020","https://www.contratos.gov.co/consultas/detalleProceso.do?numConstancia=20-4-10514465"]
[201,72336152,"LUIS EDUARDO LLANOS NAVARRO ","0655-2020","AUDITOR DE P Y P ","03 FEBRERO DE 2020","29 FEBRERO DE 2020",4000000,4000000,"BETTY PERTUZ ","SUBGERENTE CIENTIFICO","CENTRO COSTA HERMOSA ",751,1382,"20/02/2020","https://www.contratos.gov.co/consultas/detalleProceso.do?numConstancia=20-4-10514629"]
[202,1143133250,"LUIS EDUARDO NIEBLES SARMIENTO ","0656-2020","AUXILIAR DE FACTURACION URGENCIA","03 FEBRERO DE 2020","29 FEBRERO DE 2020",1400000,1400000,"SANDRA SANMARTIN","SUB GERENTE ADMINISTRATIVO","CIUDADELA METROPOLITANA",752,1383,"20/02/2020","https://www.contratos.gov.co/consultas/detalleProceso.do?numConstancia=20-4-10518571"]
[203,8672260,"LUIS MIGUEL REYES LANCE","0657-2020","ORIENTADOR","03 FEBRERO DE 2020","29 FEBRERO DE 2020",1270000,1270000,"SERGIO BOVEA MARIN","COORD CENTRO SALUD","CENTRO DE 13 DE JUNIO ",753,1384,"20/02/2020","https://www.contratos.gov.co/consultas/detalleProceso.do?numConstancia=20-4-10518537"]
[204,22444561,"LUZ MARINA DONADO BARRIOS ","0658-2020","COORDINADOR DE FACTURACION","03 FEBRERO DE 2020","29 FEBRERO DE 2020",1600000,1600000,"DIANA MARTINEZ PACHECO","COORD CENTRO DE SALUD","CENTRO SALAMANCA",754,1385,"20/02/2020","https://www.contratos.gov.co/consultas/detalleProceso.do?numConstancia=20-4-10518"]
[205,32825666,"LUZ STELLA RUIZ SUAREZ","0659-2020","AUXILIAR DE ENFERMERIA MATERNIDAD SEGURA ","03 FEBRERO DE 2020","29 FEBRERO DE 2020",1166000,1166000,"SERGIO BOVEA MARIN","COORD CENTRO SALUD","CENTRO DE 13 DE JUNIO ",755,1386,"20/02/2020","https://www.contratos.gov.co/consultas/detalleProceso.do?numConstancia=20-4-10518540"]
[206,32724439,"MAGALY CANTILLO GUERRERO","0660-2020","TRABAJADORA SOCIAL ","03 FEBRERO DE 2020","29 FEBRERO DE 2020",2200000,2200000,"AIX PALACIO","COORD CENTRO DE SALUD","CENTRO  DE SALUD EL PARQUE",756,1387,"20/02/2020","https://www.contratos.gov.co/consultas/detalleProceso.do?numConstancia=20-4-10518542"]
[207,32697306,"MAGALY POLO ARNEDO ","0661-2020","ODONTOLOGO","03 FEBRERO DE 2020","29 FEBRERO DE 2020",1900000,1900000,"SERGIO BOVEA MARIN","COORD CENTRO SALUD","CENTRO DE 13 DE JUNIO ",757,1388,"20/02/2020","https://www.contratos.gov.co/consultas/detalleProceso.do?numConstancia=20-4-10518543"]
[208,32623541,"MAGALYS ESPITIA RAMOS","0662-2020","AUXILIAR SERVICIOS GENERALES URGENCIA","03 FEBRERO DE 2020","29 FEBRERO DE 2020",1378000,1378000,"WILFRAN JIMENEZ DE LA PEÑA","COORD CENTRO SALUD","CIUDADELA METROPOLITANA",758,1389,"20/02/2020","https://www.contratos.gov.co/consultas/detalleProceso.do?numConstancia=20-4-10531767"]
[209,1140849940,"MAICOL JOSE MOLINA SOTO","0663-2020","MEDICO DE URGENCIA","03 FEBRERO DE 2020","29 FEBRERO DE 2020",2560000,2560000,"SERGIO BOVEA MARIN","COORD CENTRO SALUD","CENTRO DE 13 DE JUNIO ",759,1390,"20/02/2020","https://www.contratos.gov.co/consultas/detalleProceso.do?numConstancia=20-4-10518544"]
[210,{"$f":"[1]Hoja1!$B$10","v":22616462},"MAIDELIN CORCHO CAICEDO","0664-2020",{"$f":"[1]Hoja1!$D$10","v":"AUXILIAR DE ENFERMERIA"},"03 FEBRERO DE 2020","29 FEBRERO DE 2020",1166000,1166000,"DIANA MARTINEZ PACHECO","COORD CENTRO DE SALUD","CENTRO SALAMANCA",760,1391,"20/02/2020","https://www.contratos.gov.co/consultas/detalleProceso.do?numConstancia=20-4-10518661"]
[211,72142837,"MANUEL GUSTAVO PABA GUETE","0665-2020","PSICOLOGO EN PROMOCION Y PREVENCION","03 FEBRERO DE 2020","29 FEBRERO DE 2020",3000000,3000000,"NILSA ARIZA MARQUEZ","COORDINADOR P Y P","CENTRO MANUELA BELTRAN",761,1392,"20/02/2020","https://www.contratos.gov.co/consultas/detalleProceso.do?numConstancia=20-4-10518662"]
[212,1140889557,"MARA PAOLA DE LEON NIEBLES ","0666-2020","AUXILIAR ADMINISTRATIVO","03 FEBRERO DE 2020","29 FEBRERO DE 2020",1900000,1900000,"SANDRA SANMARTIN","SUB GERENTE ADMINISTRATIVO","ADMON COSTA HERMOSA",762,1393,"20/02/2020","https://www.contratos.gov.co/consultas/detalleProceso.do?numConstancia=20-4-10518663"]
[213,44160436,"MARCELA JOHANA DIAZ DE LA PUENTE","0667-2020","ASESOR JURIDICO TALENTO HUMANO","03 FEBRERO DE 2020","29 FEBRERO DE 2020",3000000,3000000,"FABIAN COLPAS","JEFE TALENTO HUMANO","ADMON COSTA HERMOSA",763,1394,"20/02/2020","https://www.contratos.gov.co/consultas/detalleProceso.do?numConstancia=20-4-10518664"]
[214,22605801,"MARCELA PATRICIA TORRES CARROLL","0668-2020","AUXILIAR DE FACTURACION URGENCIA","03 FEBRERO DE 2020","29 FEBRERO DE 2020",1400000,1400000,"SANDRA SANMARTIN","SUB GERENTE ADMINISTRATIVO","CENTRO COSTA HERMOSA ",764,1395,"20/02/2020","https://www.contratos.gov.co/consultas/detalleProceso.do?numConstancia=20-4-10518665"]
[215,72132608,"MARCO AURELIO CASTRO CAICEDO","0669-2020","AUXILIAR DE FACTURACION URGENCIA","03 FEBRERO DE 2020","29 FEBRERO DE 2020",1400000,1400000,"SANDRA SANMARTIN","SUB GERENTE ADMINISTRATIVO","CENTRO COSTA HERMOSA ",765,1396,"20/02/2020","https://www.contratos.gov.co/consultas/detalleProceso.do?numConstancia=20-4-10518597"]
[216,22644933,"MARGARITA PACHECO GUTIERREZ","0670-2020","HIGIENISTA ORAL","03 FEBRERO DE 2020","29 FEBRERO DE 2020",2332000,2332000,"SERGIO BOVEA MARIN","COORD CENTRO SALUD","CENTRO DE 13 DE JUNIO ",766,1397,"20/02/2020","https://www.contratos.gov.co/consultas/detalleProceso.do?numConstancia=20-4-10518781"]
[217,32703976,"MARI ENITH PUELLO BELTRAN","0671-2020","AUXILIAR DE ENFERMERIA CONSULTA EXTERNA ","03 FEBRERO DE 2020","29 FEBRERO DE 2020",1166000,1166000,"BETTY PERTUZ ","SUBGERENTE CIENTIFICO","LA CENTRAL",767,1398,"20/02/2020","https://www.contratos.gov.co/consultas/detalleProceso.do?numConstancia=20-4-10518752"]
[218,1042450048,"MARIA ALEJANDRA DE LA HOZ TOSCANO","0672-2020","MEDICO DE URGENCIA","03 FEBRERO DE 2020","29 FEBRERO DE 2020",2560000,2560000,"SERGIO BOVEA MARIN","COORD CENTRO SALUD","CENTRO DE 13 DE JUNIO ",768,1399,"20/02/2020","https://www.contratos.gov.co/consultas/detalleProceso.do?numConstancia=20-4-10518753"]
[219,1004093696,"MARIA ALTAMAR OROZCO","0673-2020","AUXILIAR DE ENFERMERIA URGENCIAS","03 FEBRERO DE 2020","29 FEBRERO DE 2020",1378000,1378000,"SERGIO BOVEA MARIN","COORD CENTRO SALUD","CENTRO DE 13 DE JUNIO ",769,1400,"20/02/2020","https://www.contratos.gov.co/consultas/detalleProceso.do?numConstancia=20-4-10518754"]
[220,32608240,"MARIA DE JESUS VELASQUEZ CAPERA","0674-2020","AUXILIAR SERVICIOS GENERALES","03 FEBRERO DE 2020","29 FEBRERO DE 2020",1215000,1215000,"SANDRA SANMARTIN","SUB GERENTE ADMINISTRATIVO","CENTRO COSTA HERMOSA ",770,1401,"20/02/2020","https://www.contratos.gov.co/consultas/detalleProceso.do?numConstancia=20-4-10518755"]
[221,1042440221,"MARIA DE LA HOZ DE LA HOZ","0675-2020","AUXILIAR DE ARCHIVO","03 FEBRERO DE 2020","29 FEBRERO DE 2020",1900000,1900000,"SANDRA SANMARTIN","SUB GERENTE ADMINISTRATIVO","ARCHIVO CENTRAL ",771,1402,"20/02/2020","https://www.contratos.gov.co/consultas/detalleProceso.do?numConstancia=20-4-10518756"]
[222,1140883085,"MARIA FATIMA HERNANDEZ ORTIZ","0676-2020","AUXILIAR DE ENFERMERIA - SERVICIOS AMIGABLES","03 FEBRERO DE 2020","29 FEBRERO DE 2020",1270000,1270000,"NILSA ARIZA MARQUEZ","COORDINADOR P Y P","CENTRO DE 13 DE JUNIO ",772,1403,"20/02/2020","https://www.contratos.gov.co/consultas/detalleProceso.do?numConstancia=20-4-10518762"]
[223,1045735275,"MARIA FERNANDA SOLANO QUITIAN","0677-2020","REFERENCIA Y CONTRAREFERENCIA","03 FEBRERO DE 2020","29 FEBRERO DE 2020",1270000,1270000,"SERGIO BOVEA MARIN","COORD CENTRO SALUD","CENTRO DE 13 DE JUNIO ",773,1404,"20/02/2020","https://www.contratos.gov.co/consultas/detalleProceso.do?numConstancia=20-4-10518764"]
[224,1047341586,"MARIA GUADALUPE MUÑOZ MORALES","0678-2020","ODONTOLOGO","03 FEBRERO DE 2020","29 FEBRERO DE 2020",1900000,1900000,"WILFRAN JIMENEZ DE LA PEÑA","COORD CENTRO SALUD","CIUDADELA METROPOLITANA",774,1405,"20/02/2020","https://www.contratos.gov.co/consultas/detalleProceso.do?numConstancia=20-4-10518883"]
[225,32695840,"MARIA HERRERA CUADROS","0679-2020","HIGIENISTA ORAL","03 FEBRERO DE 2020","29 FEBRERO DE 2020",2332000,2332000,"LUIS GRANADOS GOMEZ","COORD CENTRO SALUD","CENTRO MANUELA BELTRAN",775,1406,"20/02/2020","https://www.contratos.gov.co/consultas/detalleProceso.do?numConstancia=20-4-10518884"]
[226,32668810,"MARIA ISABEL ALVARADO LOBOS","0680-2020","ASISTENTE COORDINADOR MEDICO","03 FEBRERO DE 2020","29 FEBRERO DE 2020",2000000,2000000,"WILFRAN JIMENEZ DE LA PEÑA","COORD CENTRO SALUD","CIUDADELA METROPOLITANA",776,1407,"20/02/2020","https://www.contratos.gov.co/consultas/detalleProceso.do?numConstancia=20-4-10518885"]
[227,1140858071,"MARIA LUISA FERNANDA ARAGON NIGRINI","0681-2020","ABOGADO EXTERNO","03 FEBRERO DE 2020","29 FEBRERO DE 2020",5800000,5800000,"ORNELLA FIORENTINO","JEFE OFICINA JURIDICA","ADMON COSTA HERMOSA",777,1408,"20/02/2020","https://www.contratos.gov.co/consultas/detalleProceso.do?numConstancia=20-4-10518888"]
[228,32879250,"MARIA SEGURA MEJIA","0682-2020","AUXILIAR FACTURACION URGENCIA","03 FEBRERO DE 2020","29 FEBRERO DE 2020",1400000,1400000,"SANDRA SANMARTIN","SUB GERENTE ADMINISTRATIVO","CENTRO COSTA HERMOSA ",778,1409,"20/02/2020","https://www.contratos.gov.co/consultas/detalleProceso.do?numConstancia=20-4-10518874"]
[229,72043527,"MARIANO DE JESUS BARRIOS ELLES ","0683-2020","COORDINADOR CALL CENTER","03 FEBRERO DE 2020","29 FEBRERO DE 2020",3000000,3000000,"BETTY PERTUZ ","SUBGERENTE CIENTIFICO","COLL-CENTER- CIUDADELA METROPOLITANA",779,1410,"20/02/2020","https://www.contratos.gov.co/consultas/detalleProceso.do?numConstancia=20-4-10518881"]
[230,32819834,"MARIBEL NIEBLES ESCORCIA","0684-2020","AUXILIAR DE ODONTOLOGIA","03 FEBRERO DE 2020","29 FEBRERO DE 2020",1166000,1166000,"LUIS GRANADOS GOMEZ","COORD CENTRO SALUD","CENTRO MANUELA BELTRAN",780,1411,"20/02/2020","https://www.contratos.gov.co/consultas/detalleProceso.do?numConstancia=20-4-10518974"]
[231,32817343,"MARIELA NIEBLES FREILE","0685-2020","AUXILIAR DE ARCHIVO","03 FEBRERO DE 2020","29 FEBRERO DE 2020",1500000,1500000,"SANDRA SANMARTIN","SUB GERENTE ADMINISTRATIVO","ARCHIVO CENTRAL ",781,1412,"20/02/2020","https://www.contratos.gov.co/consultas/detalleProceso.do?numConstancia=20-4-10518963"]
[232,32726703,"MARILYN ESTHER PEREZ LIÑAN","0686-2020","AUXILIAR DE ENFERMERIA URGENCIAS","03 FEBRERO DE 2020","29 FEBRERO DE 2020",1378000,1378000,"SERGIO BOVEA MARIN","COORD CENTRO SALUD","CENTRO DE 13 DE JUNIO ",782,1413,"20/02/2020","https://www.contratos.gov.co/consultas/detalleProceso.do?numConstancia=20-4-10518964"]
[233,1140867598,"MARLA HERRERA MERIÑO","0687-2020","AUXILIAR DE ENFERMERIA URGENCIAS","03 FEBRERO DE 2020","29 FEBRERO DE 2020",1378000,1378000,"WILFRAN JIMENEZ DE LA PEÑA","COORD CENTRO SALUD","CIUDADELA METROPOLITANA",783,1414,"20/02/2020","https://www.contratos.gov.co/consultas/detalleProceso.do?numConstancia=20-4-10518965"]
[234,22694593,"MARLENE JUDITH GARIZABALO PERTUZ","0688-2020","AUXILIAR SERVICIOS GENERALES","03 FEBRERO DE 2020","29 FEBRERO DE 2020",1215000,1215000,"CARLOS VISBAL JIMENEZ","COORD CENTRO SALUD","CENTRO COSTA HERMOSA ",784,1415,"20/02/2020","https://www.contratos.gov.co/consultas/detalleProceso.do?numConstancia=20-4-10518966"]
[235,22732194,"MARLEY VASQUEZ VARGAS","0689-2020","FACTURACION ","03 FEBRERO DE 2020","29 FEBRERO DE 2020",1700000,1700000,"SANDRA SANMARTIN","SUB GERENTE ADMINISTRATIVO","CENTRO COSTA HERMOSA ",785,1416,"20/02/2020","https://www.contratos.gov.co/consultas/detalleProceso.do?numConstancia=20-4-10518968"]
[236,72158729,"MARLON CAMILO JORDAN HERRERA","0690-2020","REFERENCIA Y CONTRAREFERENCIA","03 FEBRERO DE 2020","29 FEBRERO DE 2020",1480000,1480000,"SERGIO BOVEA MARIN","COORD CENTRO SALUD","CENTRO DE 13 DE JUNIO ",786,1417,"20/02/2020","https://www.contratos.gov.co/consultas/detalleProceso.do?numConstancia=20-4-10518970"]
[237,22646602,"MARTHA CECILIA PICO OROZCO","0691-2020","AUXILIAR DE AUTORIZACIONES ","03 FEBRERO DE 2020","29 FEBRERO DE 2020",1378000,1378000,"BETTY PERTUZ ","SUBGERENTE CIENTIFICO","CIUDADELA METROPOLITANA",787,1418,"20/02/2020","https://www.contratos.gov.co/consultas/detalleProceso.do?numConstancia=20-4-10518971"]
[238,44205287,"MARTHA KATERINE MEJIA FRUTO","0692-2020","AUXILIAR ADMINISTRATIVO - RECEPCION ","03 FEBRERO DE 2020","29 FEBRERO DE 2020",1900000,{"$f":"H240*1","v":1900000},"SANDRA SANMARTIN","SUB GERENTE ADMINISTRATIVO","CENTRO COSTA HERMOSA ",788,1419,"20/02/2020","https://www.contratos.gov.co/consultas/detalleProceso.do?numConstancia=20-4-10518972"]
[239,55227166,"MARYI PEREZ CASSIANI","0693-2020","ENFERMERA JEFE URGENCIAS ","03 FEBRERO DE 2020","29 FEBRERO DE 2020",1900000,1900000,"WILFRAN JIMENEZ DE LA PEÑA","COORD CENTRO SALUD","CIUDADELA METROPOLITANA",789,1420,"20/02/2020","https://www.contratos.gov.co/consultas/detalleProceso.do?numConstancia=20-4-10518973"]
[240,32769980,"MARYORIS POLO HERRERA","0694-2020","AUXILIAR DE ENFERMERIA URGENCIAS","03 FEBRERO DE 2020","29 FEBRERO DE 2020",1378000,1378000,"WILFRAN JIMENEZ DE LA PEÑA","COORD CENTRO SALUD","CIUDADELA METROPOLITANA",790,1421,"20/02/2020","https://www.contratos.gov.co/consultas/detalleProceso.do?numConstancia=20-4-10519115"]
[241,32896837,"MARYULIS PATRICIA CRUZ JIMENEZ","0695-2020","ENFERMERA JEFE P Y P","03 FEBRERO DE 2020","29 FEBRERO DE 2020",2300000,2300000,"NILSA ARIZA MARQUEZ","COORDINADOR P Y P","CENTRO SALAMANCA",791,1422,"20/02/2020","https://www.contratos.gov.co/consultas/detalleProceso.do?numConstancia=20-4-10519104"]
[242,26762874,"MARYURIS ALTAHONA  MORENO ","0696-2020","MEDICO P Y P ","03 FEBRERO DE 2020","29 FEBRERO DE 2020",2120000,2120000,"YARELIS GUERRA CORREA","COORD CENTRO SALUD","CENTRO VILLA ESTADIO ",792,1423,"20/02/2020","https://www.contratos.gov.co/consultas/detalleProceso.do?numConstancia=20-4-10519105"]
[243,1042452765,"MAYERLINN SANDOVAL BARRIOS","0697-2020","AGENTE CALL CENTER","03 FEBRERO DE 2020","29 FEBRERO DE 2020",1166000,1166000,"BETTY PERTUZ ","SUBGERENTE CIENTIFICO","COLL-CENTER- CIUDADELA METROPOLITANA",793,1424,"20/02/2020","https://www.contratos.gov.co/consultas/detalleProceso.do?numConstancia=20-4-10519106"]
[244,1042422315,"MAYRA ALEJANDRA GARCIA CASTILLO","0698-2020","FISIOTERAPEUTA ","03 FEBRERO DE 2020","29 FEBRERO DE 2020",1900000,1900000,"CARLOS VISBAL JIMENEZ","COORD CENTRO SALUD","CENTRO COSTA HERMOSA ",794,1425,"20/02/2020","https://www.contratos.gov.co/consultas/detalleProceso.do?numConstancia=20-4-10519107"]
[245,1042452851,"MAYRA ALEJANDRA VASQUEZ MORENO","0699-2020","AUXILIAR ADMINISTRATIVO  - ESTADISTICAS","03 FEBRERO DE 2020","29 FEBRERO DE 2020",1500000,1500000,"SANDRA SANMARTIN","SUB GERENTE ADMINISTRATIVO","ADMON COSTA HERMOSA ",795,1426,"20/02/2020","https://www.contratos.gov.co/consultas/detalleProceso.do?numConstancia=20-4-10519108"]
[246,1043876764,"MELANI ISABEL PERTUZ HERRERA","0700-2020","AUXILIAR ADMINISTRATIVO -  SUBGERENCIA ADMINISTRATIVA","03 FEBRERO DE 2020","29 FEBRERO DE 2020",1900000,1900000,"SANDRA SANMARTIN","SUB GERENTE ADMINISTRATIVO","CENTRO COSTA HERMOSA ",796,1427,"20/02/2020","https://www.contratos.gov.co/consultas/detalleProceso.do?numConstancia=20-4-10519109"]
[247,22457575,"MELBA MEZA PERDOMO","0701-2020","TRABAJADORA SOCIAL ","03 FEBRERO DE 2020","29 FEBRERO DE 2020",2200000,2200000,"SERGIO BOVEA MARIN","COORD CENTRO SALUD","CENTRO DE 13 DE JUNIO ",797,1428,"20/02/2020","https://www.contratos.gov.co/consultas/detalleProceso.do?numConstancia=20-4-10519110"]
[248,1042418352,"MERJORIE CABEZA CASTILLO","0702-2020","AUXILIAR DE ENFERMERIA P Y P ","03 FEBRERO DE 2020","29 FEBRERO DE 2020",1166000,1166000,"LUIS GRANADOS GOMEZ","COORD CENTRO SALUD","CENTRO MANUELA BELTRAN",798,1429,"20/02/2020","https://www.contratos.gov.co/consultas/detalleProceso.do?numConstancia=20-4-10519111"]
[249,32729889,"MERLY ISABEL BARRAZA TOLEDO","0703-2020","AUXILIAR DE ENFERMERIA CONSULTA EXTERNA ","03 FEBRERO DE 2020","29 FEBRERO DE 2020",1166000,1166000,"YARELIS GUERRA CORREA","COORD CENTRO SALUD","CENTRO VILLA ESTADIO ",799,1430,"20/02/2020","https://www.contratos.gov.co/consultas/detalleProceso.do?numConstancia=20-4-10519113"]
[250,1129532724,"MICHELLY SANDOVAL ACUÑA","0704-2020","AUDITOR DE CALIDAD ","03 FEBRERO DE 2020","29 FEBRERO DE 2020",4500000,4500000,"BETTY PERTUZ ","SUBGERENTE CIENTIFICO","CENTRO COSTA HERMOSA ",800,1431,"20/02/2020","https://www.contratos.gov.co/consultas/detalleProceso.do?numConstancia=20-4-10519213"]
[251,8507626,"MIGUEL ALVAREZ SALCEDO","0705-2020","CONDUCTOR DE AMBULANCIA","03 FEBRERO DE 2020","29 FEBRERO DE 2020",1800000,1800000,"BETTY PERTUZ ","SUBGERENTE CIENTIFICO","CIUDADELA METROPOLITANA",801,1432,"20/02/2020","https://www.contratos.gov.co/consultas/detalleProceso.do?numConstancia=20-4-10519220"]
[252,8795259,"MIGUEL ANGEL OLMOS DE ALBA","0706-2020","CONDUCTOR DE AMBULANCIA","03 FEBRERO DE 2020","29 FEBRERO DE 2020",1800000,1800000,"BETTY PERTUZ ","SUBGERENTE CIENTIFICO","CIUDADELA METROPOLITANA",802,1433,"20/02/2020","https://www.contratos.gov.co/consultas/detalleProceso.do?numConstancia=20-4-10519233"]
[253,1129519216,"MILAGRO HERRERA MOJICA","0707-2020","MEDICO DE URGENCIA","03 FEBRERO DE 2020","29 FEBRERO DE 2020",2560000,2560000,"WILFRAN JIMENEZ DE LA PEÑA","COORD CENTRO SALUD","CIUDADELA METROPOLITANA",803,1434,"20/02/2020","https://www.contratos.gov.co/consultas/detalleProceso.do?numConstancia=20-4-10519247"]
[254,22468835,"MILAGROS GUZMAN FERNANDEZ ","0708-2020","ODONTOLOGO","03 FEBRERO DE 2020","29 FEBRERO DE 2020",1900000,1900000,"LUIS GRANADOS GOMEZ","COORD CENTRO SALUD","CENTRO MANUELA BELTRAN",804,1435,"20/02/2020","https://www.contratos.gov.co/consultas/detalleProceso.do?numConstancia=20-4-10519255"]
[255,55238408,"MILAGROS YANETH SIMANCA RODRIGUEZ","0709-2020","AUXILIAR AREA FINANCIERA","03 FEBRERO DE 2020","29 FEBRERO DE 2020",3500000,3500000,"SANDRA SANMARTIN","SUB GERENTE ADMINISTRATIVO","CENTRO COSTA HERMOSA ",805,1436,"20/02/2020","https://www.contratos.gov.co/consultas/detalleProceso.do?numConstancia=20-4-10519267"]
[256,32787314,"MILENA HERRERA BENAVIDES","0710-2020","AUXILIAR DE ENFERMERIA MATERNIDAD SEGURA ","03 FEBRERO DE 2020","29 FEBRERO DE 2020",1166000,1166000,"WILFRAN JIMENEZ DE LA PEÑA","COORD CENTRO SALUD","CIUDADELA METROPOLITANA",806,1437,"20/02/2020","https://www.contratos.gov.co/consultas/detalleProceso.do?numConstancia=20-4-10519285"]
[257,22532699,"MILENA SILVA BARRAZA","0711-2020","AUXILIAR DE FACTURACION","03 FEBRERO DE 2020","29 FEBRERO DE 2020",1300000,1300000,"SANDRA SANMARTIN","SUB GERENTE ADMINISTRATIVO","CENTRO COSTA HERMOSA ",807,1438,"20/02/2020","https://www.contratos.gov.co/consultas/detalleProceso.do?numConstancia=20-4-10519298"]
[258,1045689538,"MILLER TEDYS MEDRANO CASTRO","0712-2020","TECNOLOGO EN RADIOLOGIA","03 FEBRERO DE 2020","29 FEBRERO DE 2020",1500000,1500000,"BETTY PERTUZ ","SUBGERENTE CIENTIFICO","CIUDADELA METROPOLITANA",808,1439,"20/02/2020","https://www.contratos.gov.co/consultas/detalleProceso.do?numConstancia=20-4-10519299"]
[{"$f":"+A260+1","v":259},72268005,"MILTON SOLARTE RODRIGUEZ","0713-2020","TECNICO DE BASES DE DATOS","03 FEBRERO DE 2020","29 FEBRERO DE 2020",3000000,3000000,"SANDRA SANMARTIN","SUB GERENTE ADMINISTRATIVO","CENTRO COSTA HERMOSA ",809,1440,"20/02/2020","https://www.contratos.gov.co/consultas/detalleProceso.do?numConstancia=20-4-10519312"]
[260,22693871,"MIRIAM VILLAREAL DE ALBA","0714-2020","AUXILIAR SERVICIOS GENERALES ","03 FEBRERO DE 2020","29 FEBRERO DE 2020",1215000,1215000,"SANDRA SANMARTIN","SUB GERENTE ADMINISTRATIVO","CENRO  MACLOVIA",810,1441,"20/02/2020","https://www.contratos.gov.co/consultas/detalleProceso.do?numConstancia=20-4-10519323"]
[261,32814938,"MOIRA SANDOVAL PEDRAZA","0715-2020","AUXILIAR DE ENFERMERIA PROMOTORA EN SALUD","03 FEBRERO DE 2020","29 FEBRERO DE 2020",1215000,1215000,"WILFRAN JIMENEZ DE LA PEÑA","COORD CENTRO SALUD","CIUDADELA METROPOLITANA",811,1442,"20/02/2020","https://www.contratos.gov.co/consultas/detalleProceso.do?numConstancia=20-4-10519334"]
[262,32872397,"MONICA PATRICIA DOVALE GALLEGO","0716-2020","COORDINADOR SEGURIDAD Y SALUD TRABAJO","03 FEBRERO DE 2020","29 FEBRERO DE 2020",5800000,5800000,"FABIAN COLPAS","JEFE TALENTO HUMANO","ADMON COSTA HERMOSA",812,1443,"20/02/2020","https://www.contratos.gov.co/consultas/detalleProceso.do?numConstancia=20-4-10519341"]
[263,22443679,"MONICA PEREZ RODRIGUEZ ","0717-2020","FISIOTERAPEUTA  URGENCIAS","03 FEBRERO DE 2020","29 FEBRERO DE 2020",2100000,2100000,"WILFRAN JIMENEZ DE LA PEÑA","COORD CENTRO SALUD","CIUDADELA METROPOLITANA",813,1444,"20/02/2020","https://www.contratos.gov.co/consultas/detalleProceso.do?numConstancia=20-4-10519355"]
[264,32756032,"MONICA RAMIREZ CORREAL","0718-2020","AUXILIAR DE ENFERMERIA URGENCIAS","03 FEBRERO DE 2020","29 FEBRERO DE 2020",1378000,1378000,"WILFRAN JIMENEZ DE LA PEÑA","COORD CENTRO SALUD","CIUDADELA METROPOLITANA",814,1445,"20/02/2020","https://www.contratos.gov.co/consultas/detalleProceso.do?numConstancia=20-4-10519821"]
[265,32829349,"NADIA BOVEA NIETO","0719-2020","AUXILIAR DE ENFERMERIA URGENCIAS","03 FEBRERO DE 2020","29 FEBRERO DE 2020",1378000,1378000,"SERGIO BOVEA MARIN","COORD CENTRO SALUD","CENTRO DE 13 DE JUNIO ",815,1446,"20/02/2020","https://www.contratos.gov.co/consultas/detalleProceso.do?numConstancia=20-4-10519421"]
[266,55239101,"NATALI ANDREA NIEBLES JURADO","0720-2020","AUDITOR DE CALIDAD (JEFE DE UNIDAD)","03 FEBRERO DE 2020","29 FEBRERO DE 2020",5800000,5800000,"BETTY PERTUZ ","SUBGERENTE CIENTIFICO","CENTRO COSTA HERMOSA ",816,1447,"20/02/2020","https://www.contratos.gov.co/consultas/detalleProceso.do?numConstancia=20-4-10519856"]
[267,52618443,"NATALIA ALONSO CARVAJAL","0721-2020","ASESOR GERENCIA","03 FEBRERO DE 2020","29 FEBRERO DE 2020",5800000,5800000,"ROSA MADERA","GERENTE ","ADMON COSTA HERMOSA",817,1448,"20/02/2020","https://www.contratos.gov.co/consultas/detalleProceso.do?numConstancia=20-4-10519852"]
[268,55307414,"NATALY DE LAS SALAS ORTEGA","0722-2020","PSICOLOGA","03 FEBRERO DE 2020","29 FEBRERO DE 2020",2500000,2500000,"BETTY PERTUZ ","SUBGERENTE CIENTIFICO",null,818,1449,"20/02/2020","https://www.contratos.gov.co/consultas/detalleProceso.do?numConstancia=20-4-10519853"]
[269,1010179685,"NAYIVI OSPINA ARROYAVE","0723-2020","SALUD OCUPACIONAL SEGURIDAD TRABAJO","03 FEBRERO DE 2020","29 FEBRERO DE 2020",3180000,3180000,"FABIAN COLPAS","JEFE TALENTO HUMANO","ADMON COSTA HERMOSA",819,1450,"20/02/2020","https://www.contratos.gov.co/consultas/detalleProceso.do?numConstancia=20-4-10519854"]
[270,32783935,"NELBY CORRALES HOYOS","0724-2020","AUXILIAR DE ENFERMERIA URGENCIAS","03 FEBRERO DE 2020","29 FEBRERO DE 2020",1378000,1378000,"SERGIO BOVEA MARIN","COORD CENTRO SALUD","CENTRO DE 13 DE JUNIO ",820,1451,"20/02/2020","https://www.contratos.gov.co/consultas/detalleProceso.do?numConstancia=20-4-10519855"]
[271,26910232,"NELCY ALMARALES AYALA","0725-2020","TRABAJADORA SOCIAL ","03 FEBRERO DE 2020","29 FEBRERO DE 2020",2200000,2200000,"YARELIS GUERRA CORREA","COORD CENTRO SALUD","CENTRO VILLA ESTADIO ",821,1452,"20/02/2020","https://www.contratos.gov.co/consultas/detalleProceso.do?numConstancia=20-4-10519967"]
[272,32819548,"NELLY GALAN HEILBRON","0726-2020","AUXILIAR DE ENFERMERIA PROMOTORA EN SALUD","03 FEBRERO DE 2020","29 FEBRERO DE 2020",1215000,1215000,"SERGIO BOVEA MARIN","COORD CENTRO SALUD","CENTRO DE 13 DE JUNIO ",822,1453,"20/02/2020","https://www.contratos.gov.co/consultas/detalleProceso.do?numConstancia=20-4-10520112"]
[273,8770580,"NELSON JULIO SANDOVAL GONZALEZ","0727-2020","AUXILIAR ADMINISTRATIVO DE FINANCIERA","03 FEBRERO DE 2020","29 FEBRERO DE 2020",3000000,3000000,"SANDRA SANMARTIN","SUB GERENTE ADMINISTRATIVO","CENTRO COSTA HERMOSA ",823,1454,"20/02/2020","https://www.contratos.gov.co/consultas/detalleProceso.do?numConstancia=20-4-10520125"]
[274,22735613,"NELVIS MARIA SARMIENTO ARELLANO","0728-2020","AUXILIAR DE ENFERMERIA","03 FEBRERO DE 2020","29 FEBRERO DE 2020",1166000,1166000,"CARLOS VISBAL JIMENEZ","COORD CENTRO SALUD","CENTRO COSTA HERMOSA ",824,1455,"20/02/2020","https://www.contratos.gov.co/consultas/detalleProceso.do?numConstancia=20-4-10520534"]
[275,8498281,"NESTOR  HERRERA BOCANEGRA ","0729-2020","ASESOR FINANCIERO","03 FEBRERO DE 2020","29 FEBRERO DE 2020",4500000,4500000,"NICOLAS OQUENDO","DIRECTOR FINANCIERO","ADMON COSTA HERMOSA",825,1456,"20/02/2020","https://www.contratos.gov.co/consultas/detalleProceso.do?numConstancia=20-4-10520527"]
[276,7438585,"NESTOR CHARRIS MARIN","0730-2020","ORIENTADOR","03 FEBRERO DE 2020","29 FEBRERO DE 2020",1270000,1270000,"SANDRA SANMARTIN","SUB GERENTE ADMINISTRATIVO","CENTRO COSTA HERMOSA ",826,1457,"20/02/2020","https://www.contratos.gov.co/consultas/detalleProceso.do?numConstancia=20-4-10520528"]
[277,1140877960,"NICAULIS RODRIGUEZ GOMEZ","0731-2020","AUXILIAR DE FACTURACION URGENCIA","03 FEBRERO DE 2020","29 FEBRERO DE 2020",1400000,1400000,"SANDRA SANMARTIN","SUB GERENTE ADMINISTRATIVO","CENTRO COSTA HERMOSA ",827,1458,"20/02/2020","https://www.contratos.gov.co/consultas/detalleProceso.do?numConstancia=20-4-10520529"]
[278,32637709,"NIDIA ELENA ORTEGA CARO","0732-2020","TRABAJADORA SOCIAL","03 FEBRERO DE 2020","29 FEBRERO DE 2020",2200000,2200000,"WILFRAN JIMENEZ DE LA PEÑA","COORD CENTRO SALUD","CIUDADELA METROPOLITANA",828,1459,"20/02/2020","https://www.contratos.gov.co/consultas/detalleProceso.do?numConstancia=20-4-10520530"]
[279,32740234,"NIDIA VEGA CORREA","0733-2020","AUXILIAR SERVICIOS GENERALES","03 FEBRERO DE 2020","29 FEBRERO DE 2020",1215000,1215000,"VICTOR MIRANDA","SUB GERENTE ADMINISTRATIVO","LA ESPERANZA",829,1460,"20/02/2020","https://www.contratos.gov.co/consultas/detalleProceso.do?numConstancia=20-4-10520531"]
[280,72222215,"NILSON ALMARALES GARIZABALO","0734-2020","MEDICO DE URGENCIA","03 FEBRERO DE 2020","29 FEBRERO DE 2020",5700000,5700000,"BETTY PERTUZ ","SUBGERENTE CIENTIFICO","CENTRO DE 13 DE JUNIO ",830,1461,"20/02/2020","https://www.contratos.gov.co/consultas/detalleProceso.do?numConstancia=20-4-10520532"]
[281,22564359,"NINI JOHANNA QUIROZ SANTOS","0735-2020","MEDICO DE URGENCIA","03 FEBRERO DE 2020","29 FEBRERO DE 2020",2560000,2560000,"SERGIO BOVEA MARIN","COORD CENTRO SALUD","CENTRO DE 13 DE JUNIO ",831,1462,"20/02/2020","https://www.contratos.gov.co/consultas/detalleProceso.do?numConstancia=20-4-10520533"]
[282,8737936,"NOE ANIBAL PELAEZ GONZALEZ","0736-2020","REGENTE DE FARMACIA ","03 FEBRERO DE 2020","29 FEBRERO DE 2020",1900000,1900000,"BETTY PERTUZ ","SUBGERENTE CIENTIFICO","ADMON -FARMACIA",832,1463,"20/02/2020","https://www.contratos.gov.co/consultas/detalleProceso.do?numConstancia=20-4-10520568"]
[283,32822947,"NOHORA ISABEL POLO ORTIZ","0737-2020","TRABAJADORA SOCIAL ","03 FEBRERO DE 2020","29 FEBRERO DE 2020",2200000,2200000,"LUIS GRANADOS GOMEZ","COORD CENTRO SALUD","CENTRO MANUELA BELTRAN",833,1464,"20/02/2020","https://www.contratos.gov.co/consultas/detalleProceso.do?numConstancia=20-4-10520567"]
[284,39282489,"NORIS SOFIA BERTEL PEREZ","0738-2020","AUXILIAR SERVICIOS GENERALES URGENCIA","03 FEBRERO DE 2020","29 FEBRERO DE 2020",1378000,1378000,"SERGIO BOVEA MARIN","COORD CENTRO SALUD","CENTRO DE 13 DE JUNIO ",834,1465,"20/02/2020","https://www.contratos.gov.co/consultas/detalleProceso.do?numConstancia=20-4-10520574"]
[285,32862644,"NURYS GARCIA DELGADO","0739-2020","AUXILIAR DE ARCHIVO","03 FEBRERO DE 2020","29 FEBRERO DE 2020",1500000,1500000,"SANDRA SANMARTIN","SUB GERENTE ADMINISTRATIVO","ARCHIVO CENTRAL ",835,1466,"20/02/2020","https://www.contratos.gov.co/consultas/detalleProceso.do?numConstancia=20-4-10520633"]
[286,8772224,"OLAINER MONTERO CASTRO ","0740-2020","COORDINADOR DE FACTURACION","03 FEBRERO DE 2020","29 FEBRERO DE 2020",1800000,1800000,"SERGIO BOVEA MARIN","COORD CENTRO SALUD","CENTRO DE 13 DE JUNIO ",836,1467,"20/02/2020","https://www.contratos.gov.co/consultas/detalleProceso.do?numConstancia=20-4-10520606"]
[287,1048267612,"OLGA DE AVILA ARRIETA","0741-2020","MEDICO MATERNIDAD SEGURA","03 FEBRERO DE 2020","29 FEBRERO DE 2020",4240000,4240000,"WILFRAN JIMENEZ DE LA PEÑA","COORD CENTRO SALUD","CIUDADELA METROPOLITANA",837,1468,"20/02/2020","https://www.contratos.gov.co/consultas/detalleProceso.do?numConstancia=20-4-10520634"]
[288,44152277,"OLGA GARIZABALO PERTUZ","0742-2020","AUXILIAR DE ODONTOLOGIA","03 FEBRERO DE 2020","29 FEBRERO DE 2020",1166000,1166000,"VICTOR MIRANDA","SUBGERENTE CIENTIFICO","LA ESPERANZA",838,1469,"20/02/2020","https://www.contratos.gov.co/consultas/detalleProceso.do?numConstancia=20-4-10520627"]
[289,22443037,"OLGA RODRIGUEZ FIGUEROA","0743-2020","ENFERMERA JEFE CONSULTA EXTERNA ","03 FEBRERO DE 2020","29 FEBRERO DE 2020",1900000,1900000,"AIX PALACIO","COORD CENTRO DE SALUD","COSTA HERMOSA",839,1470,"20/02/2020","https://www.contratos.gov.co/consultas/detalleProceso.do?numConstancia=20-4-10520628"]
[290,26947248,"OSIRIS JIMENEZ ZAPATA","0744-2020","PSICOLOGO EN PROMOCION Y PREVENCION","03 FEBRERO DE 2020","29 FEBRERO DE 2020",2800000,2800000,"WILFRAN JIMENEZ DE LA PEÑA","COORD CENTRO SALUD","CIUDADELA METROPOLITANA",840,1471,"20/02/2020","https://www.contratos.gov.co/consultas/detalleProceso.do?numConstancia=20-4-10520817"]
[291,32742523,"OSIRIS MARIA SAMUDIO ESCOBAR ","0745-2020","ODONTOLOGO","03 FEBRERO DE 2020","29 FEBRERO DE 2020",1900000,1900000,"AIX PALACIO","COORD CENTRO DE SALUD","CENTRO  DE SALUD EL PARQUE",841,1472,"20/02/2020","https://www.contratos.gov.co/consultas/detalleProceso.do?numConstancia=20-4-10520823"]
[292,8749064,"OSVALDO CUENTAS  DE LAS  SALAS","0746-2020","ODONTOLOGO","03 FEBRERO DE 2020","29 FEBRERO DE 2020",1900000,1900000,"CARLOS VISBAL JIMENEZ","COORD CENTRO SALUD","CENTRO COSTA HERMOSA ",842,1473,"20/02/2020","https://www.contratos.gov.co/consultas/detalleProceso.do?numConstancia=20-4-10520831"]
[293,36594015,"PAOLA PEREZ SIERRA ","0747-2020","AUXILIAR DE ARCHIVO","03 FEBRERO DE 2020","29 FEBRERO DE 2020",1500000,1500000,"SANDRA SANMARTIN","SUB GERENTE ADMINISTRATIVO","ARCHIVO CENTRAL ",843,1474,"20/02/2020","https://www.contratos.gov.co/consultas/detalleProceso.do?numConstancia=20-4-10520853"]
[294,55307582,"PAOLA VALENCIA GUERRERO","0748-2020","MEDICO PROGRAMA CARDIOVASCULAR","03 FEBRERO DE 2020","29 FEBRERO DE 2020",2300000,2300000,"DIANA MARTINEZ PACHECO","COORD CENTRO DE SALUD","CENTRO SALAMANCA",844,1475,"20/02/2020","https://www.contratos.gov.co/consultas/detalleProceso.do?numConstancia=20-4-10520912"]
[295,1001870758,"PATRICIA MERCEDES NAVARRO VALENCIA","0749-2020","REGENTE DE FARMACIA ","03 FEBRERO DE 2020","29 FEBRERO DE 2020",2400000,2400000,"BETTY PERTUZ ","SUBGERENTE CIENTIFICO","ADMON -FARMACIA",845,1476,"20/02/2020","https://www.contratos.gov.co/consultas/detalleProceso.do?numConstancia=20-4-10520914"]
[296,1081799915,"PAULA ANDREA PIMIENTA ANDRADES","0750-2020","AUXILIAR DE ENFERMERIA URGENCIAS","03 FEBRERO DE 2020","29 FEBRERO DE 2020",1378000,1378000,"WILFRAN JIMENEZ DE LA PEÑA","COORD CENTRO SALUD","CIUDADELA METROPOLITANA",846,1477,"20/02/2020","https://www.contratos.gov.co/consultas/detalleProceso.do?numConstancia=20-4-10520930"]
[297,72015109,"PEDRO CARLOS CANTILLO BOLIVAR","0751-2020","ASESOR DE PRESUPUESTO","03 FEBRERO DE 2020","29 FEBRERO DE 2020",4500000,4500000,"NICOLAS OQUENDO","DIRECTOR FINANCIERO","ADMON COSTA HERMOSA",847,1478,"20/02/2020","https://www.contratos.gov.co/consultas/detalleProceso.do?numConstancia=20-4-10520998"]
[298,72231273,"PEDRO RAFAEL PEREZ HERNANDEZ","0752-2020","AGENTE CALL CENTER","03 FEBRERO DE 2020","29 FEBRERO DE 2020",1378000,1378000,"BETTY PERTUZ ","SUBGERENTE CIENTIFICO","COLL-CENTER- CIUDADELA METROPOLITANA",848,1479,"20/02/2020","https://www.contratos.gov.co/consultas/detalleProceso.do?numConstancia=20-4-10521167"]
[299,15074329,"RAFAEL ANTONIO RICO","0753-2020","ORIENTADOR","03 FEBRERO DE 2020","29 FEBRERO DE 2020",1270000,1270000,"WILFRAN JIMENEZ DE LA PEÑA","COORD CENTRO SALUD","CIUDADELA METROPOLITANA",849,1480,"20/02/2020","https://www.contratos.gov.co/consultas/detalleProceso.do?numConstancia=20-4-10521165"]
[300,9191876,"RAFAEL MOLINA CASTILLO","0754-2020","AUXILIAR DE FACTURACION URGENCIA","03 FEBRERO DE 2020","29 FEBRERO DE 2020",1400000,1400000,"SANDRA SANMARTIN","SUB GERENTE ADMINISTRATIVO","CENTRO COSTA HERMOSA ",850,1481,"20/02/2020","https://www.contratos.gov.co/consultas/detalleProceso.do?numConstancia=20-4-10521186"]
[301,8770590,"RAFAEL MOVILLA FLOREZ ","0755-2020","COORDINADOR DE FACTURACION","03 FEBRERO DE 2020","29 FEBRERO DE 2020",1600000,1600000,"LUIS GRANADOS GOMEZ","COORD CENTRO SALUD","CENTRO MANUELA BELTRAN",851,1482,"20/02/2020","https://www.contratos.gov.co/consultas/detalleProceso.do?numConstancia=20-4-10521212"]
[302,72147873,"RAMIRO ANTONIO SALAS LARA ","0756-2020","REGENTE DE FARMACIA ","03 FEBRERO DE 2020","29 FEBRERO DE 2020",1900000,{"$f":"H304*1","v":1900000},"BETTY PERTUZ ","SUBGERENTE CIENTIFICO","ADMON -FARMACIA",852,1483,"20/02/2020","https://www.contratos.gov.co/consultas/detalleProceso.do?numConstancia=20-4-10521213"]
[303,72144602,"RICARDO ISAAC OROZCO BARROS","0757-2020","CONDUCTOR DE AMBULANCIA ","03 FEBRERO DE 2020","29 FEBRERO DE 2020",1800000,1800000,"SERGIO BOVEA MARIN","COORD CENTRO SALUD","CENTRO DE 13 DE JUNIO ",853,1484,"20/02/2020","https://www.contratos.gov.co/consultas/detalleProceso.do?numConstancia=20-4-10521274"]
[304,32826802,"ROCIO ISABEL FRIAS COLPAS","0758-2020","AUXILIAR SERVICIOS GENERALES","03 FEBRERO DE 2020","29 FEBRERO DE 2020",1215000,1215000,"MARIA SANCHEZ AYALA","JEFE ALMACEN","ARCHIVO CENTRAL ",854,1485,"20/02/2020","https://www.contratos.gov.co/consultas/detalleProceso.do?numConstancia=20-4-10521275"]
[305,72293492,"RODOLFO ENRIQUE NARVAEZ  GUTIERREZ ","0759-2020","ESTADISTICA","03 FEBRERO DE 2020","29 FEBRERO DE 2020",3500000,3500000,"SANDRA SANMARTIN","SUB GERENTE ADMINISTRATIVO","ARCHIVO CENTRAL ",855,1486,"20/02/2020","https://www.contratos.gov.co/consultas/detalleProceso.do?numConstancia=20-4-10521294"]
[306,32613493,"ROSA ESCOBAR FANDIÑO","0760-2020","AUXILIAR DE ENFERMERIA URGENCIAS","03 FEBRERO DE 2020","29 FEBRERO DE 2020",1378000,1378000,"WILFRAN JIMENEZ DE LA PEÑA","COORD CENTRO SALUD","CIUDADELA METROPOLITANA",856,1487,"20/02/2020","https://www.contratos.gov.co/consultas/detalleProceso.do?numConstancia=20-4-10521304"]
[307,22446590,"ROSALBA CERPA MIRANDA ","0761-2020","AUXILIAR ADMINISTRATIVO -  SUBGERENCIA CIENTIFICA","03 FEBRERO DE 2020","29 FEBRERO DE 2020",1900000,1900000,"BETTY PERTUZ ","SUBGERENTE CIENTIFICO","CENTRO COSTA HERMOSA ",857,1488,"20/02/2020","https://www.contratos.gov.co/consultas/detalleProceso.do?numConstancia=20-4-10521325"]
[308,32664177,"ROSIRIS MONTES REDONDO","0762-2020","AUXILIAR DE ODONTOLOGIA","03 FEBRERO DE 2020","29 FEBRERO DE 2020",1166000,1166000,"YARELIS GUERRA CORREA","COORD CENTRO SALUD","CENTRO VILLA ESTADIO ",858,1489,"20/02/2020","https://www.contratos.gov.co/consultas/detalleProceso.do?numConstancia=20-4-10521352"]
[309,1140881027,"RUBEN DARIO GARZON GOMEZ","0763-2020","ABOGADO EXTERNO","03 FEBRERO DE 2020","29 FEBRERO DE 2020",4500000,4500000,"ORNELLA FIORENTINO ","JEFE OFICINA JURIDICA","CENTRO COSTA HERMOSA ",859,1490,"20/02/2020","https://www.contratos.gov.co/consultas/detalleProceso.do?numConstancia=20-4-10521390"]
[310,22527122,"RUBY DEL CARMEN BOSSIO HERRERA","0764-2020","AUXILIAR DE ENFERMERIA URGENCIAS","03 FEBRERO DE 2020","29 FEBRERO DE 2020",1378000,1378000,"SERGIO BOVEA MARIN","COORD CENTRO SALUD","CENTRO DE 13 DE JUNIO ",860,1491,"20/02/2020","https://www.contratos.gov.co/consultas/detalleProceso.do?numConstancia=20-4-10521418"]
[311,1140818354,"SAEN DAVID TAJAN NIEBLES","0765-2020","AUXILIAR ADMINISTRATIVO - DE  PROMOCION Y PREVENCION","03 FEBRERO DE 2020","29 FEBRERO DE 2020",2000000,2000000,"NILSA ARIZA MARQUEZ","COORDINADOR P Y P","CENTRO COSTA HERMOSA ",861,1492,"20/02/2020","https://www.contratos.gov.co/consultas/detalleProceso.do?numConstancia=20-4-10521440"]
[312,1143456204,"SANDRA MARCELA OVIEDO ROCA","0766-2020","ENFERMERA JEFE ","03 FEBRERO DE 2020","29 FEBRERO DE 2020",2300000,2300000,"YARELIS GUERRA CORREA","COORD CENTRO SALUD","CENTRO VILLA ESTADIO ",862,1493,"20/02/2020","https://www.contratos.gov.co/consultas/detalleProceso.do?numConstancia=20-4-10521587"]
[313,1042426990,"SANDRA MARCELA PEREZ BERMEJO","0767-2020","MEDICO DE URGENCIA","03 FEBRERO DE 2020","29 FEBRERO DE 2020",2560000,2560000,"SERGIO BOVEA MARIN","COORD CENTRO SALUD","CENTRO DE 13 DE JUNIO ",863,1494,"20/02/2020","https://www.contratos.gov.co/consultas/detalleProceso.do?numConstancia=20-4-10521636"]
[314,39142741,"SANDRA MILENA ARCON PEREZ","0768-2020","FARMACIA ADMINISTRATIVA","03 FEBRERO DE 2020","29 FEBRERO DE 2020",1378000,1378000,"BETTY PERTUZ ","SUBGERENTE CIENTIFICO","CIUDADELA METROPOLITANA",864,1495,"20/02/2020","https://www.contratos.gov.co/consultas/detalleProceso.do?numConstancia=20-4-10521660"]
[315,1042441044,"SASKIA STEFANIA SOTOMAYOR SOLANO","0769-2020","ORIENTADOR","03 FEBRERO DE 2020","29 FEBRERO DE 2020",1270000,1270000,"LUIS GRANADOS GOMEZ","COORD CENTRO SALUD","CENTRO MANUELA BELTRAN",865,1496,"20/02/2020","https://www.contratos.gov.co/consultas/detalleProceso.do?numConstancia=20-4-10521743"]
[316,1045691613,"SERGIO ANDRES MANJARRES MAESTRE","0770-2020","PLANEACION ","03 FEBRERO DE 2020","29 FEBRERO DE 2020",4000000,4000000,"SANDRA SANMARTIN","SUB GERENTE ADMINISTRATIVO","CENTRO MANUELA BELTRAN",866,1497,"20/02/2020","https://www.contratos.gov.co/consultas/detalleProceso.do?numConstancia=20-4-10521829"]
[317,1140864973,"SERGIO JAVIER MARTINEZ GUERRA","0771-2020","ASESOR GERENCIA","03 FEBRERO DE 2020","29 FEBRERO DE 2020",5000000,5000000,"ROSA MADERA","GERENTE ","ADMON COSTA HERMOSA",867,1498,"20/02/2020","https://www.contratos.gov.co/consultas/detalleProceso.do?numConstancia=20-4-10521830"]
[318,1129572439,"SHIRLEY CONSUEGRA OLAYA","0772-2020","REFERENCIA Y CONTRAREFERENCIA","03 FEBRERO DE 2020","29 FEBRERO DE 2020",1270000,1270000,"SERGIO BOVEA MARIN","COORD CENTRO SALUD","CENTRO DE 13 DE JUNIO ",868,1499,"20/02/2020","https://www.contratos.gov.co/consultas/detalleProceso.do?numConstancia=20-4-10522113"]
[319,32878246,"SHIRLY ISABEL RECIO COLLANTE","0773-2020","AUXILIAR ENFERMERIA CON EXTERNA","03 FEBRERO DE 2020","29 FEBRERO DE 2020",1166000,1166000,"BETTY PERTUZ ","SUBGERENTE CIENTIFICO","LA ESPERANZA",869,1500,"20/02/2020","https://www.contratos.gov.co/consultas/detalleProceso.do?numConstancia=20-4-10521906"]
[320,1045674051,"SHIRLY PAOLA GUZMAN GUZMAN ","0774-2020","ODONTOLOGO","03 FEBRERO DE 2020","29 FEBRERO DE 2020",1900000,1900000,"AIX PALACIO","COORD CENTRO DE SALUD","CENTRO  DE SALUD EL PARQUE",870,1501,"20/02/2020","https://www.contratos.gov.co/consultas/detalleProceso.do?numConstancia=20-4-10521946"]
[321,22562553,"SILVANA BEATRIZ GONZALEZ MORENO ","0775-2020","TECNICO ALMACEN ","03 FEBRERO DE 2020","29 FEBRERO DE 2020",1900000,1900000,"MARIA SANCHEZ AYALA","JEFE ALMACEN","ARCHIVO CENTRAL ",871,1502,"20/02/2020","https://www.contratos.gov.co/consultas/detalleProceso.do?numConstancia=20-4-10522456"]
[322,32870174,"SIRLEY PAOLA PEREZ CARMONA","0776-2020","CALIDAD","03 FEBRERO DE 2020","29 FEBRERO DE 2020",5800000,5800000,"BETTY PERTUZ ","SUBGERENTE CIENTIFICO","ADMON COSTA HERMOSA",872,1503,"20/02/2020","https://www.contratos.gov.co/consultas/detalleProceso.do?numConstancia=20-4-10526073"]
[{"$f":"+A324+1","v":323},8683158,"SMELING ORTIZ CHARRIS","0777-2020","ORIENTADOR","03 FEBRERO DE 2020","29 FEBRERO DE 2020",1270000,1270000,"CARLOS VISBAL JIMENEZ","COORD CENTRO SALUD","CENTRO COSTA HERMOSA ",873,1504,"20/02/2020","https://www.contratos.gov.co/consultas/detalleProceso.do?numConstancia=20-4-10526540"]
[324,1129577912,"SOLANGI PAOLA FONTALVO JIMENEZ","0778-2020","INGENIERO INDUSTRIAL","03 FEBRERO DE 2020","29 FEBRERO DE 2020",4000000,4000000,"ROSA MADERA","GERENTE ","ADMON COSTA HERMOSA",874,1505,"20/02/2020","https://www.contratos.gov.co/consultas/detalleProceso.do?numConstancia=20-4-10526606"]
[325,22532041,"SORAYA  MARIA BACA RODRIGUEZ","0779-2020","PSICOLOGO EN PROMOCION Y PREVENCION","03 FEBRERO DE 2020","29 FEBRERO DE 2020",2800000,2800000,"SERGIO BOVEA MARIN","COORD CENTRO SALUD","CENTRO DE 13 DE JUNIO ",875,1506,"20/02/2020","https://www.contratos.gov.co/consultas/detalleProceso.do?numConstancia=20-4-10526699"]
[326,1140814033,"STEFANY RINCON TORRES","0780-2020","PROFESIONAL EN FINANZAS","03 FEBRERO DE 2020","29 FEBRERO DE 2020",3000000,3000000,"NICOLAS OQUENDO","DIRECTOR FINANCIERO","ADMON COSTA HERMOSA",876,1507,"20/02/2020","https://www.contratos.gov.co/consultas/detalleProceso.do?numConstancia=20-4-10527083"]
[327,1143447904,"STEFFANY BRIGGITTE ALVAREZ LLERENA","0781-2020","PAI WEB ","03 FEBRERO DE 2020","29 FEBRERO DE 2020",1500000,1500000,"NILSA ARIZA MARQUEZ","COORDINADOR P Y P","ARCHIVO CENTRAL ",877,1508,"20/02/2020","https://www.contratos.gov.co/consultas/detalleProceso.do?numConstancia=20-4-10527092"]
[328,1042430978,"TATIANA BARRIOSNUEVO CERA","0782-2020","AUXILIAR DE ENFERMERIA URGENCIAS","03 FEBRERO DE 2020","29 FEBRERO DE 2020",1378000,1378000,"SERGIO BOVEA MARIN","COORD CENTRO SALUD","CENTRO DE 13 DE JUNIO ",878,1509,"20/02/2020","https://www.contratos.gov.co/consultas/detalleProceso.do?numConstancia=20-4-10527101"]
[329,32874863,"TATIANA PAEZ DE LA CRUZ","0783-2020","AUXILIAR DE ENFERMERIA URGENCIAS","03 FEBRERO DE 2020","29 FEBRERO DE 2020",1378000,1378000,"SERGIO BOVEA MARIN","COORD CENTRO SALUD","CENTRO DE 13 DE JUNIO ",879,1510,"20/02/2020","https://www.contratos.gov.co/consultas/detalleProceso.do?numConstancia=20-4-10527114"]
[330,32884590,"TATIANA SUAREZ CABALLERO ","0784-2020","AUXILIAR ENFERMERIA MATERNIDAD SEGURA","03 FEBRERO DE 2020","29 FEBRERO DE 2020",1166000,1166000,"SERGIO BOVEA MARIN","COORD CENTRO SALUD","CENTRO DE 13 DE JUNIO ",880,1511,"20/02/2020","https://www.contratos.gov.co/consultas/detalleProceso.do?numConstancia=20-4-10527142"]
[331,8771123,"TEDDY VARGAS MONTERO","0785-2020","ODONTOLOGO","03 FEBRERO DE 2020","29 FEBRERO DE 2020",1900000,1900000,"YARELIS GUERRA CORREA","COORD CENTRO SALUD","CENTRO VILLA ESTADIO ",881,1512,"20/02/2020","https://www.contratos.gov.co/consultas/detalleProceso.do?numConstancia=20-4-10527145"]
[332,1045692313,"VANESSA CASSIANI PEREZ","0786-2020","DIGITADORA 4725","03 FEBRERO DE 2020","29 FEBRERO DE 2020",1378000,1378000,"NILSA ARIZA MARQUEZ","COORDINADOR P Y P","CIUDADELA METROPOLITANA",882,1513,"20/02/2020","https://www.contratos.gov.co/consultas/detalleProceso.do?numConstancia=20-4-10527149"]
[333,1007908949,"VERONICA POLET TODARO PEDROZO","0787-2020","MEDICO  CONSULTA EXTERNA","03 FEBRERO DE 2020","29 FEBRERO DE 2020",2120000,2120000,"DIANA MARTINEZ PACHECO","COORD CENTRO DE SALUD","CENTRO SALAMANCA",883,1514,"20/02/2020","https://www.contratos.gov.co/consultas/detalleProceso.do?numConstancia=20-4-10527155"]
[334,1140848431,"VICTORIA DEL SOCORRO CANTILLO PEREZ","0788-2020","ENFERMERA CAPACITACION Y TALLER","03 FEBRERO DE 2020","29 FEBRERO DE 2020",2500000,2500000,"LUIS GRANADOS GOMEZ","COORD CENTRO SALUD","CENTRO MANUELA BELTRAN",884,1515,"20/02/2020","https://www.contratos.gov.co/consultas/detalleProceso.do?numConstancia=20-4-10527171"]
[335,32703436,"VILMA ZUÑIGA GONZALEZ","0789-2020","AUXILIAR DE ODONTOLOGIA","03 FEBRERO DE 2020","29 FEBRERO DE 2020",1166000,1166000,"CARLOS VISBAL JIMENEZ","COORD CENTRO SALUD","CENTRO COSTA HERMOSA ",885,1516,"20/02/2020","https://www.contratos.gov.co/consultas/detalleProceso.do?numConstancia=20-4-10527175"]
[336,32817885,"VIOLI ESTER BARRIOS GUARDELA","0790-2020","TRABAJADORA SOCIAL","03 FEBRERO DE 2020","29 FEBRERO DE 2020",2200000,2200000,"BETTY PERTUZ ","SUBGERENTE CIENTIFICO","CIUDADELA METROPOLITANA",886,1517,"20/02/2020","https://www.contratos.gov.co/consultas/detalleProceso.do?numConstancia=20-4-10527184"]
[337,1048271951,"WENDY OFELIA BARRAZA PUA","0791-2020","AUXILIAR DE ENFERMERIA URGENCIAS","03 FEBRERO DE 2020","29 FEBRERO DE 2020",1378000,1378000,"WILFRAN JIMENEZ DE LA PEÑA","COORD CENTRO SALUD","CIUDADELA METROPOLITANA",887,1518,"20/02/2020","https://www.contratos.gov.co/consultas/detalleProceso.do?numConstancia=20-4-10527186"]
[338,72202548,"WILBER CASTRO RIOS","0792-2020","MENSAJERO ","03 FEBRERO DE 2020","29 FEBRERO DE 2020",2000000,2000000,"SANDRA SANMARTIN","SUB GERENTE ADMINISTRATIVO","ADMON COSTA HERMOSA",888,1519,"20/02/2020","https://www.contratos.gov.co/consultas/detalleProceso.do?numConstancia=20-4-10527189"]
[339,1045680952,"WILLIAM RAFAEL DAVIDSON URIETA","0793-2020","MEDICO CONSULTA EXTERNA ","03 FEBRERO DE 2020","29 FEBRERO DE 2020",2120000,2120000,"CARLOS VISBAL JIMENEZ","COORD CENTRO SALUD","CENTRO COSTA HERMOSA ",889,1520,"20/02/2020","https://www.contratos.gov.co/consultas/detalleProceso.do?numConstancia=20-4-10527196"]
[340,72130373,"WILLYS CARLOS PEREZ TRONCOSO","0794-2020","MEDICO CONSULTA EXTERNA ","03 FEBRERO DE 2020","29 FEBRERO DE 2020",2120000,2120000,"CARLOS VISBAL JIMENEZ","COORD CENTRO SALUD","CENTRO COSTA HERMOSA ",890,1521,"20/02/2020","https://www.contratos.gov.co/consultas/detalleProceso.do?numConstancia=20-4-10527202"]
[341,1042456068,"XILENA PACHECO OSPINO ","0795-2020","AUXILIAR DE ENFERMERIA URGENCIAS","03 FEBRERO DE 2020","29 FEBRERO DE 2020",1378000,1378000,"SERGIO BOVEA MARIN","COORD CENTRO SALUD","CENTRO DE 13 DE JUNIO ",891,1522,"20/02/2020","https://www.contratos.gov.co/consultas/detalleProceso.do?numConstancia=20-4-10527205"]
[342,44153255,"XIMENA ESCORCIA CASTRO","0796-2020","MEDICO DE URGENCIA","03 FEBRERO DE 2020","29 FEBRERO DE 2020",2560000,2560000,"SERGIO BOVEA MARIN","COORD CENTRO SALUD","CENTRO DE 13 DE JUNIO ",892,1523,"20/02/2020","https://www.contratos.gov.co/consultas/detalleProceso.do?numConstancia=20-4-10527210"]
[343,52703063,"XIOMARA  BELLO ORTEGA","0797-2020","AUXILIAR DE ENFERMERIA URGENCIAS","03 FEBRERO DE 2020","29 FEBRERO DE 2020",1378000,1378000,"WILFRAN JIMENEZ DE LA PEÑA","COORD CENTRO SALUD","CIUDADELA METROPOLITANA",893,1524,"20/02/2020","https://www.contratos.gov.co/consultas/detalleProceso.do?numConstancia=20-4-10527846"]
[344,1042437499,"XIOMARA ALEJANDRA MAURY PACHECO ","0798-2020","ENFERMERA JEFE URGENCIAS ","03 FEBRERO DE 2020","29 FEBRERO DE 2020",1900000,1900000,"BETTY PERTUZ ","SUBGERENTE CIENTIFICO","CENTRO DE 13 DE JUNIO ",894,1525,"20/02/2020","https://www.contratos.gov.co/consultas/detalleProceso.do?numConstancia=20-4-10527885"]
[345,72429429,"YAIR BARRAZA CERVANTES ","0799-2020","MEDICO PROGRAMA CARDIOVASCULAR","03 FEBRERO DE 2020","29 FEBRERO DE 2020",2300000,2300000,"YARELIS GUERRA CORREA","COORD CENTRO SALUD","CENTRO VILLA ESTADIO ",895,1526,"20/02/2020","https://www.contratos.gov.co/consultas/detalleProceso.do?numConstancia=20-4-10527913"]
[346,32876060,"YAKELIN BOLAÑO MIRANDA","0800-2020","AUXILIAR DE ODONTOLOGIA","03 FEBRERO DE 2020","29 FEBRERO DE 2020",1166000,1166000,"DIANA MARTINEZ PACHECO","COORD CENTRO DE SALUD","CENTRO SALAMANCA",896,1527,"20/02/2020","https://www.contratos.gov.co/consultas/detalleProceso.do?numConstancia=20-4-10527934"]
[347,1143452731,"YAMILEC PATRICIA GUERRERO YEPES","0801-2020","ENFERMERA JEFE ","03 FEBRERO DE 2020","29 FEBRERO DE 2020",1900000,1900000,"LUIS GRANADOS GOMEZ","COORD CENTRO SALUD","CENTRO MANUELA BELTRAN",897,1528,"20/02/2020","https://www.contratos.gov.co/consultas/detalleProceso.do?numConstancia=20-4-10527979"]
[348,56087561,"YAMILZA ESTHER MURGAS ORTIZ","0802-2020","AUXILIAR DE ENFERMERIA","03 FEBRERO DE 2020","29 FEBRERO DE 2020",1166000,1166000,"LUIS GRANADOS GOMEZ","COORD CENTRO SALUD","CENTRO MANUELA BELTRAN",898,1529,"20/02/2020","https://www.contratos.gov.co/consultas/detalleProceso.do?numConstancia=20-4-10527999"]
[349,32816824,"YANETH CARO VITOLA","0803-2020","AUXILIAR DE ENFERMERIA P Y P ","03 FEBRERO DE 2020","29 FEBRERO DE 2020",1166000,1166000,"WILFRAN JIMENEZ DE LA PEÑA","COORD CENTRO SALUD","CIUDADELA METROPOLITANA",899,1530,"20/02/2020","https://www.contratos.gov.co/consultas/detalleProceso.do?numConstancia=20-4-10528029"]
[350,44159754,"YANIRE CARLINA CASTRO ESCALANTE","0804-2020","GINECOLOGO ","03 FEBRERO DE 2020","29 FEBRERO DE 2020",6000000,6000000,"NILSA ARIZA MARQUEZ","COORDINADOR P Y P","CIUDADELA METROPOLITANA",900,1531,"20/02/2020","https://www.contratos.gov.co/consultas/detalleProceso.do?numConstancia=20-4-10528050"]
[351,1143452684,"YEISON MISAEL DUARTE CALDERON","0805-2020","CONDUCTOR DE AMBULANCIA ","03 FEBRERO DE 2020","29 FEBRERO DE 2020",1800000,1800000,"BETTY PERTUZ ","SUBGERENTE CIENTIFICO","CIUDADELA METROPOLITANA",901,1532,"20/02/2020","https://www.contratos.gov.co/consultas/detalleProceso.do?numConstancia=20-4-10528086"]
[352,1045733253,"YELICSE LORENA ALFONSO DE LOS SANTOS","0806-2020","AUXILIAR ADMINISTRATIVO ","03 FEBRERO DE 2020","29 FEBRERO DE 2020",1500000,1500000,"SANDRA SANMARTIN","SUB GERENTE ADMINISTRATIVO","ADMON COSTA HERMOSA",902,1533,"20/02/2020","https://www.contratos.gov.co/consultas/detalleProceso.do?numConstancia=20-4-10528108"]
[353,1143450666,"YERLIS PAOLA FONTALVO LAMBRAÑO","0807-2020","AUXILIAR FACTURACION URGENCIA","03 FEBRERO DE 2020","29 FEBRERO DE 2020",1400000,1400000,"SANDRA SANMARTIN","SUB GERENTE ADMINISTRATIVO","CENTRO MACLOVIA",903,1534,"20/02/2020","https://www.contratos.gov.co/consultas/detalleProceso.do?numConstancia=20-4-10528138"]
[354,1143132965,"YERLIS PAOLA GAMARRA BORJA","0808-2020","AUXILIAR ADMINITRATIVO - GERENCIA","03 FEBRERO DE 2020","29 FEBRERO DE 2020",4000000,4000000,"ROSA MADERA","GERENTE ","ADMON COSTA HERMOSA",904,1535,"20/02/2020","https://www.contratos.gov.co/consultas/detalleProceso.do?numConstancia=20-4-10528171"]
[355,55246222,"YESIKA ANGULO MADRID","0809-2020","FISIOTERAPEUTA ","03 FEBRERO DE 2020","29 FEBRERO DE 2020",1900000,1900000,"WILFRAN JIMENEZ DE LA PEÑA","COORD CENTRO SALUD","CIUDADELA METROPOLITANA",905,1536,"20/02/2020","https://www.contratos.gov.co/consultas/detalleProceso.do?numConstancia=20-4-10528195"]
[356,1042425681,"YESMITH ALEXI GARIZABALO RETAMOSO ","0810-2020","MEDICO DE URGENCIA","03 FEBRERO DE 2020","29 FEBRERO DE 2020",2560000,2560000,"SERGIO BOVEA MARIN","COORD CENTRO SALUD","CENTRO DE 13 DE JUNIO ",906,1537,"20/02/2020","https://www.contratos.gov.co/consultas/detalleProceso.do?numConstancia=20-4-10528218"]
[357,32739126,"YIRA DEL CARMEN PEÑALOZA AREVALO","0811-2020","AUXILIAR SERVICIOS GENERALES URGENCIA","03 FEBRERO DE 2020","29 FEBRERO DE 2020",1378000,1378000,"SERGIO BOVEA MARIN","COORD CENTRO SALUD","CENTRO DE 13 DE JUNIO ",907,1538,"20/02/2020","https://www.contratos.gov.co/consultas/detalleProceso.do?numConstancia=20-4-10528272"]
[358,32896400,"YISEL BEATRIZ ARROYO SUAREZ","0812-2020","AUXILIAR DE FACTURACION URGENCIA","03 FEBRERO DE 2020","29 FEBRERO DE 2020",1400000,1400000,"SERGIO BOVEA MARIN","COORD CENTRO SALUD","CENTRO DE 13 DE JUNIO ",908,1539,"20/02/2020","https://www.contratos.gov.co/consultas/detalleProceso.do?numConstancia=20-4-10528289"]
[359,1140864808,"YONELIS MARGARITA VILLALVA LUQUE","0813-2020","ASISTENTE COORDINADOR MEDICO","03 FEBRERO DE 2020","29 FEBRERO DE 2020",2200000,2200000,"LUIS GRANADOS GOMEZ","COORD CENTRO SALUD","CENTRO MANUELA BELTRAN",909,1540,"20/02/2020","https://www.contratos.gov.co/consultas/detalleProceso.do?numConstancia=20-4-10528309"]
[360,55230396,"YORLETH MALENA FLOREZ ABRIL","0814-2020","MEDICO DE URGENCIA","03 FEBRERO DE 2020","29 FEBRERO DE 2020",2560000,2560000,"SERGIO BOVEA MARIN","COORD CENTRO SALUD","CENTRO DE 13 DE JUNIO ",910,1541,"20/02/2020","https://www.contratos.gov.co/consultas/detalleProceso.do?numConstancia=20-4-10528341"]
[361,55225095,"YURAIMA GUTIERREZ HERNANDEZ","0815-2020","REGENTE DE FARMACIA ","03 FEBRERO DE 2020","29 FEBRERO DE 2020",1900000,1900000,"BETTY PERTUZ ","SUBGERENTE CIENTIFICO","ADMON -FARMACIA",911,1542,"20/02/2020","https://www.contratos.gov.co/consultas/detalleProceso.do?numConstancia=20-4-10528639"]
[362,1042436116,"YURANIS SOTO OSORIO","0816-2020","AUXILIAR DE ENFERMERIA URGENCIAS","03 FEBRERO DE 2020","29 FEBRERO DE 2020",1378000,1378000,"WILFRAN JIMENEZ DE LA PEÑA","COORD CENTRO SALUD","CIUDADELA METROPOLITANA",912,1543,"20/02/2020","https://www.contratos.gov.co/consultas/detalleProceso.do?numConstancia=20-4-10551162"]
[363,44155518,"YURLEY FONTALVO RIVALDO ","0817-2020","MEDICO DE URGENCIA","03 FEBRERO DE 2020","29 FEBRERO DE 2020",2560000,2560000,"BETTY PERTUZ ","SUBGERENTE CIENTIFICO","CIUDADELA METROPOLITANA",913,1544,"20/02/2020","https://www.contratos.gov.co/consultas/detalleProceso.do?numConstancia=20-4-10533066"]
[364,32865503,"ZULAI DONADO PARODIS ","0818-2020","AUXILIAR DE ENFERMERIA P Y P ","03 FEBRERO DE 2020","29 FEBRERO DE 2020",1166000,1166000,"SERGIO BOVEA MARIN","COORD CENTRO SALUD","CENTRO DE 13 DE JUNIO ",914,1545,"20/02/2020","https://www.contratos.gov.co/consultas/detalleProceso.do?numConstancia=20-4-10551210"]
[365,8693329,"RAMON ENRIQUE DE LA CRUZ MENDEZ ","0819-2020","MEDICO CONSULTA EXTERNA-VICTIMAS ","03 FEBRERO DE 2020","29 FEBRERO DE 2020",4500000,4500000,"BETTY PERTUZ ","SUBGERENTE CIENTIFICO","CENTRO COSTA HERMOSA ",915,1546,"20/02/2020","https://www.contratos.gov.co/consultas/detalleProceso.do?numConstancia=20-4-10533091"]
[366,8756266,"GEOVANNY ESCORCIA JIMENEZ","0820-2020","AUXILIAR DE ARCHIVO","03 FEBRERO DE 2020","29 FEBRERO DE 2020",1500000,{"$f":"H368*1","v":1500000},"SANDRA SANMARTIN","SUB GERENTE ADMINISTRATIVO","ADMON COSTA HERMOSA",916,1547,"20/02/2020","https://www.contratos.gov.co/consultas/detalleProceso.do?numConstancia=20-4-10551211"]
[367,32788911,"PEGGY ESTHER CARRILLO MUÑOZ","0821-2020","PAI WEB ","03 FEBRERO DE 2020","29 FEBRERO DE 2020",1500000,1500000,"NILSA ARIZA MARQUEZ","COORDINADOR P Y P","ARCHIVO CENTRAL ",917,1548,"20/02/2020","https://www.contratos.gov.co/consultas/detalleProceso.do?numConstancia=20-4-10541899"]
[368,32771594,"JUANA DIAZ CARABALLO","0822-2020","AUXILIAR DE ENFERMERIA URGENCIAS","03 FEBRERO DE 2020","29 FEBRERO DE 2020",1378000,1378000,"SERGIO BOVEA MARIN","COORD CENTRO SALUD","CENTRO DE 13 DE JUNIO ",918,1549,"20/02/2020","https://www.contratos.gov.co/consultas/detalleProceso.do?numConstancia=20-4-10551246"]
[369,55250327,"YURANIS BONIFAS CAÑAS","0823-2020","COORDINADOR DE PAI WEB","03 FEBRERO DE 2020","29 FEBRERO DE 2020",3000000,3000000,"NILSA ARIZA MARQUEZ","COORDINADOR P Y P","CENTRO MANUELA BELTRAN",919,1550,"20/02/2020","https://www.contratos.gov.co/consultas/detalleProceso.do?numConstancia=20-4-10541902"]
[370,44157462,"DAYAN MARTINEZ PACHECO","0824-2020","ABOGADO EXTERNO","03 FEBRERO DE 2020","29 FEBRERO DE 2020",5000000,5000000,"ORNELLA FIORENTINO ","JEFE OFICINA JURIDICA","CENTRO COSTA HERMOSA ",920,1551,"20/02/2020","https://www.contratos.gov.co/consultas/detalleProceso.do?numConstancia=20-4-10536862"]
[371,1042445229,"YERLYS VANESA RUIZ LAMADRID","0825-2020","FISIOTERAPEUTA ","03 FEBRERO DE 2020","29 FEBRERO DE 2020",1900000,1900000,"SERGIO BOVEA MARIN","COORD CENTRO SALUD","CENTRO DE 13 DE JUNIO ",921,1552,"20/02/2020","https://www.contratos.gov.co/consultas/detalleProceso.do?numConstancia=20-4-10553870"]
[372,1042420928,"DINA DEL CARMEN  CUELLO DONADO","0826-2020","AUXILIAR DE FACTURACION URGENCIA","03 FEBRERO DE 2020","29 FEBRERO DE 2020",1400000,1400000,"WILFRAN JIMENEZ DE LA PEÑA","COORD CENTRO SALUD","CIUDADELA METROPOLITANA",922,1553,"20/02/2020","https://www.contratos.gov.co/consultas/detalleProceso.do?numConstancia=20-4-10553879"]
[373,22641629,"ANGELICA CARCAMO ANAYA","0827-2020","AGENTE CALL CENTER","03 FEBRERO DE 2020","29 FEBRERO DE 2020",1378000,1378000,"BETTY PERTUZ ","SUBGERENTE CIENTIFICO","COLL-CENTER- CIUDADELA METROPOLITANA",923,1554,"20/02/2020","https://www.contratos.gov.co/consultas/detalleProceso.do?numConstancia=20-4-10533114"]
[374,33109830,"CARMEN ELISA LEONES CASTRO","0828-2020","AGENTE CALL CENTER","03 FEBRERO DE 2020","29 FEBRERO DE 2020",{"$f":"1378000+1378000/2","v":2067000},2067000,"BETTY PERTUZ ","SUBGERENTE CIENTIFICO","CIUDADELA METROPOLITANA",924,1555,"20/02/2020","https://www.contratos.gov.co/consultas/detalleProceso.do?numConstancia=20-4-10533131"]
[375,72271914,"LEONARDO DE JESUS ARIZA NIEBLES          ","0829-2020","AUXILIAR DE ARCHIVO","03 FEBRERO DE 2020","29 FEBRERO DE 2020",{"$f":"1500000+1500000/2","v":2250000},2250000,"SANDRA SANMARTIN","SUB GERENTE ADMINISTRATIVO","ADMON COSTA HERMOSA",925,1556,"20/02/2020","https://www.contratos.gov.co/consultas/detalleProceso.do?numConstancia=20-4-10553903"]
[376,1042416953,"GABRIEL JOSE MONTIEL CERVANTES","0830-2020","COORDINADOR DE HARDWARE","03 FEBRERO DE 2020","29 FEBRERO DE 2020",3000000,3000000,"ZULI ROMERO","COORDINADOR TIC ","ADMON COSTA HERMOSA",926,1557,"20/02/2020","https://www.contratos.gov.co/consultas/detalleProceso.do?numConstancia=20-4-10534782"]
[377,1042436897,"LIZETH PATRICIA BLANQUICETT FERRER","0831-2020","AGENTE CALL CENTER","03 FEBRERO DE 2020","29 FEBRERO DE 2020",1378000,1378000,"BETTY PERTUZ ","SUBGERENTE CIENTIFICO","CIUDADELA METROPOLITANA",927,1558,"20/02/2020","https://www.contratos.gov.co/consultas/detalleProceso.do?numConstancia=20-4-10533151"]
[378,1042421404,"MARIAM DEL CARMEN CANTILLO MONTERO","0832-2020","AUDITOR ODONTOLOGIA","03 FEBRERO DE 2020","29 FEBRERO DE 2020",3000000,3000000,"BETTY PERTUZ ","SUBGERENTE CIENTIFICO","ADMON COSTA HERMOSA",928,1559,"20/02/2020","https://www.contratos.gov.co/consultas/detalleProceso.do?numConstancia=20-4-10533165"]
[379,8495176,"JAIME ALBERTO ALVAREZ NORIEGA","0833-2020","INGENIERO AMBIENTAL","03 FEBRERO DE 2020","29 FEBRERO DE 2020",3000000,3000000,"SANDRA SANMARTIN","SUB GERENTE ADMINISTRATIVO","ADMON COSTA HERMOSA",929,1560,"20/02/2020","https://www.contratos.gov.co/consultas/detalleProceso.do?numConstancia=20-4-10553941"]
[380,8774531,"MARIANO JOSE UCROS ROMERO","0834-2020","AUXILIAR DE ARCHIVO","03 FEBRERO DE 2020","29 FEBRERO DE 2020",1500000,1500000,"SANDRA SANMARTIN","SUB GERENTE ADMINISTRATIVO","ARCHIVO CENTRAL ",930,1561,"20/02/2020","https://www.contratos.gov.co/consultas/detalleProceso.do?numConstancia=20-4-10553958"]
[381,1045721126,"MARYURIS JOANNA GALVAN NAVARRO","0835-2020","COORDINADOR DE LABORATORIO","03 FEBRERO DE 2020","29 FEBRERO DE 2020",5000000,5000000,"BETTY PERTUZ ","SUBGERENTE CIENTIFICO",null,931,1562,"20/02/2020","https://www.contratos.gov.co/consultas/detalleProceso.do?numConstancia=20-4-10533178"]
[382,1010137665,"KAROLINE JUDITH MORENO VARELO","0836-2020","AUXILIAR ADMINISTRATIVO - COORD PYP","03 FEBRERO DE 2020","29 FEBRERO DE 2020",1500000,1500000,"NILSA ARIZA MARQUEZ","COORD CENTRO SALUD","ADMON COSTA HERMOSA",932,1563,"20/02/2020","https://www.contratos.gov.co/consultas/detalleProceso.do?numConstancia=20-4-10541902"]
[383,15666678,"ALFREDO ANTONIO RAMIREZ PEREIRA","0837-2020","COORDINADOR DE ARCHIVO ","03 FEBRERO DE 2020","29 FEBRERO DE 2020",3000000,3000000,"SANDRA SANMARTIN","SUB GERENTE ADMINISTRATIVO","ARCHIVO CENTRAL ",933,1564,"20/02/2020","https://www.contratos.gov.co/consultas/detalleProceso.do?numConstancia=20-4-10553969"]
[384,1007045398,"ELIEZER VEGA ARAGON","0838-2020","AUXILIAR DE ARCHIVO","03 FEBRERO DE 2020","29 FEBRERO DE 2020",1500000,1500000,"SANDRA SANMARTIN","SUB GERENTE ADMINISTRATIVO","ARCHIVO CENTRAL ",934,1565,"20/02/2020","https://www.contratos.gov.co/consultas/detalleProceso.do?numConstancia=20-4-10553977"]
[385,1001798861,"MARTHA LAURA VIZCAINO PEREZ","0839-2020","PAI WEB ","03 FEBRERO DE 2020","29 FEBRERO DE 2020",1400000,1400000,"NILSA ARIZA MARQUEZ","COORD CENTRO SALUD","ARCHIVO CENTRAL ",935,1566,"20/02/2020","https://www.contratos.gov.co/consultas/detalleProceso.do?numConstancia=20-4-10541924"]
[386,1043611198,"CRISTIAN JESUS RODRIGUEZ QUIROZ","0840-2020","AUXILIAR PRESUPUESTO","03 FEBRERO DE 2020","29 FEBRERO DE 2020",1900000,1900000,"NICOLAS OQUENDO","DIRECTOR FINANCIERO","ADMON COSTA HERMOSA",936,1567,"20/02/2020","https://www.contratos.gov.co/consultas/detalleProceso.do?numConstancia=20-4-10540754"]
[{"$f":"+A388+1","v":387},45757809,"MILADIS MARINA MARTINEZ MEDINA","0841-2020","COORDINADORA SIAU","03 FEBRERO DE 2020","29 FEBRERO DE 2020",3000000,3000000,"BETTY PERTUZ ","SUBGERENTE CIENTIFICO","ADMON COSTA HERMOSA",937,1568,"20/02/2020","https://www.contratos.gov.co/consultas/detalleProceso.do?numConstancia=20-4-10533203"]
[388,22647051,"EDELMIRA DUQUE LAMADRID","0842-2020","FISIOTERAPEUTA ","03 FEBRERO DE 2020","29 FEBRERO DE 2020",1900000,1900000,"CARLOS VISBAL JIMENEZ","COORD CENTRO SALUD","CENTRO COSTA HERMOSA ",938,1569,"20/02/2020","https://www.contratos.gov.co/consultas/detalleProceso.do?numConstancia=20-4-10532235"]
[389,1045670289,"HOLMAN ALEXANDER AVILA FERNANDEZ","0843-2020","FACTURACION CENTRAL","03 FEBRERO DE 2020","29 FEBRERO DE 2020",2500000,2500000,"SANDRA SANMARTIN","SUB GERENTE ADMINISTRATIVO","ADMON COSTA HERMOSA",939,1570,"20/02/2020","https://www.contratos.gov.co/consultas/detalleProceso.do?numConstancia=20-4-10553982"]
[390,72181563,"EDGARDO THORNE GLENN","0844-2020","ODONTOLOGO","03 FEBRERO DE 2020","29 FEBRERO DE 2020",1900000,1900000,"WILFRAN JIMENEZ DE LA PEÑA","COORD CENTRO SALUD","CIUDADELA METROPOLITANA",940,1571,"20/02/2020","https://www.contratos.gov.co/consultas/detalleProceso.do?numConstancia=20-4-10553997"]
[391,1042428171,"ALEX ENRIQUE VILLARREAL IBAÑEZ","0845-2020","ODONTOLOGO","03 FEBRERO DE 2020","29 FEBRERO DE 2020",1900000,1900000,"SERGIO BOVEA MARIN","COORD CENTRO SALUD","CENTRO DE 13 DE JUNIO ",941,1572,"20/02/2020","https://www.contratos.gov.co/consultas/detalleProceso.do?numConstancia=20-4-10554020"]
[392,72000601,"ALEXIS JAVIER SUAREZ CABALLERO","0846-2020","AUXILIAR DE FACTURACION URGENCIA","03 FEBRERO DE 2020","29 FEBRERO DE 2020",1400000,1400000,"SERGIO BOVEA MARIN","COORD CENTRO SALUD","13 DE JUNIO",942,1573,"20/02/2020","https://www.contratos.gov.co/consultas/detalleProceso.do?numConstancia=20-4-10554029"]
[393,72432594,"RUBERN DARIO UCROS FABREGAS","0847-2020","AUXILIAR DE FACTURACION ","03 FEBRERO DE 2020","29 FEBRERO DE 2020",2100000,2100000,"SANDRA SANMARTIN","SUB GERENTE ADMINISTRATIVO",null,943,1574,"20/02/2020","https://www.contratos.gov.co/consultas/detalleProceso.do?numConstancia=20-4-10554065"]
[394,32769708,"CLAUDIA ARENAS ALVAREZ","0848-2020","APOYO GESTION CONTROL INTERNO","03 FEBRERO DE 2020","29 FEBRERO DE 2020",3500000,3500000,"SANDRA SANMARTIN","SUB GERENTE ADMINISTRATIVO","ADMON COSTA HERMOSA",944,1575,"20/02/2020","https://www.contratos.gov.co/consultas/detalleProceso.do?numConstancia=20-4-10554080"]
[395,1045717737,"YAIR YEZID MELO VALENCIA","0849-2020","ASESOR DE PRESUPUESTO","03 FEBRERO DE 2020","29 FEBRERO DE 2020",4000000,4000000,"NICOLAS OQUENDO","DIRECTOR FINANCIERO","ADMON COSTA HERMOSA",945,1576,"20/02/2020","https://www.contratos.gov.co/consultas/detalleProceso.do?numConstancia=20-4-10540853"]
[396,1000149163,"DAVID RICARDO BOTERO ALONSO","0850-2020","APOYO GESTION DOCUMENTAL JURIDICA","03 FEBRERO DE 2020","29 DE FEBRERO 2020",4000000,4000000,"ORNELLA FIORENTINO ","JEFE JURIDICA","ADMON COSTA HERMOSA",946,1577,"20/02/2020","https://www.contratos.gov.co/consultas/detalleProceso.do?numConstancia=20-4-10536886"]
[397,5055447,"CARLOS ALBERTO CARBONELL ALVAREZ","0851-2020","AUDITOR MEDICO","03 FEBRERO DE 2020","29 FEBRERO DE 2020",{"$f":"4500000+2850000","v":7350000},7350000,"BETTY PERTUZ ","SUBGERENTE CIENTIFICO","ADMON COSTA HERMOSA",947,1578,"20/02/2020","https://www.contratos.gov.co/consultas/detalleProceso.do?numConstancia=20-4-10533220"]
[398,55221348,"MERCEDES SUSANA ESTARITA GUTIERREZ DE PIÑERES","0852-2020","AUXILIAR DE ARCHIVO","03 FEBRERO DE 2020","31 DE MARZO 2020",2000000,{"$f":"H400*2","v":4000000},"SANDRA SANMARTIN","SUB GERENTE ADMINISTRATIVO","ARCHIVO CENTRAL ",948,1579,"20/02/2020","https://www.contratos.gov.co/consultas/detalleProceso.do?numConstancia=20-4-10554087"]
[399,1140871897,"JESICA FERNANDA DE CASTRO MANTILLA","0853-2020","INGENIERA QUIMICA","03 FEBRERO DE 2020","31 DE MARZO 2020",4000000,{"$f":"H401*2","v":8000000},"BETTY PERTUZ ","SUBGERENTE CIENTIFICO","ADMON COSTA HERMOSA",949,1580,"20/02/2020","https://www.contratos.gov.co/consultas/detalleProceso.do?numConstancia=20-4-10533243"]
[400,32874188,"JALICSSA ARRIETA ORTEGA","0854-2020","PSICOLOGO EN PROMOCION Y PREVENCION","03 FEBRERO DE 2020","29 FEBRERO DE 2020",3000000,{"$f":"H402*1","v":3000000},"NILSA ARIZA MARQUEZ","COORD CENTRO SALUD",null,950,{"$f":"VLOOKUP(B402:B427,'[2]FEBRERO 2020'!B$2:M$427,12,0)","v":1581},"20/02/2020","https://www.contratos.gov.co/consultas/detalleProceso.do?numConstancia=20-4-10551249"]
[401,72346265,"LUIS VASQUEZ BALLESTAS","0855-2020","COORDINADOR DE FACTURACION","03 FEBRERO DE 2020","29 FEBRERO DE 2020",1800000,1800000,"WILFRAN JIMENEZ DE LA PEÑA","COORD CENTRO SALUD","CIUDADELA METROPOLITANA",960,{"$f":"VLOOKUP(B403:B428,'[2]FEBRERO 2020'!B$2:M$427,12,0)","v":1625},"20/02/2020","https://www.contratos.gov.co/consultas/detalleProceso.do?numConstancia=20-4-10551259"]
[402,27895505,"SANDRA MILENA GARCIA PEÑA","0856-2020","APOYO GESTION DOCUMENTAL JURIDICA","03 FEBRERO DE 2020","29 FEBRERO DE 2020",1500000,1500000,"ORNELLA FIORENTINO ","JEFE JURIDICA",null,961,{"$f":"VLOOKUP(B404:B429,'[2]FEBRERO 2020'!B$2:M$427,12,0)","v":1626},"20/02/2020","https://www.contratos.gov.co/consultas/detalleProceso.do?numConstancia=20-4-10551262"]
[403,72328953,"FRANCISCO ALCIDES CARRANZA MENDOZA","0857-2020","AUXILIAR RECURSOS FISICOS ","04 FEBRERO DE 2020","29 FEBRERO DE 2020",1900000,1900000,"SANDRA SANMARTIN","SUB GERENTE ADMINISTRATIVO","ADMON COSTA HERMOSA",1053,{"$f":"VLOOKUP(B405:B429,'[2]FEBRERO 2020'!B$2:M$427,12,0)","v":1708},"20/02/2020","https://www.contratos.gov.co/consultas/detalleProceso.do?numConstancia=20-4-10551264"]
[404,1139614174,"ALONSO MATEO LLANES ARIZA","0858-2020","MEDICO CONSULTA EXTERNA ","04 FEBRERO DE 2020","29 FEBRERO DE 2020",2120000,2120000,"VICTOR MIRANDA","COORD CENTRO SALUD","LA ESPERANZA",1056,{"$f":"VLOOKUP(B406:B429,'[2]FEBRERO 2020'!B$2:M$427,12,0)","v":1709},"20/02/2020","https://www.contratos.gov.co/consultas/detalleProceso.do?numConstancia=20-4-10538099"]
[405,77030162,"YECITH FELIPE MARTINEZ QUINTERO","0859-2020","MENSAJERO ","04 FEBRERO DE 2020","29 FEBRERO DE 2020",1800000,1800000,"SANDRA SANMARTIN","SUB GERENTE ADMINISTRATIVO","ADMON COSTA HERMOSC",1058,{"$f":"VLOOKUP(B407:B429,'[2]FEBRERO 2020'!B$2:M$427,12,0)","v":1710},"20/02/2020","https://www.contratos.gov.co/consultas/detalleProceso.do?numConstancia=20-4-10551268"]
[406,1042452026,"MERLE PAOLA MORENO MARCHENA","0860-2020","MEDICO CONSULTA EXTERNA ","04 FEBRERO DE 2020","29 FEBRERO DE 2020",2120000,2120000,"LUIS GRANADOS GOMEZ","COORD CENTRO SALUD","CENTRO MANUELA BELTRAN",1059,{"$f":"VLOOKUP(B408:B429,'[2]FEBRERO 2020'!B$2:M$427,12,0)","v":1711},"20/02/2020","https://www.contratos.gov.co/consultas/detalleProceso.do?numConstancia=20-4-10538121"]
[407,32741368,"DOLLYS YERAYS GOMEZ RODRIGUEZ ","0861-2020","ASISTENTE ADMINISTRATIVO","04 FEBRERO DE 2020","29 FEBRERO DE 2020",1900000,1900000,"SERGIO BOVEA MARIN","COORD CENTRO SALUD","CENTRO DE 13 DE JUNIO ",1060,{"$f":"VLOOKUP(B409:B429,'[2]FEBRERO 2020'!B$2:M$427,12,0)","v":1712},"20/02/2020","https://www.contratos.gov.co/consultas/detalleProceso.do?numConstancia=20-4-10551275"]
[408,8713662,"CARLOS ALBERTO MORENO RODRIGUEZ","0862-2020","ORIENTADOR","04 FEBRERO DE 2020","29 FEBRERO DE 2020",1270000,1270000,"LUIS GRANADOS GOMEZ","COORD CENTRO SALUD","CENTRO MANUELA BELTRAN",1066,{"$f":"VLOOKUP(B410:B429,'[2]FEBRERO 2020'!B$2:M$427,12,0)","v":1713},"20/02/2020","https://www.contratos.gov.co/consultas/detalleProceso.do?numConstancia=20-4-10540912"]
[409,1042448309,"GERALDINE ALEXANDRA MEDRANO IGLESIAS","0863-2020","AUXILIAR DE ARCHIVO","05 FEBRERO DE 2020","29 FEBRERO DE 2020",1500000,1500000,"SANDRA SANMARTIN","SUB GERENTE ADMINISTRATIVO","ADMON COSTA HERMOSR",{"$f":"VLOOKUP(B411:B421,'[2]FEBRERO 2020'!B$2:L$427,11,0)","v":1033},{"$f":"VLOOKUP(C411:C421,'[2]FEBRERO 2020'!C$2:M$427,11,0)","v":1715},"20/02/2020","https://www.contratos.gov.co/consultas/detalleProceso.do?numConstancia=20-4-10538139"]
[410,72227312,"HUGO CHARRIS PEREZ","0864-2020","AUXILIAR DE ARCHIVO","05 FEBRERO DE 2020","29 FEBRERO DE 2020",1500000,1500000,"SANDRA SANMARTIN","SUB GERENTE ADMINISTRATIVO","ARCHIVO CENTRAL ",{"$f":"VLOOKUP(B412:B422,'[2]FEBRERO 2020'!B$2:L$427,11,0)","v":1034},{"$f":"VLOOKUP(C412:C422,'[2]FEBRERO 2020'!C$2:M$427,11,0)","v":1716},"20/02/2020","https://www.contratos.gov.co/consultas/detalleProceso.do?numConstancia=20-4-10553843"]
[411,8603175,"NILSON ORTEGA JIMENEZ","0865-2020","AUXILIAR CONTABLE","05 FEBRERO DE 2020","29 FEBRERO DE 2020",1900000,1900000,"NICOLAS OQUENDO","DIRECTOR FINANCIERO","ADMON COSTA HERMOSA",{"$f":"VLOOKUP(B413:B423,'[2]FEBRERO 2020'!B$2:L$427,11,0)","v":1035},{"$f":"VLOOKUP(C413:C423,'[2]FEBRERO 2020'!C$2:M$427,11,0)","v":1717},"20/02/2020","https://www.contratos.gov.co/consultas/detalleProceso.do?numConstancia=20-4-10554102"]
[412,22585192,"DIANA LUZ ACOSTA DEMARES","0866-2020","AUXILIAR ADMINISTRATIVO","06 FEBRERO DE 2020","29 FEBRERO DE 2020",1900000,1900000,"LUIS GRANADOS GOMEZ","COORD CENTRO SALUD","CENTRO MANUELA BELTRAN",{"$f":"VLOOKUP(B414:B424,'[2]FEBRERO 2020'!B$2:L$427,11,0)","v":1040},{"$f":"VLOOKUP(C414:C424,'[2]FEBRERO 2020'!C$2:M$427,11,0)","v":1722},"20/02/2020","https://www.contratos.gov.co/consultas/detalleProceso.do?numConstancia=20-4-10550899"]
[413,1140847928,"LEIDY DANIELA WILSON PEZZOTI","0867-2020","AUXILIAR ADMINISTRATIVO VENTANILLA","06 FEBRERO DE 2020","29 FEBRERO DE 2020",1900000,1900000,"SANDRA SANMARTIN","SUB GERENTE ADMINISTRATIVO","ADMON COSTA HERMOSA ",{"$f":"VLOOKUP(B415:B425,'[2]FEBRERO 2020'!B$2:L$427,11,0)","v":1041},{"$f":"VLOOKUP(C415:C425,'[2]FEBRERO 2020'!C$2:M$427,11,0)","v":1723},"20/02/2020","https://www.contratos.gov.co/consultas/detalleProceso.do?numConstancia=20-4-10533258"]
[414,72053529,"LEINER DARIO MEDINA HERRERA","0868-2020","CONTROL INTERNO","06 FEBRERO DE 2020","29 FEBRERO DE 2020",2500000,2500000,"SANDRA SANMARTIN","SUB GERENTE ADMINISTRATIVO","ADMON COSTA HERMOSA",{"$f":"VLOOKUP(B416:B426,'[2]FEBRERO 2020'!B$2:L$427,11,0)","v":1042},{"$f":"VLOOKUP(C416:C426,'[2]FEBRERO 2020'!C$2:M$427,11,0)","v":1724},"20/02/2020","https://www.contratos.gov.co/consultas/detalleProceso.do?numConstancia=20-4-10536918"]
[415,1001821798,"ANGELA JUDITH BARRIOS MEJIA","0869-2020","AUXILIAR DE ENFERMERIA URGENCIAS","07 FEBRERO DE 2020","29 FEBRERO DE 2020",1378000,1378000,"WILFRAN JIMENEZ DE LA PEÑA","COORD CENTRO SALUD","CIUDADELA METROPOLITANA",{"$f":"VLOOKUP(B417:B427,'[2]FEBRERO 2020'!B$2:L$427,11,0)","v":1046},{"$f":"VLOOKUP(C417:C427,'[2]FEBRERO 2020'!C$2:M$427,11,0)","v":1728},"20/02/2020","https://www.contratos.gov.co/consultas/detalleProceso.do?numConstancia=20-4-10533277"]
[416,1042453991,"LILIANA JUDITH MORENO GUTIERREZ","0870-2020","AGENTE CALL CENTER","07 FEBRERO DE 2020","29 FEBRERO DE 2020",1378000,1378000,"BETTY PERTUZ ","SUBGERENTE CIENTIFICO","CIUDADELA METROPOLITANA",{"$f":"VLOOKUP(B418:B428,'[2]FEBRERO 2020'!B$2:L$427,11,0)","v":1047},{"$f":"VLOOKUP(C418:C428,'[2]FEBRERO 2020'!C$2:M$427,11,0)","v":1729},"20/02/2020","https://www.contratos.gov.co/consultas/detalleProceso.do?numConstancia=20-4-10533291"]
[417,22704983,"EGUIS ODILA ROLONG LAGUNA","0871-2020","ABOGADO EXTERNO","07 FEBRERO DE 2020","29 FEBRERO DE 2020",4000000,4000000,"FABIAN COLPAS","JEFE TALENTO HUMANO","ADMON COSTA HERMOSA",{"$f":"VLOOKUP(B419:B429,'[2]FEBRERO 2020'!B$2:L$427,11,0)","v":1048},{"$f":"VLOOKUP(C419:C429,'[2]FEBRERO 2020'!C$2:M$427,11,0)","v":1730},"20/02/2020","https://www.contratos.gov.co/consultas/detalleProceso.do?numConstancia=20-4-10536097"]
[418,32607428,"TEMILDA MARIA PERTUZ PEREZ","0872-2020","AUDITOR DE HABILITACIONES","07 FEBRERO DE 2020","29 FEBRERO DE 2020",3180000,3180000,"BETTY PERTUZ ","SUBGERENTE CIENTIFICO","ADMON COSTA HERMOSA",{"$f":"VLOOKUP(B420:B429,'[2]FEBRERO 2020'!B$2:L$427,11,0)","v":1049},{"$f":"VLOOKUP(C420:C429,'[2]FEBRERO 2020'!C$2:M$427,11,0)","v":1731},"20/02/2020","https://www.contratos.gov.co/consultas/detalleProceso.do?numConstancia=20-4-10554127"]
[419,1043061061,"JOCELIN PAOLA GOMEZ AGUIRRE ","0873-2020","AUXILIAR DE ENFERMERIA","10 FEBRERO DE 2020","29 FEBRERO DE 2020",1166000,1166000,"BETTY PERTUZ ","SUBGERENTE CIENTIFICO",null,{"$f":"VLOOKUP(B421:B429,'[2]FEBRERO 2020'!B$2:L$427,11,0)","v":1052},{"$f":"VLOOKUP(C421:C429,'[2]FEBRERO 2020'!C$2:M$427,11,0)","v":1734},"20/02/2020","https://www.contratos.gov.co/consultas/detalleProceso.do?numConstancia=20-4-10554141"]
[420,44151551,"VANESSA NUÑEZ JIMENEZ","0874-2020","ASESOR GERENCIA","10 FEBRERO DE 2020","29 FEBRERO DE 2020",5000000,5000000,"ROSA MADERA","GERENTE ","ADMON COSTA HERMOSA",1053,{"$f":"VLOOKUP(B422:B429,'[2]FEBRERO 2020'!B$2:M$427,12,0)","v":1735},"20/02/2020","https://www.contratos.gov.co/consultas/detalleProceso.do?numConstancia=20-4-10554153"]
[421,19615791,"DIOMAR NAVARRO ANGARITA","0875-2020","RECUPERACION DE CARTERA ","10 FEBRERO DE 2020","31 DE MARZO 2020",2000000,{"$f":"H423*2","v":4000000},"ORNELLA FIORENTINO","JEFE JURIDICA","ADMON COSTA HERMOSA",1056,{"$f":"VLOOKUP(B423:B429,'[2]FEBRERO 2020'!B$2:M$427,12,0)","v":1787},"20/02/2020","https://www.contratos.gov.co/consultas/detalleProceso.do?numConstancia=20-4-10554166"]
[422,32769312,"DORIS PADILLA MOLINA ","0876-2020","AUXILIAR DE ODONTOLOGIA","10 FEBRERO DE 2020","29 FEBRERO DE 2020",1166000,{"$f":"H424*1","v":1166000},"BETTY PERTUZ ","SUBGERENTE CIENTIFICO","CENTRO  DE SALUD EL PARQUE",1058,{"$f":"VLOOKUP(B424:B429,'[2]FEBRERO 2020'!B$2:M$427,12,0)","v":1791},"20/02/2020","https://www.contratos.gov.co/consultas/detalleProceso.do?numConstancia=20-4-10554180"]
[423,51977895,"LUZ HELENA MORALES MARTINEZ","0877-2020","AUXILIAR DE ARCHIVO","10 FEBRERO DE 2020","29 FEBRERO DE 2020",2250000,2250000,"SANDRA SANMARTIN","SUB GERENTE ADMINISTRATIVO","CIUDADELA METROPOLITANA",1059,{"$f":"VLOOKUP(B425:B429,'[2]FEBRERO 2020'!B$2:M$427,12,0)","v":1792},"20/02/2020","https://www.contratos.gov.co/consultas/detalleProceso.do?numConstancia=20-4-10554190"]
[424,22646712,"NINI JOHANA SOLANO MORENO","0878-2020","ENFERMERA JEFE URGENCIAS ","10 FEBRERO DE 2020","29 FEBRERO DE 2020",{"$f":"1900000+1900000/30*15","v":2850000},2850000,"SERGIO BOVEA MARIN","COORD CENTRO SALUD","CENTRO DE 13 DE JUNIO ",1060,{"$f":"VLOOKUP(B426:B429,'[2]FEBRERO 2020'!B$2:M$427,12,0)","v":1793},"20/02/2020","https://www.contratos.gov.co/consultas/detalleProceso.do?numConstancia=20-4-10554199"]
[425,1047340446,"OSCAR MAURICIO MARENCO ROMERO","0879-2020","MENSAJERO ","10 FEBRERO DE 2020","29 FEBRERO DE 2020",1800000,1800000,"BETTY PERTUZ ","SUBGERENTE CIENTIFICO","ADMON COSTA HERMOSA ",1066,{"$f":"VLOOKUP(B427:B429,'[2]FEBRERO 2020'!B$2:M$427,12,0)","v":1795},"20/02/2020","https://www.contratos.gov.co/consultas/detalleProceso.do?numConstancia=20-4-10554214"]
[426,32693760,"OMAIRA PLATA VESGA ","0880-2020","ODONTOLOGO","10 FEBRERO DE 2020","29 FEBRERO DE 2020",1900000,1900000,"WILFRAN JIMENEZ DE LA PEÑA",{"$f":"+K426","v":"COORD CENTRO SALUD"},"CIUDADELA METROPOLITANA",1067,1797,"20/02/2020","https://www.contratos.gov.co/consultas/detalleProceso.do?numConstancia=20-4-10554246"]
[427,1045226744,"YURISABEL CERVANTES ","0881-2020","MEDICO URGENCIAS","10 FEBRERO DE 2020","29 FEBRERO DE 2020",2560000,2560000,"WILFRAN JIMENEZ DE LA PEÑA",{"$f":"+K428","v":"COORD CENTRO SALUD"},"CIUDADELA METROPOLITANA",1068,1798,"20/02/2020","https://www.contratos.gov.co/consultas/detalleProceso.do?numConstancia=20-4-10554267"]

{"sheet":"PIC  -FEBRERO 2020","index":1,"n_rows":64,"n_cols":17,"rows_kept":64,"cut":false,"hidden":false,"merged":[]}
[null,"CEDULA","NOMBRE Y APELLIDO","#OPS","FECHA INICIO","FECHA TERMINACION ","OBJETO DEL CONTRATO","VALOR MENSUAL","VALOR TOTAL ","VALOR LETRAS total","SUPERVISOR ","CARGO","RUBRO PRESUPUESTAL ","CDP","RP","FECHA DE PUBLICAICON ","LINK SECOP"]
[1,32826839,"BEATRIZ ISABEL SANMARTIN ESCORCIA","0001-2020-PIC","03 FEBRERO DE 2020","31 MARZO DE 2020","VACUNADORA",1400000,{"$f":"H2*2","v":2800000},{"$f":"[3]!PesosMN(I2)","v":{"$error":"#NAME?"}},"NILSA ARIZA MARQUEZ","COORDINADOR P Y P","PIC",962,1627,"2020-03-04","https://www.contratos.gov.co/consultas/detalleProceso.do?numConstancia=20-4-10538008"]
[{"$f":"+A2+1","v":2},1046814365,"DESIRETH DEL CARMEN DE LEON ATENCIA","0002-2020-PIC","03 FEBRERO DE 2020","31 MARZO DE 2020","VACUNADORA",1400000,{"$f":"H3*2","v":2800000},{"$f":"[3]!PesosMN(I3)","v":{"$error":"#NAME?"}},"NILSA ARIZA MARQUEZ","COORDINADOR P Y P","PIC",963,1628,"2020-03-04","https://www.contratos.gov.co/consultas/detalleProceso.do?numConstancia=20-4-10538020"]
[{"$f":"+A3+1","v":3},32824393,"ELIZABETH RODRIGUEZ BARRIOS","0003-2020-PIC","03 FEBRERO DE 2020","31 MARZO DE 2020","VACUNADORA",1400000,2800000,{"$f":"[3]!PesosMN(I4)","v":{"$error":"#NAME?"}},"NILSA ARIZA MARQUEZ","COORDINADOR P Y P","PIC",964,1629,"2020-03-04","https://www.contratos.gov.co/consultas/detalleProceso.do?numConstancia=20-4-10538076"]
[4,22467133,"ESMERALDA COTE BORNACELY ","0004-2020-PIC","03 FEBRERO DE 2020","31 MARZO DE 2020","VACUNADORA",1400000,2800000,{"$f":"[3]!PesosMN(I5)","v":{"$error":"#NAME?"}},"NILSA ARIZA MARQUEZ","COORDINADOR P Y P","PIC",965,1630,"2020-03-04","https://www.contratos.gov.co/consultas/detalleProceso.do?numConstancia=20-4-10538079"]
[5,49775980,"GLORIA HERNANDEZ CENTENO","0005-2020-PIC","03 FEBRERO DE 2020","31 MARZO DE 2020","VACUNADORA",1400000,2800000,{"$f":"[3]!PesosMN(I6)","v":{"$error":"#NAME?"}},"NILSA ARIZA MARQUEZ","COORDINADOR P Y P","PIC",966,1631,"2020-03-04","https://www.contratos.gov.co/consultas/detalleProceso.do?numConstancia=20-4-10538086"]
[6,8767993,"HAROLD MANUEL CABARCAS GONZALEZ","0006-2020-PIC","03 FEBRERO DE 2020","31 MARZO DE 2020","VACUNADORA",1400000,2800000,{"$f":"[3]!PesosMN(I7)","v":{"$error":"#NAME?"}},"NILSA ARIZA MARQUEZ","COORDINADOR P Y P","PIC",967,1632,"2020-03-04","https://www.contratos.gov.co/consultas/detalleProceso.do?numConstancia=20-4-10538096"]
[7,32619158,"ISABEL HERRERA PACHECO","0007-2020-PIC","03 FEBRERO DE 2020","31 MARZO DE 2020","VACUNADORA- CUARTO FRIO",1600000,3200000,{"$f":"[3]!PesosMN(I8)","v":{"$error":"#NAME?"}},"NILSA ARIZA MARQUEZ","COORDINADOR P Y P","PIC",968,1633,"2020-03-04","https://www.contratos.gov.co/consultas/detalleProceso.do?numConstancia=20-4-10538100"]
[8,32816898,"ISABEL OSORIO BARRIOS","0008-2020-PIC","03 FEBRERO DE 2020","31 MARZO DE 2020","VACUNADORA",1400000,2800000,{"$f":"[3]!PesosMN(I9)","v":{"$error":"#NAME?"}},"NILSA ARIZA MARQUEZ","COORDINADOR P Y P","PIC",969,1634,"2020-03-04","https://www.contratos.gov.co/consultas/detalleProceso.do?numConstancia=20-4-10538109"]
[9,22431886,"IVIS GONZALEZ AYARZA","0009-2020-PIC","03 FEBRERO DE 2020","31 MARZO DE 2020","VACUNADORA",1400000,2800000,{"$f":"[3]!PesosMN(I10)","v":{"$error":"#NAME?"}},"NILSA ARIZA MARQUEZ","COORDINADOR P Y P","PIC",970,1635,"2020-03-04","https://www.contratos.gov.co/consultas/detalleProceso.do?numConstancia=20-4-10538118"]
[10,32865375,"LEDIA DEL CARMEN MARTINEZ DE MOYA","0010-2020-PIC","03 FEBRERO DE 2020","31 MARZO DE 2020","VACUNADORA",1400000,2800000,{"$f":"[3]!PesosMN(I11)","v":{"$error":"#NAME?"}},"NILSA ARIZA MARQUEZ","COORDINADOR P Y P","PIC",971,1636,"2020-03-04","https://www.contratos.gov.co/consultas/detalleProceso.do?numConstancia=20-4-10538123"]
[11,22430756,"MARITZA MARINO OSORIO","0011-2020-PIC","03 FEBRERO DE 2020","31 MARZO DE 2020","VACUNADORA ",1400000,2800000,{"$f":"[3]!PesosMN(I12)","v":{"$error":"#NAME?"}},"NILSA ARIZA MARQUEZ","COORDINADOR P Y P","PIC",972,1637,"2020-03-04","https://www.contratos.gov.co/consultas/detalleProceso.do?numConstancia=20-4-10538141"]
[12,32812585,"NESLIE OSORIO PARODIS","0012-2020-PIC","03 FEBRERO DE 2020","31 MARZO DE 2020","VACUNADORA",1400000,2800000,{"$f":"[3]!PesosMN(I13)","v":{"$error":"#NAME?"}},"NILSA ARIZA MARQUEZ","COORDINADOR P Y P","PIC",973,1638,"2020-03-04","https://www.contratos.gov.co/consultas/detalleProceso.do?numConstancia=20-4-10538148"]
[13,32863854,"OLGA BARRIOS BACCA","0013-2020-PIC","03 FEBRERO DE 2020","31 MARZO DE 2020","VACUNADORA",1400000,2800000,{"$f":"[3]!PesosMN(I14)","v":{"$error":"#NAME?"}},"NILSA ARIZA MARQUEZ","COORDINADOR P Y P","PIC",974,1639,"2020-03-04","https://www.contratos.gov.co/consultas/detalleProceso.do?numConstancia=20-4-10538158"]
[14,55222617,"OLGA SANDOVAL PEDRAZA","0014-2020-PIC","03 FEBRERO DE 2020","31 MARZO DE 2020","VACUNADORA",1400000,2800000,{"$f":"[3]!PesosMN(I15)","v":{"$error":"#NAME?"}},"NILSA ARIZA MARQUEZ","COORDINADOR P Y P","PIC",975,1640,"2020-03-04","https://www.contratos.gov.co/consultas/detalleProceso.do?numConstancia=20-4-10538190"]
[15,22387913,"OMEIRA CECILIA BARRIOS DE ESTREN ","0015-2020-PIC","03 FEBRERO DE 2020","31 MARZO DE 2020","VACUNADORA",1400000,2800000,{"$f":"[3]!PesosMN(I16)","v":{"$error":"#NAME?"}},"NILSA ARIZA MARQUEZ","COORDINADOR P Y P","PIC",976,1641,"2020-03-04","https://www.contratos.gov.co/consultas/detalleProceso.do?numConstancia=20-4-10538208"]
[16,22528921,"ROSARIO DEL CARMEN CAMARGO GOMEZ","0016-2020-PIC","03 FEBRERO DE 2020","31 MARZO DE 2020","VACUNADORA",1400000,2800000,{"$f":"[3]!PesosMN(I17)","v":{"$error":"#NAME?"}},"NILSA ARIZA MARQUEZ","COORDINADOR P Y P","PIC",977,1642,"2020-03-04","https://www.contratos.gov.co/consultas/detalleProceso.do?numConstancia=20-4-10538214"]
[17,32684298,"XIOMARA RODRIGUEZ CANTILLO","0017-2020-PIC","03 FEBRERO DE 2020","31 MARZO DE 2020","VACUNADORA",1400000,2800000,{"$f":"[3]!PesosMN(I18)","v":{"$error":"#NAME?"}},"NILSA ARIZA MARQUEZ","COORDINADOR P Y P","PIC",978,1643,"2020-03-04","https://www.contratos.gov.co/consultas/detalleProceso.do?numConstancia=20-4-10538220"]
[18,32820220,"YARLENE DE AVILA DE ALBA","0018-2020-PIC","03 FEBRERO DE 2020","31 MARZO DE 2020","VACUNADORA",1400000,2800000,{"$f":"[3]!PesosMN(I19)","v":{"$error":"#NAME?"}},"NILSA ARIZA MARQUEZ","COORDINADOR P Y P","PIC",979,1644,"2020-03-04","https://www.contratos.gov.co/consultas/detalleProceso.do?numConstancia=20-4-10538227"]
[19,60355382,"YEIGNE CONTRERAS BAYONA","0019-2020-PIC","03 FEBRERO DE 2020","31 MARZO DE 2020","VACUNADORA",1400000,2800000,{"$f":"[3]!PesosMN(I20)","v":{"$error":"#NAME?"}},"NILSA ARIZA MARQUEZ","COORDINADOR P Y P","PIC",980,1645,"2020-03-04","https://www.contratos.gov.co/consultas/detalleProceso.do?numConstancia=20-4-10538230"]
[20,32811232,"YOLANDA SOFIA MORALES BERMUDEZ","0020-2020-PIC","03 FEBRERO DE 2020","31 MARZO DE 2020","VACUNADORA- CUARTO FRIO",1600000,3200000,{"$f":"[3]!PesosMN(I21)","v":{"$error":"#NAME?"}},"NILSA ARIZA MARQUEZ","COORDINADOR P Y P","PIC",981,1646,"2020-03-04","https://www.contratos.gov.co/consultas/detalleProceso.do?numConstancia=20-4-10538233"]
[21,1042428053,"YURANIS DEL CARMEN BLANQUICETT MORENO","0021-2020-PIC","03 FEBRERO DE 2020","31 MARZO DE 2020","VACUNADORA",1400000,2800000,{"$f":"[3]!PesosMN(I22)","v":{"$error":"#NAME?"}},"NILSA ARIZA MARQUEZ","COORDINADOR P Y P","PIC",982,1647,"2020-03-04","https://www.contratos.gov.co/consultas/detalleProceso.do?numConstancia=20-4-10538241"]
[22,44159904,"LIZLEIDYS OSORIO DOMINGUEZ","0022-2020-PIC","03 FEBRERO DE 2020","31 MARZO DE 2020","ENFERMERA-JEFE TERRENO PAI",2120000,4240000,{"$f":"[3]!PesosMN(I23)","v":{"$error":"#NAME?"}},"BETTY PERTUZ","SUBGERENTE CIENTIFICO","PIC",983,1648,"2020-03-04","https://www.contratos.gov.co/consultas/detalleProceso.do?numConstancia=20-4-10538245"]
[23,1042417305,"NATALIE JASBLEIDYS COMAS TORRES","0023-2020-PIC","03 FEBRERO DE 2020","29 DE FEBRERO 2020","AGENTE EN ATENCION PRIMARIA EN SALUD",1400000,{"$f":"+H24*1","v":1400000},{"$f":"[3]!PesosMN(I24)","v":{"$error":"#NAME?"}},"NILSA ARIZA MARQUEZ","COORDINADOR P Y P","PIC",984,1649,"2020-03-04","https://www.contratos.gov.co/consultas/detalleProceso.do?numConstancia=20-4-10538266"]
[24,1042431836,"JULIETH PAOLA HERRERA ORTEGA","0024-2020-PIC","03 FEBRERO DE 2020","31 MARZO DE 2020","PSICOLOGO ",2500000,5000000,{"$f":"[3]!PesosMN(I25)","v":{"$error":"#NAME?"}},"BETTY PERTUZ","SUBGERENTE CIENTIFICO","PIC",985,1650,"2020-03-04","https://www.contratos.gov.co/consultas/detalleProceso.do?numConstancia=20-4-10538271"]
[25,22543666,"DENNYS MARIELA ARZUZAR GALVIS","0025-2020-PIC","03 FEBRERO DE 2020","31 MARZO DE 2020","AGENTE EN ATENCION PRIMARIA EN SALUD",1400000,2800000,{"$f":"[3]!PesosMN(I26)","v":{"$error":"#NAME?"}},"NILSA ARIZA MARQUEZ","COORDINADOR PYP","PIC",986,1651,"2020-03-04","https://www.contratos.gov.co/consultas/detalleProceso.do?numConstancia=20-4-10538274"]
[26,1143136225,"MARTA CECILIA MARIN ZAPATA","0026-2020-PIC","03 FEBRERO DE 2020","31 MARZO DE 2020","AGENTE EN ATENCION PRIMARIA EN SALUD",1400000,2800000,{"$f":"[3]!PesosMN(I27)","v":{"$error":"#NAME?"}},"NILSA ARIZA MARQUEZ","COORDINADOR PYP","PIC",987,1652,"2020-03-04","https://www.contratos.gov.co/consultas/detalleProceso.do?numConstancia=20-4-10538300"]
[27,32758730,"NUBIA ESTELA CANO GUILLEN","0027-2020-PIC","03 FEBRERO DE 2020","31 MARZO DE 2020","AGENTE EN ATENCION PRIMARIA EN SALUD",1400000,2800000,{"$f":"[3]!PesosMN(I28)","v":{"$error":"#NAME?"}},"NILSA ARIZA MARQUEZ","COORDINADOR PYP","PIC",988,1653,"2020-03-04","https://www.contratos.gov.co/consultas/detalleProceso.do?numConstancia=20-4-10538310"]
[28,32876278,"CLAUDIA MARTINEZ RIVAS ","0030-2020-PIC","03 FEBRERO DE 2020","31 MARZO DE 2020","AGENTE EN ATENCION PRIMARIA EN SALUD",1400000,2800000,{"$f":"[3]!PesosMN(I29)","v":{"$error":"#NAME?"}},"NILSA ARIZA MARQUEZ","COORDINADOR PYP","PIC",991,1656,"2020-03-04","https://www.contratos.gov.co/consultas/detalleProceso.do?numConstancia=20-4-10538317"]
[29,32872420,"LUZ MARINA GARIZAO TAPIA","0031-2020-PIC","03 FEBRERO DE 2020","31 MARZO DE 2020","AGENTE EN ATENCION PRIMARIA EN SALUD",1400000,2800000,{"$f":"[3]!PesosMN(I30)","v":{"$error":"#NAME?"}},"NILSA ARIZA MARQUEZ","COORDINADOR PYP","PIC",992,1657,"2020-03-04","https://www.contratos.gov.co/consultas/detalleProceso.do?numConstancia=20-4-10538321"]
[30,44160070,"GLORIA ZAPATA REZA","0032-2020-PIC","03 FEBRERO DE 2020","31 MARZO DE 2020","AGENTE EN ATENCION PRIMARIA EN SALUD",1400000,2800000,{"$f":"[3]!PesosMN(I31)","v":{"$error":"#NAME?"}},"NILSA ARIZA MARQUEZ","COORDINADOR PYP","PIC",993,1658,"2020-03-04","https://www.contratos.gov.co/consultas/detalleProceso.do?numConstancia=20-4-10538326"]
[31,44152281,"KAREN JOHANNA JIMENEZ RAMOS","0033-2020-PIC","03 FEBRERO DE 2020","31 MARZO DE 2020","AGENTE EN ATENCION PRIMARIA EN SALUD",1400000,2800000,{"$f":"[3]!PesosMN(I32)","v":{"$error":"#NAME?"}},"NILSA ARIZA MARQUEZ","COORDINADOR PYP","PIC",994,1659,"2020-03-04","https://www.contratos.gov.co/consultas/detalleProceso.do?numConstancia=20-4-10538332"]
[32,8784783,"DAIRO MANRIQUEZ MORALES BOVEA","0034-2020-PIC","03 FEBRERO DE 2020","31 MARZO DE 2020","APOYO A LA GESTION DIMENSIÓN_DE_SALUD_AMBIENTAL: Zoonosis",1400000,2800000,{"$f":"[3]!PesosMN(I33)","v":{"$error":"#NAME?"}},"NILSA ARIZA MARQUEZ","COORDINADOR PYP","PIC",995,1660,"2020-03-04","https://www.contratos.gov.co/consultas/detalleProceso.do?numConstancia=20-4-10538340"]
[33,32829868,"JUDITH ISABEL ARCON MEDINA","0036-2020-PIC","03 FEBRERO DE 2020","31 MARZO DE 2020","APOYO A LA GESTION DIMENSIÓN_DE_SALUD_AMBIENTAL: Zoonosis",1400000,2800000,{"$f":"[3]!PesosMN(I34)","v":{"$error":"#NAME?"}},"NILSA ARIZA MARQUEZ","COORDINADOR PYP","PIC",997,1662,"2020-03-04","https://www.contratos.gov.co/consultas/detalleProceso.do?numConstancia=20-4-10538408"]
[34,1046698080,"LUIS ALFREDO CANTILLO CABALLERO","0037-2020-PIC","03 FEBRERO DE 2020","31 MARZO DE 2020","APOYO A LA GESTION DIMENSIÓN_DE_SALUD_AMBIENTAL: Zoonosis",1400000,2800000,{"$f":"[3]!PesosMN(I35)","v":{"$error":"#NAME?"}},"NILSA ARIZA MARQUEZ","COORDINADOR PYP","PIC",998,1663,"2020-03-04","https://www.contratos.gov.co/consultas/detalleProceso.do?numConstancia=20-4-10538416"]
[35,1047337919,"CANDY ISABEL ROJAS SARMIENTO","0038-2020-PIC","03 FEBRERO DE 2020","31 MARZO DE 2020","APOYO A LA GESTION DIMENSIÓN_DE_SALUD_AMBIENTAL: Zoonosis",1400000,2800000,{"$f":"[3]!PesosMN(I36)","v":{"$error":"#NAME?"}},"NILSA ARIZA MARQUEZ","COORDINADOR PYP","PIC",999,1664,"2020-03-04","https://www.contratos.gov.co/consultas/detalleProceso.do?numConstancia=20-4-10538418"]
[36,44159634,"YANELIS ESTHER ESTRADA NAVAJA","0039-2020-PIC","03 FEBRERO DE 2020","31 MARZO DE 2020","APOYO A LA GESTION DIMENSIÓN_DE_SALUD_AMBIENTAL: Zoonosis",1400000,2800000,{"$f":"[3]!PesosMN(I37)","v":{"$error":"#NAME?"}},"NILSA ARIZA MARQUEZ","COORDINADOR PYP","PIC",1000,1665,"2020-03-04","https://www.contratos.gov.co/consultas/detalleProceso.do?numConstancia=20-4-10538432"]
[37,30895455,"MARIA CONCEPCION ESPRIELLA BUELVAS","0040-2020-PIC","03 FEBRERO DE 2020","31 MARZO DE 2020","APOYO A LA GESTION DIMENSIÓN_DE_SALUD_AMBIENTAL: Zoonosis",1400000,2800000,{"$f":"[3]!PesosMN(I38)","v":{"$error":"#NAME?"}},"NILSA ARIZA MARQUEZ","COORDINADOR PYP","PIC",1001,1666,"2020-03-04","https://www.contratos.gov.co/consultas/detalleProceso.do?numConstancia=20-4-10538440"]
[38,72215419,"ANGEL CUSTODIO BARRIOS PEDROZA","0041-2020-PIC","03 FEBRERO DE 2020","31 MARZO DE 2020","LIDER ZOONOSIS Y AMBIENTAL",3500000,7000000,{"$f":"[3]!PesosMN(I39)","v":{"$error":"#NAME?"}},"BETTY PERTUZ","SUBGERENTE CIENTIFICO","PIC",1002,1667,"2020-03-04","https://www.contratos.gov.co/consultas/detalleProceso.do?numConstancia=20-4-10547750"]
[39,32744712,"CARMEN MARIA CORONADO ESCORCIA","0042-2020-PIC","03 FEBRERO DE 2020","31 MARZO DE 2020","ENFERMERA JEFE -PIC",2500000,5000000,{"$f":"[3]!PesosMN(I40)","v":{"$error":"#NAME?"}},"BETTY PERTUZ","SUBGERENTE CIENTIFICO","PIC",1003,1668,"2020-03-04","https://www.contratos.gov.co/consultas/detalleProceso.do?numConstancia=20-4-10538446"]
[40,32777087,"ROSA MARGARITA SEVILLA","0043-2020-PIC","03 FEBRERO DE 2020","31 MARZO DE 2020","NUTRICIONISTA ",2500000,5000000,{"$f":"[3]!PesosMN(I41)","v":{"$error":"#NAME?"}},"BETTY PERTUZ","SUBGERENTE CIENTIFICO","PIC",1004,1669,"2020-03-04","https://www.contratos.gov.co/consultas/detalleProceso.do?numConstancia=20-4-10538453"]
[41,1140873504,"OLMAN JOSHUA BULA TORRES","0044-2020-PIC","03 FEBRERO DE 2020","31 MARZO DE 2020","PSICOLOGO ",2500000,5000000,{"$f":"[3]!PesosMN(I42)","v":{"$error":"#NAME?"}},"BETTY PERTUZ","SUBGERENTE CIENTIFICO","PIC",1005,1670,"2020-03-04","https://www.contratos.gov.co/consultas/detalleProceso.do?numConstancia=20-4-10538456"]
[42,1043931882,"AREIDIS MEDINA SANJUAN ","0045-2020-PIC","03 FEBRERO DE 2020","31 MARZO DE 2020","AGENTE EN ATENCION PRIMARIA EN SALUD",1400000,2800000,{"$f":"[3]!PesosMN(I43)","v":{"$error":"#NAME?"}},"NILSA ARIZA MARQUEZ","COORDINADOR PYP","PIC",1006,1671,"2020-03-04","https://www.contratos.gov.co/consultas/detalleProceso.do?numConstancia=20-4-10538468"]
[43,1002162856,"NICOLL PATRICIA NIEBLES RIVERA","0046-2020-PIC","03 FEBRERO DE 2020","31 MARZO DE 2020","AGENTE EN ATENCION PRIMARIA EN SALUD",1400000,2800000,{"$f":"[3]!PesosMN(I44)","v":{"$error":"#NAME?"}},"NILSA ARIZA MARQUEZ","COORDINADOR PYP","PIC",1007,1672,"2020-03-04","https://www.contratos.gov.co/consultas/detalleProceso.do?numConstancia=20-4-10538473"]
[44,22506781,"MILDRED TATIANA GOENAGA ALVARADO","0047-2020-PIC","03 FEBRERO DE 2020","31 MARZO DE 2020","ENFERMERA-JEFE TERRENO PAI",2120000,4240000,{"$f":"[3]!PesosMN(I45)","v":{"$error":"#NAME?"}},"BETTY PERTUZ","SUBGERENTE CIENTIFICO","PIC",1008,1673,"2020-03-04","https://www.contratos.gov.co/consultas/detalleProceso.do?numConstancia=20-4-10538476"]
[45,22643912,"ANGELA ROSA MORALES SANMARTIN","0048-2020-PIC","03 FEBRERO DE 2020","31 MARZO DE 2020","VACUNADORA",1400000,2800000,{"$f":"[3]!PesosMN(I46)","v":{"$error":"#NAME?"}},"NILSA ARIZA MARQUEZ","COORDINADOR P Y P","PIC",1009,1674,"2020-03-04","https://www.contratos.gov.co/consultas/detalleProceso.do?numConstancia=20-4-10538478"]
[46,44150081,"MARY LUZ GUERRERO CERVANTES ","0049-2020-PIC","03 FEBRERO DE 2020","31 MARZO DE 2020","AGENTE EN ATENCION PRIMARIA EN SALUD",1400000,2800000,{"$f":"[3]!PesosMN(I47)","v":{"$error":"#NAME?"}},"NILSA ARIZA MARQUEZ","COORDINADOR PYP","PIC",1010,1675,"2020-03-04","https://www.contratos.gov.co/consultas/detalleProceso.do?numConstancia=20-4-10547201"]
[47,22668428,"ANABELL VELASQUEZ FERNANDEZ ","0050-2020-PIC","03 FEBRERO DE 2020","31 MARZO DE 2020","COORDINACION PIC",5800000,11600000,{"$f":"[3]!PesosMN(I48)","v":{"$error":"#NAME?"}},"BETTY PERTUZ","SUBGERENTE CIENTIFICO","PIC",1011,1676,"2020-03-04","https://www.contratos.gov.co/consultas/detalleProceso.do?numConstancia=20-4-10547222"]
[48,55236945,"ADRIANA PATRICIA MARQUEZ CANTILLO","0051-2020-PIC","03 FEBRERO DE 2020","31 MARZO DE 2020","VACUNADORA",1400000,2800000,{"$f":"[3]!PesosMN(I49)","v":{"$error":"#NAME?"}},"NILSA ARIZA MARQUEZ","COORDINADOR P Y P","PIC",1012,1677,"2020-03-04","https://www.contratos.gov.co/consultas/detalleProceso.do?numConstancia=20-4-10547222"]
[49,32864918,"YOSMARY MARIA BENAVIDES TORRES ","0052-2020-PIC","03 FEBRERO DE 2020","31 MARZO DE 2020","VACUNADORA",1400000,2800000,{"$f":"[3]!PesosMN(I50)","v":{"$error":"#NAME?"}},"NILSA ARIZA MARQUEZ","COORDINADOR P Y P","PIC",1013,1678,"2020-03-04","https://www.contratos.gov.co/consultas/detalleProceso.do?numConstancia=20-4-10547265"]
[50,32829531,"MILENA DONADO OCHOA","0053-2020-PIC","03 FEBRERO DE 2020","31 MARZO DE 2020","APOYO COORDINACION PIC",4000000,8000000,{"$f":"[3]!PesosMN(I51)","v":{"$error":"#NAME?"}},"BETTY PERTUZ","SUBGERENTE CIENTIFICO","PIC",1014,1679,"2020-03-04","https://www.contratos.gov.co/consultas/detalleProceso.do?numConstancia=20-4-10547276"]
[51,1143442239,"SAYURIS OCAMPO GARCIA","0054-2020-PIC","03 FEBRERO DE 2020","31 MARZO DE 2020",{"$f":"+G53","v":"APOYO A LA GESTION DIMENSIÓN_DE_SALUD_AMBIENTAL: Zoonosis"},1400000,2800000,{"$f":"[3]!PesosMN(I52)","v":{"$error":"#NAME?"}},"NILSA ARIZA MARQUEZ","COORDINADOR PYP","PIC",1018,1704,"2020-03-04","https://www.contratos.gov.co/consultas/detalleProceso.do?numConstancia=20-4-10547401"]
[52,1043185696,"MANUEL ZULBARAN ","0055-2020-PIC","03 FEBRERO DE 2020","31 MARZO DE 2020","APOYO A LA GESTION DIMENSIÓN_DE_SALUD_AMBIENTAL: Zoonosis",1400000,2800000,{"$f":"[3]!PesosMN(I53)","v":{"$error":"#NAME?"}},"NILSA ARIZA MARQUEZ","COORDINADOR PYP","PIC",1022,1705,"2020-03-04","https://www.contratos.gov.co/consultas/detalleProceso.do?numConstancia=20-4-10547422"]
[53,1045675584,"ISOREIDA PEREZ PALMEIRA","0056-2020-PIC","03 FEBRERO DE 2020","31 MARZO DE 2020","ENFERMERA JEFE APS -PIC",2500000,5000000,{"$f":"[3]!PesosMN(I54)","v":{"$error":"#NAME?"}},"BETTY PERTUZ","SUBGERENTE CIENTIFICO","PIC",1023,1706,"2020-03-04","https://www.contratos.gov.co/consultas/detalleProceso.do?numConstancia=20-4-10547276"]
[54,22645320,"ADRIANA CRISTINA GARCIA CARRILLO","0057-2020-PIC","04 FEBRERO DE 2020","31 MARZO DE 2020","FISIOTERAPEUTA",2500000,5000000,{"$f":"[3]!PesosMN(I55)","v":{"$error":"#NAME?"}},"BETTY PERTUZ","SUBGERENTE CIENTIFICO","PIC",1032,1714,"2020-03-04","https://www.contratos.gov.co/consultas/detalleProceso.do?numConstancia=20-4-10547276"]
[55,1065575009,"ANDREA TATIANA SERRANO MOLINA ","0058-2020-PIC","05 FEBRERO DE 2020","31 MARZO DE 2020","PSICOLOGO ",2500000,5000000,{"$f":"[3]!PesosMN(I56)","v":{"$error":"#NAME?"}},"BETTY PERTUZ","SUBGERENTE CIENTIFICO","PIC",1036,1718,"2020-03-04","https://www.contratos.gov.co/consultas/detalleProceso.do?numConstancia=20-4-10547438"]
[56,64578458,"ILDA DEL PILAR PACHECO AGUIRRE","0059-2020-PIC","05 FEBRERO DE 2020","31 MARZO DE 2020","VACUNADORA ",1400000,2800000,{"$f":"[3]!PesosMN(I57)","v":{"$error":"#NAME?"}},"NILSA ARIZA MARQUEZ","COORDINADOR P Y P","PIC",1037,1719,"2020-03-04","https://www.contratos.gov.co/consultas/detalleProceso.do?numConstancia=20-4-10547554"]
[57,1042449446,"SAILIS MARIA FRIA VEGA","0060-2020-PIC","05 FEBRERO DE 2020","31 MARZO DE 2020","AGENTE EN ATENCION PRIMARIA EN SALUD",1400000,2800000,{"$f":"[3]!PesosMN(I58)","v":{"$error":"#NAME?"}},"NILSA ARIZA MARQUEZ","COORDINADOR PYP","PIC",1038,1720,"2020-03-04","https://www.contratos.gov.co/consultas/detalleProceso.do?numConstancia=20-4-10547617"]
[58,45687350,"MARICELA CARRILLO AGUILAR ","0061-2020-PIC","06 FEBRERO DE 2020","31 MARZO DE 2020","APOYO GESTION PIC",2500000,5000000,{"$f":"[3]!PesosMN(I59)","v":{"$error":"#NAME?"}},"BETTY PERTUZ","SUBGERENTE CIENTIFICO","PIC",1043,1725,"2020-03-04","https://www.contratos.gov.co/consultas/detalleProceso.do?numConstancia=20-4-10547633"]
[59,1046872703,"LUCELIS DE LA HOZ ESCORCIA","0062-2020-PIC","06 FEBRERO DE 2020","31 MARZO DE 2020","AUXILIAR ADMINISTRATIVO-PIC",1900000,3800000,{"$f":"[3]!PesosMN(I60)","v":{"$error":"#NAME?"}},"BETTY PERTUZ","SUBGERENTE CIENTIFICO","PIC",1044,1726,"2020-03-04","https://www.contratos.gov.co/consultas/detalleProceso.do?numConstancia=20-4-10547644"]
[60,3779189,"JAIME ENRIQUE MARQUEZ VILLAFAÑE","0063-2020-PIC","07 FEBRERO DE 2020","31 MARZO DE 2020","APOYO A LA GESTION DIMENSIÓN_DE_SALUD_AMBIENTAL: Zoonosis",1400000,2800000,{"$f":"[3]!PesosMN(I61)","v":{"$error":"#NAME?"}},"NILSA ARIZA MARQUEZ","COORDINADOR PYP","PIC",1050,1732,"2020-03-04","https://www.contratos.gov.co/consultas/detalleProceso.do?numConstancia=20-4-10547657"]
[61,22446125,"GENOVEVA MARIA LLANES JEREZ","0065-2020-PIC","12 FEBRERO DE 2020","31 MARZO DE 2020","VACUNADORA",1400000,2800000,{"$f":"[3]!PesosMN(I62)","v":{"$error":"#NAME?"}},"NILSA ARIZA MARQUEZ","COORDINADOR P Y P","PIC",1071,1802,"2020-03-04","https://www.contratos.gov.co/consultas/detalleProceso.do?numConstancia=20-4-10547687"]
[62,72429089,"EDER DE JESUS SEGURA BRAVO","0066-2020-PIC","12 FEBRERO DE 2020","31 MARZO DE 2020","HIGIENISTA ORAL",1900000,3800000,{"$f":"[3]!PesosMN(I63)","v":{"$error":"#NAME?"}},"NILSA ARIZA MARQUEZ","COORDINADOR PYP","PIC",1072,1803,"2020-03-04","https://www.contratos.gov.co/consultas/detalleProceso.do?numConstancia=20-4-10547700"]
[63,32862578,"MILDRIS PATRICIA QUIJANO VILORIA","0067-2020-PIC","17 FEBRERO DE 2020","31 MARZO DE 2020","HIGIENISTA ORAL",1900000,{"$f":"H64*2","v":3800000},{"$f":"[3]!PesosMN(I64)","v":{"$error":"#NAME?"}},"NILSA ARIZA MARQUEZ","COORDINADOR P Y P","PIC",1075,1809,"2020-03-04","https://www.contratos.gov.co/consultas/detalleProceso.do?numConstancia=20-4-10547743"]